Workbook

Sheet 1 & 2
D2: =IF(OR(B2="HOL",B2="SUN",B2="SAT",B2="No Read",B2=""),"",ROUND(C2/E1,1)) ->  | E2: =IF(C2="",IF(E1>0,E1+1,1),1) -> 1 | I2: =IF(OR(G2="HOL",G2="SUN",G2="SAT",G2="No Read",G2=""),"",ROUND(H2/J1,1)) ->  | J2: =IF(H2="",IF(J1>0,J1+1,1),1) -> 1 | N2: =IF(OR(L2="HOL",L2="SUN",L2="SAT",L2="No Read",L2=""),"",ROUND(M2/O1,1)) ->  | O2: =IF(M2="",IF(O1>0,O1+1,1),1) -> 1 | S2: =IF(OR(Q2="HOL",Q2="SUN",Q2="SAT",Q2="No Read",Q2=""),"",ROUND(R2/T1,1)) ->  | T2: =IF(R2="",IF(T1>0,T1+1,1),1) -> 1
C3: =IF(OR(B3="HOL",B3="SUN",B3="SAT",B3="No Read",B3=""),"",(INDEX(B3:$B$44,MATCH(TRUE,ISNUMBER(B3:$B$44),0))-LOOKUP(99^99,$B$2:B3))*1000) ->  | D3: =IF(OR(B3="HOL",B3="SUN",B3="SAT",B3="No Read",B3=""),"",ROUND(C3/E2,1)) ->  | E3: =IF(C3="",IF(E2>0,E2+1,1),1) -> 2 | H3: =IF(OR(G3="HOL",G3="SUN",G3="SAT",G3="No Read",G3=""),"",(INDEX(G3:$G$44,MATCH(TRUE,ISNUMBER(G3:$G$44),0))-LOOKUP(99^99,$G$2:G3))*100) ->  | I3: =IF(OR(G3="HOL",G3="SUN",G3="SAT",G3="No Read",G3=""),"",ROUND(H3/J2,1)) ->  | J3: =IF(H3="",IF(J2>0,J2+1,1),1) -> 2 | M3: =IF(OR(L3="HOL",L3="SUN",L3="SAT",L3="No Read",L3=""),"",(INDEX(L3:$L$44,MATCH(TRUE,ISNUMBER(L3:$L$44),0))-LOOKUP(99^99,$L$2:L3))*1000) ->  | N3: =IF(OR(L3="HOL",L3="SUN",L3="SAT",L3="No Read",L3=""),"",ROUND(M3/O2,1)) ->  | O3: =IF(M3="",IF(O2>0,O2+1,1),1) -> 2 | R3: =IF(OR(Q3="HOL",Q3="SUN",Q3="SAT",Q3="No Read",Q3=""),"",(INDEX(Q3:$Q$44,MATCH(TRUE,ISNUMBER(Q3:$Q$44),0))-LOOKUP(99^99,$Q$2:Q3))*1000) ->  | S3: =IF(OR(Q3="HOL",Q3="SUN",Q3="SAT",Q3="No Read",Q3=""),"",ROUND(R3/T2,1)) ->  | T3: =IF(R3="",IF(T2>0,T2+1,1),1) -> 2
C4: =IF(OR(B4="HOL",B4="SUN",B4="SAT",B4="No Read",B4=""),"",(INDEX(B4:$B$44,MATCH(TRUE,ISNUMBER(B4:$B$44),0))-LOOKUP(99^99,$B$2:B4))*1000) ->  | D4: =IF(OR(B4="HOL",B4="SUN",B4="SAT",B4="No Read",B4=""),"",ROUND(C4/E3,1)) ->  | E4: =IF(C4="",IF(E3>0,E3+1,1),1) -> 3 | H4: =IF(OR(G4="HOL",G4="SUN",G4="SAT",G4="No Read",G4=""),"",(INDEX(G4:$G$44,MATCH(TRUE,ISNUMBER(G4:$G$44),0))-LOOKUP(99^99,$G$2:G4))*100) ->  | I4: =IF(OR(G4="HOL",G4="SUN",G4="SAT",G4="No Read",G4=""),"",ROUND(H4/J3,1)) ->  | J4: =IF(H4="",IF(J3>0,J3+1,1),1) -> 3 | M4: =IF(OR(L4="HOL",L4="SUN",L4="SAT",L4="No Read",L4=""),"",(INDEX(L4:$L$44,MATCH(TRUE,ISNUMBER(L4:$L$44),0))-LOOKUP(99^99,$L$2:L4))*1000) ->  | N4: =IF(OR(L4="HOL",L4="SUN",L4="SAT",L4="No Read",L4=""),"",ROUND(M4/O3,1)) ->  | O4: =IF(M4="",IF(O3>0,O3+1,1),1) -> 3 | R4: =IF(OR(Q4="HOL",Q4="SUN",Q4="SAT",Q4="No Read",Q4=""),"",(INDEX(Q4:$Q$44,MATCH(TRUE,ISNUMBER(Q4:$Q$44),0))-LOOKUP(99^99,$Q$2:Q4))*1000) ->  | S4: =IF(OR(Q4="HOL",Q4="SUN",Q4="SAT",Q4="No Read",Q4=""),"",ROUND(R4/T3,1)) ->  | T4: =IF(R4="",IF(T3>0,T3+1,1),1) -> 3
B5: 164162 | C5: =IF(OR(B5="HOL",B5="SUN",B5="SAT",B5="No Read",B5=""),"",(INDEX(B5:$B$44,MATCH(TRUE,ISNUMBER(B5:$B$44),0))-LOOKUP(99^99,$B$2:B5))*1000) -> 0 | D5: =IF(OR(B5="HOL",B5="SUN",B5="SAT",B5="No Read",B5=""),"",ROUND(C5/E4,1)) -> 0 | E5: =IF(C5="",IF(E4>0,E4+1,1),1) -> 1 | G5: 2219941 | H5: =IF(OR(G5="HOL",G5="SUN",G5="SAT",G5="No Read",G5=""),"",(INDEX(G5:$G$44,MATCH(TRUE,ISNUMBER(G5:$G$44),0))-LOOKUP(99^99,$G$2:G5))*100) -> 0 | I5: =IF(OR(G5="HOL",G5="SUN",G5="SAT",G5="No Read",G5=""),"",ROUND(H5/J4,1)) -> 0 | J5: =IF(H5="",IF(J4>0,J4+1,1),1) -> 1 | L5: 258750 | M5: =IF(OR(L5="HOL",L5="SUN",L5="SAT",L5="No Read",L5=""),"",(INDEX(L5:$L$44,MATCH(TRUE,ISNUMBER(L5:$L$44),0))-LOOKUP(99^99,$L$2:L5))*1000) -> 0 | N5: =IF(OR(L5="HOL",L5="SUN",L5="SAT",L5="No Read",L5=""),"",ROUND(M5/O4,1)) -> 0 | O5: =IF(M5="",IF(O4>0,O4+1,1),1) -> 1 | Q5: 1850603 | R5: =IF(OR(Q5="HOL",Q5="SUN",Q5="SAT",Q5="No Read",Q5=""),"",(INDEX(Q5:$Q$44,MATCH(TRUE,ISNUMBER(Q5:$Q$44),0))-LOOKUP(99^99,$Q$2:Q5))*1000) -> 0 | S5: =IF(OR(Q5="HOL",Q5="SUN",Q5="SAT",Q5="No Read",Q5=""),"",ROUND(R5/T4,1)) -> 0 | T5: =IF(R5="",IF(T4>0,T4+1,1),1) -> 1
K6: 2022-10-18
A7: DATE | B7: Well #1 | F7: GAL USED | G7: Booster #1 | K7: GAL USED | L7: Well #2 | P7: GAL USED | Q7: Booster #2 | U7: GAL USED
A8: 1 | B8: 164214 | C8: =IF(OR(B8="HOL",B8="SUN",B8="SAT",B8="No Read",B8=""),"",IF(INDEX(B8:$B$44,MATCH(TRUE,ISNUMBER(B8:$B$44),0))<LOOKUP(99^99,B$2:B7),(INDEX(B8:$B$44,MATCH(TRUE,ISNUMBER(B8:$B$44),0))*1000),(INDEX(B8:$B$44,MATCH(TRUE,ISNUMBER(B8:$B$44),0))-LOOKUP(99^99,B$2:B7))*1000)) -> 52000 | D8: =IF(OR(B8="HOL",B8="SUN",B8="SAT",B8="No Read",B8=""),"",ROUND(C8/E5,1)) -> 52000 | E8: =IF(B8="",E5,IF(C8="",IF(E5>0,E5+1,1),1)) -> 1 | F8: =IF(B8="","",ROUND(OFFSET(D8,MATCH(TRUE,INDEX(D9:D$44<>"",0),0),0),0)) -> 38000 | G8: 2221425 | H8: =IF(OR(G8="HOL",G8="SUN",G8="SAT",G8="No Read",G8=""),"",IF(INDEX(G8:$G$44,MATCH(TRUE,ISNUMBER(G8:$G$44),0))<LOOKUP(99^99,G$2:G7),(INDEX(G8:$G$44,MATCH(TRUE,ISNUMBER(G8:$G$44),0))*100),(INDEX(G8:$G$44,MATCH(TRUE,ISNUMBER(G8:$G$44),0))-LOOKUP(99^99,G$2:G7))*100)) -> 148400 | I8: =IF(OR(G8="HOL",G8="SUN",G8="SAT",G8="No Read",G8=""),"",ROUND(H8/J5,1)) -> 148400 | J8: =IF(G8="",J5,IF(H8="",IF(J5>0,J5+1,1),1)) -> 1 | K8: =IF(G8="","",ROUND(OFFSET(I8,MATCH(TRUE,INDEX(I9:I$44<>"",0),0),0),0)) -> 173000 | L8: 258812 | M8: =IF(OR(L8="HOL",L8="SUN",L8="SAT",L8="No Read",L8=""),"",IF(INDEX(L8:$L$44,MATCH(TRUE,ISNUMBER(L8:$L$44),0))<LOOKUP(99^99,L$2:L7),(INDEX(L8:$L$44,MATCH(TRUE,ISNUMBER(L8:$L$44),0))*1000),(INDEX(L8:$L$44,MATCH(TRUE,ISNUMBER(L8:$L$44),0))-LOOKUP(99^99,L$2:L7))*1000)) -> 62000 | N8: =IF(OR(L8="HOL",L8="SUN",L8="SAT",L8="No Read",L8=""),"",ROUND(M8/O5,1)) -> 62000 | O8: =IF(L8="",O5,IF(M8="",IF(O5>0,O5+1,1),1)) -> 1 | P8: =IF(L8="","",ROUND(OFFSET(N8,MATCH(TRUE,INDEX(N9:N$44<>"",0),0),0),0)) -> 42000 | Q8: 1850837 | R8: =IF(OR(Q8="HOL",Q8="SUN",Q8="SAT",Q8="No Read",Q8=""),"",IF(INDEX(Q8:$Q$44,MATCH(TRUE,ISNUMBER(Q8:$Q$44),0))<LOOKUP(99^99,Q$2:Q7),(INDEX(Q8:$Q$44,MATCH(TRUE,ISNUMBER(Q8:$Q$44),0))*1000),(INDEX(Q8:$Q$44,MATCH(TRUE,ISNUMBER(Q8:$Q$44),0))-LOOKUP(99^99,Q$2:Q7))*1000)) -> 234000 | S8: =IF(OR(Q8="HOL",Q8="SUN",Q8="SAT",Q8="No Read",Q8=""),"",ROUND(R8/T5,1)) -> 234000 | T8: =IF(Q8="",T5,IF(R8="",IF(T5>0,T5+1,1),1)) -> 1 | U8: =IF(Q8="","",ROUND(OFFSET(S8,MATCH(TRUE,INDEX(S9:S$44<>"",0),0),0),0)) -> 279000
A9: 2 | B9: 164252 | C9: =IF(OR(B9="HOL",B9="SUN",B9="SAT",B9="No Read",B9=""),"",IF(INDEX(B9:$B$44,MATCH(TRUE,ISNUMBER(B9:$B$44),0))<LOOKUP(99^99,B$2:B8),(INDEX(B9:$B$44,MATCH(TRUE,ISNUMBER(B9:$B$44),0))*1000),(INDEX(B9:$B$44,MATCH(TRUE,ISNUMBER(B9:$B$44),0))-LOOKUP(99^99,B$2:B8))*1000)) -> 38000 | D9: =IF(OR(B9="HOL",B9="SUN",B9="SAT",B9="No Read",B9=""),"",ROUND(C9/E8,1)) -> 38000 | E9: =IF(B9="",E8,IF(C9="",IF(E8>0,E8+1,1),1)) -> 1 | F9: =IF(B9="","",ROUND(OFFSET(D9,MATCH(TRUE,INDEX(D10:D$44<>"",0),0),0),0)) -> 112000 | G9: 2223155 | H9: =IF(OR(G9="HOL",G9="SUN",G9="SAT",G9="No Read",G9=""),"",IF(INDEX(G9:$G$44,MATCH(TRUE,ISNUMBER(G9:$G$44),0))<LOOKUP(99^99,G$2:G8),(INDEX(G9:$G$44,MATCH(TRUE,ISNUMBER(G9:$G$44),0))*100),(INDEX(G9:$G$44,MATCH(TRUE,ISNUMBER(G9:$G$44),0))-LOOKUP(99^99,G$2:G8))*100)) -> 173000 | I9: =IF(OR(G9="HOL",G9="SUN",G9="SAT",G9="No Read",G9=""),"",ROUND(H9/J8,1)) -> 173000 | J9: =IF(G9="",J8,IF(H9="",IF(J8>0,J8+1,1),1)) -> 1 | K9: =IF(G9="","",ROUND(OFFSET(I9,MATCH(TRUE,INDEX(I10:I$44<>"",0),0),0),0)) -> 164700 | L9: 258854 | M9: =IF(OR(L9="HOL",L9="SUN",L9="SAT",L9="No Read",L9=""),"",IF(INDEX(L9:$L$44,MATCH(TRUE,ISNUMBER(L9:$L$44),0))<LOOKUP(99^99,L$2:L8),(INDEX(L9:$L$44,MATCH(TRUE,ISNUMBER(L9:$L$44),0))*1000),(INDEX(L9:$L$44,MATCH(TRUE,ISNUMBER(L9:$L$44),0))-LOOKUP(99^99,L$2:L8))*1000)) -> 42000 | N9: =IF(OR(L9="HOL",L9="SUN",L9="SAT",L9="No Read",L9=""),"",ROUND(M9/O8,1)) -> 42000 | O9: =IF(L9="",O8,IF(M9="",IF(O8>0,O8+1,1),1)) -> 1 | P9: =IF(L9="","",ROUND(OFFSET(N9,MATCH(TRUE,INDEX(N10:N$44<>"",0),0),0),0)) -> 129000 | Q9: 1851116 | R9: =IF(OR(Q9="HOL",Q9="SUN",Q9="SAT",Q9="No Read",Q9=""),"",IF(INDEX(Q9:$Q$44,MATCH(TRUE,ISNUMBER(Q9:$Q$44),0))<LOOKUP(99^99,Q$2:Q8),(INDEX(Q9:$Q$44,MATCH(TRUE,ISNUMBER(Q9:$Q$44),0))*1000),(INDEX(Q9:$Q$44,MATCH(TRUE,ISNUMBER(Q9:$Q$44),0))-LOOKUP(99^99,Q$2:Q8))*1000)) -> 279000 | S9: =IF(OR(Q9="HOL",Q9="SUN",Q9="SAT",Q9="No Read",Q9=""),"",ROUND(R9/T8,1)) -> 279000 | T9: =IF(Q9="",T8,IF(R9="",IF(T8>0,T8+1,1),1)) -> 1 | U9: =IF(Q9="","",ROUND(OFFSET(S9,MATCH(TRUE,INDEX(S10:S$44<>"",0),0),0),0)) -> 273000
A10: 3 | B10: 164364 | C10: =IF(OR(B10="HOL",B10="SUN",B10="SAT",B10="No Read",B10=""),"",IF(INDEX(B10:$B$44,MATCH(TRUE,ISNUMBER(B10:$B$44),0))<LOOKUP(99^99,B$2:B9),(INDEX(B10:$B$44,MATCH(TRUE,ISNUMBER(B10:$B$44),0))*1000),(INDEX(B10:$B$44,MATCH(TRUE,ISNUMBER(B10:$B$44),0))-LOOKUP(99^99,B$2:B9))*1000)) -> 112000 | D10: =IF(OR(B10="HOL",B10="SUN",B10="SAT",B10="No Read",B10=""),"",ROUND(C10/E9,1)) -> 112000 | E10: =IF(B10="",E9,IF(C10="",IF(E9>0,E9+1,1),1)) -> 1 | F10: =IF(B10="","",ROUND(OFFSET(D10,MATCH(TRUE,INDEX(D11:D$44<>"",0),0),0),0)) -> 74000 | G10: 2224802 | H10: =IF(OR(G10="HOL",G10="SUN",G10="SAT",G10="No Read",G10=""),"",IF(INDEX(G10:$G$44,MATCH(TRUE,ISNUMBER(G10:$G$44),0))<LOOKUP(99^99,G$2:G9),(INDEX(G10:$G$44,MATCH(TRUE,ISNUMBER(G10:$G$44),0))*100),(INDEX(G10:$G$44,MATCH(TRUE,ISNUMBER(G10:$G$44),0))-LOOKUP(99^99,G$2:G9))*100)) -> 164700 | I10: =IF(OR(G10="HOL",G10="SUN",G10="SAT",G10="No Read",G10=""),"",ROUND(H10/J9,1)) -> 164700 | J10: =IF(G10="",J9,IF(H10="",IF(J9>0,J9+1,1),1)) -> 1 | K10: =IF(G10="","",ROUND(OFFSET(I10,MATCH(TRUE,INDEX(I11:I$44<>"",0),0),0),0)) -> 151800 | L10: 258983 | M10: =IF(OR(L10="HOL",L10="SUN",L10="SAT",L10="No Read",L10=""),"",IF(INDEX(L10:$L$44,MATCH(TRUE,ISNUMBER(L10:$L$44),0))<LOOKUP(99^99,L$2:L9),(INDEX(L10:$L$44,MATCH(TRUE,ISNUMBER(L10:$L$44),0))*1000),(INDEX(L10:$L$44,MATCH(TRUE,ISNUMBER(L10:$L$44),0))-LOOKUP(99^99,L$2:L9))*1000)) -> 129000 | N10: =IF(OR(L10="HOL",L10="SUN",L10="SAT",L10="No Read",L10=""),"",ROUND(M10/O9,1)) -> 129000 | O10: =IF(L10="",O9,IF(M10="",IF(O9>0,O9+1,1),1)) -> 1 | P10: =IF(L10="","",ROUND(OFFSET(N10,MATCH(TRUE,INDEX(N11:N$44<>"",0),0),0),0)) -> 91000 | Q10: 1851389 | R10: =IF(OR(Q10="HOL",Q10="SUN",Q10="SAT",Q10="No Read",Q10=""),"",IF(INDEX(Q10:$Q$44,MATCH(TRUE,ISNUMBER(Q10:$Q$44),0))<LOOKUP(99^99,Q$2:Q9),(INDEX(Q10:$Q$44,MATCH(TRUE,ISNUMBER(Q10:$Q$44),0))*1000),(INDEX(Q10:$Q$44,MATCH(TRUE,ISNUMBER(Q10:$Q$44),0))-LOOKUP(99^99,Q$2:Q9))*1000)) -> 273000 | S10: =IF(OR(Q10="HOL",Q10="SUN",Q10="SAT",Q10="No Read",Q10=""),"",ROUND(R10/T9,1)) -> 273000 | T10: =IF(Q10="",T9,IF(R10="",IF(T9>0,T9+1,1),1)) -> 1 | U10: =IF(Q10="","",ROUND(OFFSET(S10,MATCH(TRUE,INDEX(S11:S$44<>"",0),0),0),0)) -> 239000
A11: 4 | B11: 164438 | C11: =IF(OR(B11="HOL",B11="SUN",B11="SAT",B11="No Read",B11=""),"",IF(INDEX(B11:$B$44,MATCH(TRUE,ISNUMBER(B11:$B$44),0))<LOOKUP(99^99,B$2:B10),(INDEX(B11:$B$44,MATCH(TRUE,ISNUMBER(B11:$B$44),0))*1000),(INDEX(B11:$B$44,MATCH(TRUE,ISNUMBER(B11:$B$44),0))-LOOKUP(99^99,B$2:B10))*1000)) -> 74000 | D11: 74000 | E11: =IF(B11="",E10,IF(C11="",IF(E10>0,E10+1,1),1)) -> 1 | F11: =IF(B11="","",ROUND(OFFSET(D11,MATCH(TRUE,INDEX(D12:D$44<>"",0),0),0),0)) -> 110000 | G11: 2226320 | H11: =IF(OR(G11="HOL",G11="SUN",G11="SAT",G11="No Read",G11=""),"",IF(INDEX(G11:$G$44,MATCH(TRUE,ISNUMBER(G11:$G$44),0))<LOOKUP(99^99,G$2:G10),(INDEX(G11:$G$44,MATCH(TRUE,ISNUMBER(G11:$G$44),0))*100),(INDEX(G11:$G$44,MATCH(TRUE,ISNUMBER(G11:$G$44),0))-LOOKUP(99^99,G$2:G10))*100)) -> 151800 | I11: 151800 | J11: =IF(G11="",J10,IF(H11="",IF(J10>0,J10+1,1),1)) -> 1 | K11: =IF(G11="","",ROUND(OFFSET(I11,MATCH(TRUE,INDEX(I12:I$44<>"",0),0),0),0)) -> 200800 | L11: 259074 | M11: =IF(OR(L11="HOL",L11="SUN",L11="SAT",L11="No Read",L11=""),"",IF(INDEX(L11:$L$44,MATCH(TRUE,ISNUMBER(L11:$L$44),0))<LOOKUP(99^99,L$2:L10),(INDEX(L11:$L$44,MATCH(TRUE,ISNUMBER(L11:$L$44),0))*1000),(INDEX(L11:$L$44,MATCH(TRUE,ISNUMBER(L11:$L$44),0))-LOOKUP(99^99,L$2:L10))*1000)) -> 91000 | N11: 91000 | O11: =IF(L11="",O10,IF(M11="",IF(O10>0,O10+1,1),1)) -> 1 | P11: =IF(L11="","",ROUND(OFFSET(N11,MATCH(TRUE,INDEX(N12:N$44<>"",0),0),0),0)) -> 136000 | Q11: 1851628 | R11: =IF(OR(Q11="HOL",Q11="SUN",Q11="SAT",Q11="No Read",Q11=""),"",IF(INDEX(Q11:$Q$44,MATCH(TRUE,ISNUMBER(Q11:$Q$44),0))<LOOKUP(99^99,Q$2:Q10),(INDEX(Q11:$Q$44,MATCH(TRUE,ISNUMBER(Q11:$Q$44),0))*1000),(INDEX(Q11:$Q$44,MATCH(TRUE,ISNUMBER(Q11:$Q$44),0))-LOOKUP(99^99,Q$2:Q10))*1000)) -> 239000 | S11: 239000 | T11: =IF(Q11="",T10,IF(R11="",IF(T10>0,T10+1,1),1)) -> 1 | U11: =IF(Q11="","",ROUND(OFFSET(S11,MATCH(TRUE,INDEX(S12:S$44<>"",0),0),0),0)) -> 303000
A12: 5 | B12: 164548 | C12: =IF(OR(B12="HOL",B12="SUN",B12="SAT",B12="No Read",B12=""),"",IF(INDEX(B12:$B$44,MATCH(TRUE,ISNUMBER(B12:$B$44),0))<LOOKUP(99^99,B$2:B11),(INDEX(B12:$B$44,MATCH(TRUE,ISNUMBER(B12:$B$44),0))*1000),(INDEX(B12:$B$44,MATCH(TRUE,ISNUMBER(B12:$B$44),0))-LOOKUP(99^99,B$2:B11))*1000)) -> 110000 | D12: 110000 | E12: =IF(B12="",E11,IF(C12="",IF(E11>0,E11+1,1),1)) -> 1 | F12: =IF(B12="","",ROUND(OFFSET(D12,MATCH(TRUE,INDEX(D13:D$44<>"",0),0),0),0)) -> 42000 | G12: 2228328 | H12: =IF(OR(G12="HOL",G12="SUN",G12="SAT",G12="No Read",G12=""),"",IF(INDEX(G12:$G$44,MATCH(TRUE,ISNUMBER(G12:$G$44),0))<LOOKUP(99^99,G$2:G11),(INDEX(G12:$G$44,MATCH(TRUE,ISNUMBER(G12:$G$44),0))*100),(INDEX(G12:$G$44,MATCH(TRUE,ISNUMBER(G12:$G$44),0))-LOOKUP(99^99,G$2:G11))*100)) -> 200800 | I12: 200800 | J12: =IF(G12="",J11,IF(H12="",IF(J11>0,J11+1,1),1)) -> 1 | K12: =IF(G12="","",ROUND(OFFSET(I12,MATCH(TRUE,INDEX(I13:I$44<>"",0),0),0),0)) -> 138700 | L12: 259210 | M12: =IF(OR(L12="HOL",L12="SUN",L12="SAT",L12="No Read",L12=""),"",IF(INDEX(L12:$L$44,MATCH(TRUE,ISNUMBER(L12:$L$44),0))<LOOKUP(99^99,L$2:L11),(INDEX(L12:$L$44,MATCH(TRUE,ISNUMBER(L12:$L$44),0))*1000),(INDEX(L12:$L$44,MATCH(TRUE,ISNUMBER(L12:$L$44),0))-LOOKUP(99^99,L$2:L11))*1000)) -> 136000 | N12: 136000 | O12: =IF(L12="",O11,IF(M12="",IF(O11>0,O11+1,1),1)) -> 1 | P12: =IF(L12="","",ROUND(OFFSET(N12,MATCH(TRUE,INDEX(N13:N$44<>"",0),0),0),0)) -> 36000 | Q12: 1851931 | R12: =IF(OR(Q12="HOL",Q12="SUN",Q12="SAT",Q12="No Read",Q12=""),"",IF(INDEX(Q12:$Q$44,MATCH(TRUE,ISNUMBER(Q12:$Q$44),0))<LOOKUP(99^99,Q$2:Q11),(INDEX(Q12:$Q$44,MATCH(TRUE,ISNUMBER(Q12:$Q$44),0))*1000),(INDEX(Q12:$Q$44,MATCH(TRUE,ISNUMBER(Q12:$Q$44),0))-LOOKUP(99^99,Q$2:Q11))*1000)) -> 303000 | S12: 303000 | T12: =IF(Q12="",T11,IF(R12="",IF(T11>0,T11+1,1),1)) -> 1 | U12: =IF(Q12="","",ROUND(OFFSET(S12,MATCH(TRUE,INDEX(S13:S$44<>"",0),0),0),0)) -> 219000
A13: 6 | B13: 164590 | C13: =IF(OR(B13="HOL",B13="SUN",B13="SAT",B13="No Read",B13=""),"",IF(INDEX(B13:$B$44,MATCH(TRUE,ISNUMBER(B13:$B$44),0))<LOOKUP(99^99,B$2:B12),(INDEX(B13:$B$44,MATCH(TRUE,ISNUMBER(B13:$B$44),0))*1000),(INDEX(B13:$B$44,MATCH(TRUE,ISNUMBER(B13:$B$44),0))-LOOKUP(99^99,B$2:B12))*1000)) -> 42000 | D13: 42000 | E13: =IF(B13="",E12,IF(C13="",IF(E12>0,E12+1,1),1)) -> 1 | F13: =IF(B13="","",ROUND(OFFSET(D13,MATCH(TRUE,INDEX(D14:D$44<>"",0),0),0),0)) -> 43000 | G13: 2229715 | H13: =IF(OR(G13="HOL",G13="SUN",G13="SAT",G13="No Read",G13=""),"",IF(INDEX(G13:$G$44,MATCH(TRUE,ISNUMBER(G13:$G$44),0))<LOOKUP(99^99,G$2:G12),(INDEX(G13:$G$44,MATCH(TRUE,ISNUMBER(G13:$G$44),0))*100),(INDEX(G13:$G$44,MATCH(TRUE,ISNUMBER(G13:$G$44),0))-LOOKUP(99^99,G$2:G12))*100)) -> 138700 | I13: 138700 | J13: =IF(G13="",J12,IF(H13="",IF(J12>0,J12+1,1),1)) -> 1 | K13: =IF(G13="","",ROUND(OFFSET(I13,MATCH(TRUE,INDEX(I14:I$44<>"",0),0),0),0)) -> 157500 | L13: 259246 | M13: =IF(OR(L13="HOL",L13="SUN",L13="SAT",L13="No Read",L13=""),"",IF(INDEX(L13:$L$44,MATCH(TRUE,ISNUMBER(L13:$L$44),0))<LOOKUP(99^99,L$2:L12),(INDEX(L13:$L$44,MATCH(TRUE,ISNUMBER(L13:$L$44),0))*1000),(INDEX(L13:$L$44,MATCH(TRUE,ISNUMBER(L13:$L$44),0))-LOOKUP(99^99,L$2:L12))*1000)) -> 36000 | N13: 36000 | O13: =IF(L13="",O12,IF(M13="",IF(O12>0,O12+1,1),1)) -> 1 | P13: =IF(L13="","",ROUND(OFFSET(N13,MATCH(TRUE,INDEX(N14:N$44<>"",0),0),0),0)) -> 43000 | Q13: 1852150 | R13: =IF(OR(Q13="HOL",Q13="SUN",Q13="SAT",Q13="No Read",Q13=""),"",IF(INDEX(Q13:$Q$44,MATCH(TRUE,ISNUMBER(Q13:$Q$44),0))<LOOKUP(99^99,Q$2:Q12),(INDEX(Q13:$Q$44,MATCH(TRUE,ISNUMBER(Q13:$Q$44),0))*1000),(INDEX(Q13:$Q$44,MATCH(TRUE,ISNUMBER(Q13:$Q$44),0))-LOOKUP(99^99,Q$2:Q12))*1000)) -> 219000 | S13: 219000 | T13: =IF(Q13="",T12,IF(R13="",IF(T12>0,T12+1,1),1)) -> 1 | U13: =IF(Q13="","",ROUND(OFFSET(S13,MATCH(TRUE,INDEX(S14:S$44<>"",0),0),0),0)) -> 246000
A14: 7 | B14: 164633 | C14: =IF(OR(B14="HOL",B14="SUN",B14="SAT",B14="No Read",B14=""),"",IF(INDEX(B14:$B$44,MATCH(TRUE,ISNUMBER(B14:$B$44),0))<LOOKUP(99^99,B$2:B13),(INDEX(B14:$B$44,MATCH(TRUE,ISNUMBER(B14:$B$44),0))*1000),(INDEX(B14:$B$44,MATCH(TRUE,ISNUMBER(B14:$B$44),0))-LOOKUP(99^99,B$2:B13))*1000)) -> 43000 | D14: 43000 | E14: 1 | F14: =IF(B14="","",ROUND(OFFSET(D14,MATCH(TRUE,INDEX(D15:D$44<>"",0),0),0),0)) -> 107000 | G14: 2231290 | H14: =IF(OR(G14="HOL",G14="SUN",G14="SAT",G14="No Read",G14=""),"",IF(INDEX(G14:$G$44,MATCH(TRUE,ISNUMBER(G14:$G$44),0))<LOOKUP(99^99,G$2:G13),(INDEX(G14:$G$44,MATCH(TRUE,ISNUMBER(G14:$G$44),0))*100),(INDEX(G14:$G$44,MATCH(TRUE,ISNUMBER(G14:$G$44),0))-LOOKUP(99^99,G$2:G13))*100)) -> 157500 | I14: 157500 | J14: 1 | K14: =IF(G14="","",ROUND(OFFSET(I14,MATCH(TRUE,INDEX(I15:I$44<>"",0),0),0),0)) -> 154000 | L14: 259289 | M14: =IF(OR(L14="HOL",L14="SUN",L14="SAT",L14="No Read",L14=""),"",IF(INDEX(L14:$L$44,MATCH(TRUE,ISNUMBER(L14:$L$44),0))<LOOKUP(99^99,L$2:L13),(INDEX(L14:$L$44,MATCH(TRUE,ISNUMBER(L14:$L$44),0))*1000),(INDEX(L14:$L$44,MATCH(TRUE,ISNUMBER(L14:$L$44),0))-LOOKUP(99^99,L$2:L13))*1000)) -> 43000 | N14: 43000 | O14: 1 | P14: =IF(L14="","",ROUND(OFFSET(N14,MATCH(TRUE,INDEX(N15:N$44<>"",0),0),0),0)) -> 122000 | Q14: 1852396 | R14: =IF(OR(Q14="HOL",Q14="SUN",Q14="SAT",Q14="No Read",Q14=""),"",IF(INDEX(Q14:$Q$44,MATCH(TRUE,ISNUMBER(Q14:$Q$44),0))<LOOKUP(99^99,Q$2:Q13),(INDEX(Q14:$Q$44,MATCH(TRUE,ISNUMBER(Q14:$Q$44),0))*1000),(INDEX(Q14:$Q$44,MATCH(TRUE,ISNUMBER(Q14:$Q$44),0))-LOOKUP(99^99,Q$2:Q13))*1000)) -> 246000 | S14: 246000 | T14: 1 | U14: =IF(Q14="","",ROUND(OFFSET(S14,MATCH(TRUE,INDEX(S15:S$44<>"",0),0),0),0)) -> 240000
A15: 8 | B15: 164740 | C15: =IF(OR(B15="HOL",B15="SUN",B15="SAT",B15="No Read",B15=""),"",IF(INDEX(B15:$B$44,MATCH(TRUE,ISNUMBER(B15:$B$44),0))<LOOKUP(99^99,B$2:B14),(INDEX(B15:$B$44,MATCH(TRUE,ISNUMBER(B15:$B$44),0))*1000),(INDEX(B15:$B$44,MATCH(TRUE,ISNUMBER(B15:$B$44),0))-LOOKUP(99^99,B$2:B14))*1000)) -> 107000 | D15: 107000 | E15: 1 | F15: =IF(B15="","",ROUND(OFFSET(D15,MATCH(TRUE,INDEX(D16:D$44<>"",0),0),0),0)) -> 51000 | G15: 2232830 | H15: =IF(OR(G15="HOL",G15="SUN",G15="SAT",G15="No Read",G15=""),"",IF(INDEX(G15:$G$44,MATCH(TRUE,ISNUMBER(G15:$G$44),0))<LOOKUP(99^99,G$2:G14),(INDEX(G15:$G$44,MATCH(TRUE,ISNUMBER(G15:$G$44),0))*100),(INDEX(G15:$G$44,MATCH(TRUE,ISNUMBER(G15:$G$44),0))-LOOKUP(99^99,G$2:G14))*100)) -> 154000 | I15: 154000 | J15: 1 | K15: =IF(G15="","",ROUND(OFFSET(I15,MATCH(TRUE,INDEX(I16:I$44<>"",0),0),0),0)) -> 170500 | L15: 259411 | M15: =IF(OR(L15="HOL",L15="SUN",L15="SAT",L15="No Read",L15=""),"",IF(INDEX(L15:$L$44,MATCH(TRUE,ISNUMBER(L15:$L$44),0))<LOOKUP(99^99,L$2:L14),(INDEX(L15:$L$44,MATCH(TRUE,ISNUMBER(L15:$L$44),0))*1000),(INDEX(L15:$L$44,MATCH(TRUE,ISNUMBER(L15:$L$44),0))-LOOKUP(99^99,L$2:L14))*1000)) -> 122000 | N15: 122000 | O15: 1 | P15: =IF(L15="","",ROUND(OFFSET(N15,MATCH(TRUE,INDEX(N16:N$44<>"",0),0),0),0)) -> 57000 | Q15: 1852636 | R15: =IF(OR(Q15="HOL",Q15="SUN",Q15="SAT",Q15="No Read",Q15=""),"",IF(INDEX(Q15:$Q$44,MATCH(TRUE,ISNUMBER(Q15:$Q$44),0))<LOOKUP(99^99,Q$2:Q14),(INDEX(Q15:$Q$44,MATCH(TRUE,ISNUMBER(Q15:$Q$44),0))*1000),(INDEX(Q15:$Q$44,MATCH(TRUE,ISNUMBER(Q15:$Q$44),0))-LOOKUP(99^99,Q$2:Q14))*1000)) -> 240000 | S15: 240000 | T15: 1 | U15: =IF(Q15="","",ROUND(OFFSET(S15,MATCH(TRUE,INDEX(S16:S$44<>"",0),0),0),0)) -> 268000
A16: 9 | B16: 164791 | C16: =IF(OR(B16="HOL",B16="SUN",B16="SAT",B16="No Read",B16=""),"",IF(INDEX(B16:$B$44,MATCH(TRUE,ISNUMBER(B16:$B$44),0))<LOOKUP(99^99,B$2:B15),(INDEX(B16:$B$44,MATCH(TRUE,ISNUMBER(B16:$B$44),0))*1000),(INDEX(B16:$B$44,MATCH(TRUE,ISNUMBER(B16:$B$44),0))-LOOKUP(99^99,B$2:B15))*1000)) -> 51000 | D16: 51000 | E16: 1 | F16: =IF(B16="","",ROUND(OFFSET(D16,MATCH(TRUE,INDEX(D17:D$44<>"",0),0),0),0)) -> 37000 | G16: 2234535 | H16: =IF(OR(G16="HOL",G16="SUN",G16="SAT",G16="No Read",G16=""),"",IF(INDEX(G16:$G$44,MATCH(TRUE,ISNUMBER(G16:$G$44),0))<LOOKUP(99^99,G$2:G15),(INDEX(G16:$G$44,MATCH(TRUE,ISNUMBER(G16:$G$44),0))*100),(INDEX(G16:$G$44,MATCH(TRUE,ISNUMBER(G16:$G$44),0))-LOOKUP(99^99,G$2:G15))*100)) -> 170500 | I16: 170500 | J16: 1 | K16: =IF(G16="","",ROUND(OFFSET(I16,MATCH(TRUE,INDEX(I17:I$44<>"",0),0),0),0)) -> 148500 | L16: 259468 | M16: =IF(OR(L16="HOL",L16="SUN",L16="SAT",L16="No Read",L16=""),"",IF(INDEX(L16:$L$44,MATCH(TRUE,ISNUMBER(L16:$L$44),0))<LOOKUP(99^99,L$2:L15),(INDEX(L16:$L$44,MATCH(TRUE,ISNUMBER(L16:$L$44),0))*1000),(INDEX(L16:$L$44,MATCH(TRUE,ISNUMBER(L16:$L$44),0))-LOOKUP(99^99,L$2:L15))*1000)) -> 57000 | N16: 57000 | O16: 1 | P16: =IF(L16="","",ROUND(OFFSET(N16,MATCH(TRUE,INDEX(N17:N$44<>"",0),0),0),0)) -> 44000 | Q16: 1852904 | R16: =IF(OR(Q16="HOL",Q16="SUN",Q16="SAT",Q16="No Read",Q16=""),"",IF(INDEX(Q16:$Q$44,MATCH(TRUE,ISNUMBER(Q16:$Q$44),0))<LOOKUP(99^99,Q$2:Q15),(INDEX(Q16:$Q$44,MATCH(TRUE,ISNUMBER(Q16:$Q$44),0))*1000),(INDEX(Q16:$Q$44,MATCH(TRUE,ISNUMBER(Q16:$Q$44),0))-LOOKUP(99^99,Q$2:Q15))*1000)) -> 268000 | S16: 268000 | T16: 1 | U16: =IF(Q16="","",ROUND(OFFSET(S16,MATCH(TRUE,INDEX(S17:S$44<>"",0),0),0),0)) -> 245000
A17: 10 | B17: 164828 | C17: =IF(OR(B17="HOL",B17="SUN",B17="SAT",B17="No Read",B17=""),"",IF(INDEX(B17:$B$44,MATCH(TRUE,ISNUMBER(B17:$B$44),0))<LOOKUP(99^99,B$2:B16),(INDEX(B17:$B$44,MATCH(TRUE,ISNUMBER(B17:$B$44),0))*1000),(INDEX(B17:$B$44,MATCH(TRUE,ISNUMBER(B17:$B$44),0))-LOOKUP(99^99,B$2:B16))*1000)) -> 37000 | D17: 37000 | E17: 1 | F17: =IF(B17="","",ROUND(OFFSET(D17,MATCH(TRUE,INDEX(D18:D$44<>"",0),0),0),0)) -> 108000 | G17: 2236020 | H17: =IF(OR(G17="HOL",G17="SUN",G17="SAT",G17="No Read",G17=""),"",IF(INDEX(G17:$G$44,MATCH(TRUE,ISNUMBER(G17:$G$44),0))<LOOKUP(99^99,G$2:G16),(INDEX(G17:$G$44,MATCH(TRUE,ISNUMBER(G17:$G$44),0))*100),(INDEX(G17:$G$44,MATCH(TRUE,ISNUMBER(G17:$G$44),0))-LOOKUP(99^99,G$2:G16))*100)) -> 148500 | I17: 148500 | J17: 1 | K17: =IF(G17="","",ROUND(OFFSET(I17,MATCH(TRUE,INDEX(I18:I$44<>"",0),0),0),0)) -> 162500 | L17: 259512 | M17: =IF(OR(L17="HOL",L17="SUN",L17="SAT",L17="No Read",L17=""),"",IF(INDEX(L17:$L$44,MATCH(TRUE,ISNUMBER(L17:$L$44),0))<LOOKUP(99^99,L$2:L16),(INDEX(L17:$L$44,MATCH(TRUE,ISNUMBER(L17:$L$44),0))*1000),(INDEX(L17:$L$44,MATCH(TRUE,ISNUMBER(L17:$L$44),0))-LOOKUP(99^99,L$2:L16))*1000)) -> 44000 | N17: 44000 | O17: 1 | P17: =IF(L17="","",ROUND(OFFSET(N17,MATCH(TRUE,INDEX(N18:N$44<>"",0),0),0),0)) -> 124000 | Q17: 1853149 | R17: =IF(OR(Q17="HOL",Q17="SUN",Q17="SAT",Q17="No Read",Q17=""),"",IF(INDEX(Q17:$Q$44,MATCH(TRUE,ISNUMBER(Q17:$Q$44),0))<LOOKUP(99^99,Q$2:Q16),(INDEX(Q17:$Q$44,MATCH(TRUE,ISNUMBER(Q17:$Q$44),0))*1000),(INDEX(Q17:$Q$44,MATCH(TRUE,ISNUMBER(Q17:$Q$44),0))-LOOKUP(99^99,Q$2:Q16))*1000)) -> 245000 | S17: 245000 | T17: 1 | U17: =IF(Q17="","",ROUND(OFFSET(S17,MATCH(TRUE,INDEX(S18:S$44<>"",0),0),0),0)) -> 265000
A18: 11 | B18: 164936 | C18: =IF(OR(B18="HOL",B18="SUN",B18="SAT",B18="No Read",B18=""),"",IF(INDEX(B18:$B$44,MATCH(TRUE,ISNUMBER(B18:$B$44),0))<LOOKUP(99^99,B$2:B17),(INDEX(B18:$B$44,MATCH(TRUE,ISNUMBER(B18:$B$44),0))*1000),(INDEX(B18:$B$44,MATCH(TRUE,ISNUMBER(B18:$B$44),0))-LOOKUP(99^99,B$2:B17))*1000)) -> 108000 | D18: =IF(OR(B18="HOL",B18="SUN",B18="SAT",B18="No Read",B18=""),"",ROUND(C18/E17,1)) -> 108000 | E18: 1 | F18: =IF(B18="","",ROUND(OFFSET(D18,MATCH(TRUE,INDEX(D19:D$44<>"",0),0),0),0)) -> 57000 | G18: 2237645 | H18: =IF(OR(G18="HOL",G18="SUN",G18="SAT",G18="No Read",G18=""),"",IF(INDEX(G18:$G$44,MATCH(TRUE,ISNUMBER(G18:$G$44),0))<LOOKUP(99^99,G$2:G17),(INDEX(G18:$G$44,MATCH(TRUE,ISNUMBER(G18:$G$44),0))*100),(INDEX(G18:$G$44,MATCH(TRUE,ISNUMBER(G18:$G$44),0))-LOOKUP(99^99,G$2:G17))*100)) -> 162500 | I18: =IF(OR(G18="HOL",G18="SUN",G18="SAT",G18="No Read",G18=""),"",ROUND(H18/J17,1)) -> 162500 | J18: 1 | K18: =IF(G18="","",ROUND(OFFSET(I18,MATCH(TRUE,INDEX(I19:I$44<>"",0),0),0),0)) -> 165300 | L18: 259636 | M18: =IF(OR(L18="HOL",L18="SUN",L18="SAT",L18="No Read",L18=""),"",IF(INDEX(L18:$L$44,MATCH(TRUE,ISNUMBER(L18:$L$44),0))<LOOKUP(99^99,L$2:L17),(INDEX(L18:$L$44,MATCH(TRUE,ISNUMBER(L18:$L$44),0))*1000),(INDEX(L18:$L$44,MATCH(TRUE,ISNUMBER(L18:$L$44),0))-LOOKUP(99^99,L$2:L17))*1000)) -> 124000 | N18: =IF(OR(L18="HOL",L18="SUN",L18="SAT",L18="No Read",L18=""),"",ROUND(M18/O17,1)) -> 124000 | O18: 1 | P18: =IF(L18="","",ROUND(OFFSET(N18,MATCH(TRUE,INDEX(N19:N$44<>"",0),0),0),0)) -> 80000 | Q18: 1853414 | R18: =IF(OR(Q18="HOL",Q18="SUN",Q18="SAT",Q18="No Read",Q18=""),"",IF(INDEX(Q18:$Q$44,MATCH(TRUE,ISNUMBER(Q18:$Q$44),0))<LOOKUP(99^99,Q$2:Q17),(INDEX(Q18:$Q$44,MATCH(TRUE,ISNUMBER(Q18:$Q$44),0))*1000),(INDEX(Q18:$Q$44,MATCH(TRUE,ISNUMBER(Q18:$Q$44),0))-LOOKUP(99^99,Q$2:Q17))*1000)) -> 265000 | S18: =IF(OR(Q18="HOL",Q18="SUN",Q18="SAT",Q18="No Read",Q18=""),"",ROUND(R18/T17,1)) -> 265000 | T18: 1 | U18: =IF(Q18="","",ROUND(OFFSET(S18,MATCH(TRUE,INDEX(S19:S$44<>"",0),0),0),0)) -> 249000 | X18: These four values can be entered instead of numbers
A19: 12 | B19: 164993 | C19: =IF(OR(B19="HOL",B19="SUN",B19="SAT",B19="No Read",B19=""),"",IF(INDEX(B19:$B$44,MATCH(TRUE,ISNUMBER(B19:$B$44),0))<LOOKUP(99^99,B$2:B18),(INDEX(B19:$B$44,MATCH(TRUE,ISNUMBER(B19:$B$44),0))*1000),(INDEX(B19:$B$44,MATCH(TRUE,ISNUMBER(B19:$B$44),0))-LOOKUP(99^99,B$2:B18))*1000)) -> 57000 | D19: =IF(OR(B19="HOL",B19="SUN",B19="SAT",B19="No Read",B19=""),"",ROUND(C19/E18,1)) -> 57000 | E19: 1 | F19: =IF(B19="","",ROUND(OFFSET(D19,MATCH(TRUE,INDEX(D20:D$44<>"",0),0),0),0)) -> 28000 | G19: 2239298 | H19: =IF(OR(G19="HOL",G19="SUN",G19="SAT",G19="No Read",G19=""),"",IF(INDEX(G19:$G$44,MATCH(TRUE,ISNUMBER(G19:$G$44),0))<LOOKUP(99^99,G$2:G18),(INDEX(G19:$G$44,MATCH(TRUE,ISNUMBER(G19:$G$44),0))*100),(INDEX(G19:$G$44,MATCH(TRUE,ISNUMBER(G19:$G$44),0))-LOOKUP(99^99,G$2:G18))*100)) -> 165300 | I19: =IF(OR(G19="HOL",G19="SUN",G19="SAT",G19="No Read",G19=""),"",ROUND(H19/J18,1)) -> 165300 | J19: 1 | K19: =IF(G19="","",ROUND(OFFSET(I19,MATCH(TRUE,INDEX(I20:I$44<>"",0),0),0),0)) -> 179000 | L19: 259716 | M19: =IF(OR(L19="HOL",L19="SUN",L19="SAT",L19="No Read",L19=""),"",IF(INDEX(L19:$L$44,MATCH(TRUE,ISNUMBER(L19:$L$44),0))<LOOKUP(99^99,L$2:L18),(INDEX(L19:$L$44,MATCH(TRUE,ISNUMBER(L19:$L$44),0))*1000),(INDEX(L19:$L$44,MATCH(TRUE,ISNUMBER(L19:$L$44),0))-LOOKUP(99^99,L$2:L18))*1000)) -> 80000 | N19: =IF(OR(L19="HOL",L19="SUN",L19="SAT",L19="No Read",L19=""),"",ROUND(M19/O18,1)) -> 80000 | O19: 1 | P19: =IF(L19="","",ROUND(OFFSET(N19,MATCH(TRUE,INDEX(N20:N$44<>"",0),0),0),0)) -> 18000 | Q19: 1853663 | R19: =IF(OR(Q19="HOL",Q19="SUN",Q19="SAT",Q19="No Read",Q19=""),"",IF(INDEX(Q19:$Q$44,MATCH(TRUE,ISNUMBER(Q19:$Q$44),0))<LOOKUP(99^99,Q$2:Q18),(INDEX(Q19:$Q$44,MATCH(TRUE,ISNUMBER(Q19:$Q$44),0))*1000),(INDEX(Q19:$Q$44,MATCH(TRUE,ISNUMBER(Q19:$Q$44),0))-LOOKUP(99^99,Q$2:Q18))*1000)) -> 249000 | S19: =IF(OR(Q19="HOL",Q19="SUN",Q19="SAT",Q19="No Read",Q19=""),"",ROUND(R19/T18,1)) -> 249000 | T19: 1 | U19: =IF(Q19="","",ROUND(OFFSET(S19,MATCH(TRUE,INDEX(S20:S$44<>"",0),0),0),0)) -> 273000 | X19: SAT - Saturday
A20: 13 | B20: 165021 | C20: =IF(OR(B20="HOL",B20="SUN",B20="SAT",B20="No Read",B20=""),"",IF(INDEX(B20:$B$44,MATCH(TRUE,ISNUMBER(B20:$B$44),0))<LOOKUP(99^99,B$2:B19),(INDEX(B20:$B$44,MATCH(TRUE,ISNUMBER(B20:$B$44),0))*1000),(INDEX(B20:$B$44,MATCH(TRUE,ISNUMBER(B20:$B$44),0))-LOOKUP(99^99,B$2:B19))*1000)) -> 28000 | D20: 28000 | E20: 1 | F20: =IF(B20="","",ROUND(OFFSET(D20,MATCH(TRUE,INDEX(D21:D$44<>"",0),0),0),0)) -> 102000 | G20: 2241088 | H20: =IF(OR(G20="HOL",G20="SUN",G20="SAT",G20="No Read",G20=""),"",IF(INDEX(G20:$G$44,MATCH(TRUE,ISNUMBER(G20:$G$44),0))<LOOKUP(99^99,G$2:G19),(INDEX(G20:$G$44,MATCH(TRUE,ISNUMBER(G20:$G$44),0))*100),(INDEX(G20:$G$44,MATCH(TRUE,ISNUMBER(G20:$G$44),0))-LOOKUP(99^99,G$2:G19))*100)) -> 179000 | I20: 179000 | J20: 1 | K20: =IF(G20="","",ROUND(OFFSET(I20,MATCH(TRUE,INDEX(I21:I$44<>"",0),0),0),0)) -> 150200 | L20: 259734 | M20: =IF(OR(L20="HOL",L20="SUN",L20="SAT",L20="No Read",L20=""),"",IF(INDEX(L20:$L$44,MATCH(TRUE,ISNUMBER(L20:$L$44),0))<LOOKUP(99^99,L$2:L19),(INDEX(L20:$L$44,MATCH(TRUE,ISNUMBER(L20:$L$44),0))*1000),(INDEX(L20:$L$44,MATCH(TRUE,ISNUMBER(L20:$L$44),0))-LOOKUP(99^99,L$2:L19))*1000)) -> 18000 | N20: 18000 | O20: 1 | P20: =IF(L20="","",ROUND(OFFSET(N20,MATCH(TRUE,INDEX(N21:N$44<>"",0),0),0),0)) -> 118000 | Q20: 1853936 | R20: =IF(OR(Q20="HOL",Q20="SUN",Q20="SAT",Q20="No Read",Q20=""),"",IF(INDEX(Q20:$Q$44,MATCH(TRUE,ISNUMBER(Q20:$Q$44),0))<LOOKUP(99^99,Q$2:Q19),(INDEX(Q20:$Q$44,MATCH(TRUE,ISNUMBER(Q20:$Q$44),0))*1000),(INDEX(Q20:$Q$44,MATCH(TRUE,ISNUMBER(Q20:$Q$44),0))-LOOKUP(99^99,Q$2:Q19))*1000)) -> 273000 | S20: 273000 | T20: 1 | U20: =IF(Q20="","",ROUND(OFFSET(S20,MATCH(TRUE,INDEX(S21:S$44<>"",0),0),0),0)) -> 222000 | X20: SUN - Sunday
A21: 14 | B21: 165123 | C21: =IF(OR(B21="HOL",B21="SUN",B21="SAT",B21="No Read",B21=""),"",IF(INDEX(B21:$B$44,MATCH(TRUE,ISNUMBER(B21:$B$44),0))<LOOKUP(99^99,B$2:B20),(INDEX(B21:$B$44,MATCH(TRUE,ISNUMBER(B21:$B$44),0))*1000),(INDEX(B21:$B$44,MATCH(TRUE,ISNUMBER(B21:$B$44),0))-LOOKUP(99^99,B$2:B20))*1000)) -> 102000 | D21: 102000 | E21: 1 | F21: =IF(B21="","",ROUND(OFFSET(D21,MATCH(TRUE,INDEX(D22:D$44<>"",0),0),0),0)) -> 49000 | G21: 2242590 | H21: =IF(OR(G21="HOL",G21="SUN",G21="SAT",G21="No Read",G21=""),"",IF(INDEX(G21:$G$44,MATCH(TRUE,ISNUMBER(G21:$G$44),0))<LOOKUP(99^99,G$2:G20),(INDEX(G21:$G$44,MATCH(TRUE,ISNUMBER(G21:$G$44),0))*100),(INDEX(G21:$G$44,MATCH(TRUE,ISNUMBER(G21:$G$44),0))-LOOKUP(99^99,G$2:G20))*100)) -> 150200 | I21: 150200 | J21: 1 | K21: =IF(G21="","",ROUND(OFFSET(I21,MATCH(TRUE,INDEX(I22:I$44<>"",0),0),0),0)) -> 146400 | L21: 259852 | M21: =IF(OR(L21="HOL",L21="SUN",L21="SAT",L21="No Read",L21=""),"",IF(INDEX(L21:$L$44,MATCH(TRUE,ISNUMBER(L21:$L$44),0))<LOOKUP(99^99,L$2:L20),(INDEX(L21:$L$44,MATCH(TRUE,ISNUMBER(L21:$L$44),0))*1000),(INDEX(L21:$L$44,MATCH(TRUE,ISNUMBER(L21:$L$44),0))-LOOKUP(99^99,L$2:L20))*1000)) -> 118000 | N21: 118000 | O21: 1 | P21: =IF(L21="","",ROUND(OFFSET(N21,MATCH(TRUE,INDEX(N22:N$44<>"",0),0),0),0)) -> 54000 | Q21: 1854158 | R21: =IF(OR(Q21="HOL",Q21="SUN",Q21="SAT",Q21="No Read",Q21=""),"",IF(INDEX(Q21:$Q$44,MATCH(TRUE,ISNUMBER(Q21:$Q$44),0))<LOOKUP(99^99,Q$2:Q20),(INDEX(Q21:$Q$44,MATCH(TRUE,ISNUMBER(Q21:$Q$44),0))*1000),(INDEX(Q21:$Q$44,MATCH(TRUE,ISNUMBER(Q21:$Q$44),0))-LOOKUP(99^99,Q$2:Q20))*1000)) -> 222000 | S21: 222000 | T21: 1 | U21: =IF(Q21="","",ROUND(OFFSET(S21,MATCH(TRUE,INDEX(S22:S$44<>"",0),0),0),0)) -> 223000 | X21: HOL - Holiday
A22: 15 | B22: 165172 | C22: =IF(OR(B22="HOL",B22="SUN",B22="SAT",B22="No Read",B22=""),"",IF(INDEX(B22:$B$44,MATCH(TRUE,ISNUMBER(B22:$B$44),0))<LOOKUP(99^99,B$2:B21),(INDEX(B22:$B$44,MATCH(TRUE,ISNUMBER(B22:$B$44),0))*1000),(INDEX(B22:$B$44,MATCH(TRUE,ISNUMBER(B22:$B$44),0))-LOOKUP(99^99,B$2:B21))*1000)) -> 49000 | D22: 49000 | E22: 1 | F22: =IF(B22="","",ROUND(OFFSET(D22,MATCH(TRUE,INDEX(D23:D$44<>"",0),0),0),0)) -> 36000 | G22: 2244054 | H22: =IF(OR(G22="HOL",G22="SUN",G22="SAT",G22="No Read",G22=""),"",IF(INDEX(G22:$G$44,MATCH(TRUE,ISNUMBER(G22:$G$44),0))<LOOKUP(99^99,G$2:G21),(INDEX(G22:$G$44,MATCH(TRUE,ISNUMBER(G22:$G$44),0))*100),(INDEX(G22:$G$44,MATCH(TRUE,ISNUMBER(G22:$G$44),0))-LOOKUP(99^99,G$2:G21))*100)) -> 146400 | I22: 146400 | J22: 1 | K22: =IF(G22="","",ROUND(OFFSET(I22,MATCH(TRUE,INDEX(I23:I$44<>"",0),0),0),0)) -> 182000 | L22: 259906 | M22: =IF(OR(L22="HOL",L22="SUN",L22="SAT",L22="No Read",L22=""),"",IF(INDEX(L22:$L$44,MATCH(TRUE,ISNUMBER(L22:$L$44),0))<LOOKUP(99^99,L$2:L21),(INDEX(L22:$L$44,MATCH(TRUE,ISNUMBER(L22:$L$44),0))*1000),(INDEX(L22:$L$44,MATCH(TRUE,ISNUMBER(L22:$L$44),0))-LOOKUP(99^99,L$2:L21))*1000)) -> 54000 | N22: 54000 | O22: 1 | P22: =IF(L22="","",ROUND(OFFSET(N22,MATCH(TRUE,INDEX(N23:N$44<>"",0),0),0),0)) -> 43000 | Q22: 1854381 | R22: =IF(OR(Q22="HOL",Q22="SUN",Q22="SAT",Q22="No Read",Q22=""),"",IF(INDEX(Q22:$Q$44,MATCH(TRUE,ISNUMBER(Q22:$Q$44),0))<LOOKUP(99^99,Q$2:Q21),(INDEX(Q22:$Q$44,MATCH(TRUE,ISNUMBER(Q22:$Q$44),0))*1000),(INDEX(Q22:$Q$44,MATCH(TRUE,ISNUMBER(Q22:$Q$44),0))-LOOKUP(99^99,Q$2:Q21))*1000)) -> 223000 | S22: 223000 | T22: 1 | U22: =IF(Q22="","",ROUND(OFFSET(S22,MATCH(TRUE,INDEX(S23:S$44<>"",0),0),0),0)) -> 249000 | X22: NO READ - A day when a reading was not taken
A23: 16 | B23: 165208 | C23: =IF(OR(B23="HOL",B23="SUN",B23="SAT",B23="No Read",B23=""),"",IF(INDEX(B23:$B$44,MATCH(TRUE,ISNUMBER(B23:$B$44),0))<LOOKUP(99^99,B$2:B22),(INDEX(B23:$B$44,MATCH(TRUE,ISNUMBER(B23:$B$44),0))*1000),(INDEX(B23:$B$44,MATCH(TRUE,ISNUMBER(B23:$B$44),0))-LOOKUP(99^99,B$2:B22))*1000)) -> 36000 | D23: =IF(OR(B23="HOL",B23="SUN",B23="SAT",B23="No Read",B23=""),"",ROUND(C23/E22,1)) -> 36000 | E23: 1 | F23: =IF(B23="","",ROUND(OFFSET(D23,MATCH(TRUE,INDEX(D24:D$44<>"",0),0),0),0)) -> 86000 | G23: 2245874 | H23: =IF(OR(G23="HOL",G23="SUN",G23="SAT",G23="No Read",G23=""),"",IF(INDEX(G23:$G$44,MATCH(TRUE,ISNUMBER(G23:$G$44),0))<LOOKUP(99^99,G$2:G22),(INDEX(G23:$G$44,MATCH(TRUE,ISNUMBER(G23:$G$44),0))*100),(INDEX(G23:$G$44,MATCH(TRUE,ISNUMBER(G23:$G$44),0))-LOOKUP(99^99,G$2:G22))*100)) -> 182000 | I23: =IF(OR(G23="HOL",G23="SUN",G23="SAT",G23="No Read",G23=""),"",ROUND(H23/J22,1)) -> 182000 | J23: 1 | K23: =IF(G23="","",ROUND(OFFSET(I23,MATCH(TRUE,INDEX(I24:I$44<>"",0),0),0),0)) -> 148900 | L23: 259949 | M23: =IF(OR(L23="HOL",L23="SUN",L23="SAT",L23="No Read",L23=""),"",IF(INDEX(L23:$L$44,MATCH(TRUE,ISNUMBER(L23:$L$44),0))<LOOKUP(99^99,L$2:L22),(INDEX(L23:$L$44,MATCH(TRUE,ISNUMBER(L23:$L$44),0))*1000),(INDEX(L23:$L$44,MATCH(TRUE,ISNUMBER(L23:$L$44),0))-LOOKUP(99^99,L$2:L22))*1000)) -> 43000 | N23: =IF(OR(L23="HOL",L23="SUN",L23="SAT",L23="No Read",L23=""),"",ROUND(M23/O22,1)) -> 43000 | O23: 1 | P23: =IF(L23="","",ROUND(OFFSET(N23,MATCH(TRUE,INDEX(N24:N$44<>"",0),0),0),0)) -> 99000 | Q23: 1854630 | R23: =IF(OR(Q23="HOL",Q23="SUN",Q23="SAT",Q23="No Read",Q23=""),"",IF(INDEX(Q23:$Q$44,MATCH(TRUE,ISNUMBER(Q23:$Q$44),0))<LOOKUP(99^99,Q$2:Q22),(INDEX(Q23:$Q$44,MATCH(TRUE,ISNUMBER(Q23:$Q$44),0))*1000),(INDEX(Q23:$Q$44,MATCH(TRUE,ISNUMBER(Q23:$Q$44),0))-LOOKUP(99^99,Q$2:Q22))*1000)) -> 249000 | S23: =IF(OR(Q23="HOL",Q23="SUN",Q23="SAT",Q23="No Read",Q23=""),"",ROUND(R23/T22,1)) -> 249000 | T23: 1 | U23: =IF(Q23="","",ROUND(OFFSET(S23,MATCH(TRUE,INDEX(S24:S$44<>"",0),0),0),0)) -> 208000
A24: 17 | B24: 165294 | C24: =IF(OR(B24="HOL",B24="SUN",B24="SAT",B24="No Read",B24=""),"",IF(INDEX(B24:$B$44,MATCH(TRUE,ISNUMBER(B24:$B$44),0))<LOOKUP(99^99,B$2:B23),(INDEX(B24:$B$44,MATCH(TRUE,ISNUMBER(B24:$B$44),0))*1000),(INDEX(B24:$B$44,MATCH(TRUE,ISNUMBER(B24:$B$44),0))-LOOKUP(99^99,B$2:B23))*1000)) -> 86000 | D24: =IF(OR(B24="HOL",B24="SUN",B24="SAT",B24="No Read",B24=""),"",ROUND(C24/E23,1)) -> 86000 | E24: 1 | F24: =IF(B24="","",ROUND(OFFSET(D24,MATCH(TRUE,INDEX(D25:D$44<>"",0),0),0),0)) -> 0 | G24: 2247363 | H24: =IF(OR(G24="HOL",G24="SUN",G24="SAT",G24="No Read",G24=""),"",IF(INDEX(G24:$G$44,MATCH(TRUE,ISNUMBER(G24:$G$44),0))<LOOKUP(99^99,G$2:G23),(INDEX(G24:$G$44,MATCH(TRUE,ISNUMBER(G24:$G$44),0))*100),(INDEX(G24:$G$44,MATCH(TRUE,ISNUMBER(G24:$G$44),0))-LOOKUP(99^99,G$2:G23))*100)) -> 148900 | I24: =IF(OR(G24="HOL",G24="SUN",G24="SAT",G24="No Read",G24=""),"",ROUND(H24/J23,1)) -> 148900 | J24: 1 | K24: =IF(G24="","",ROUND(OFFSET(I24,MATCH(TRUE,INDEX(I25:I$44<>"",0),0),0),0)) -> 156000 | L24: 260048 | M24: =IF(OR(L24="HOL",L24="SUN",L24="SAT",L24="No Read",L24=""),"",IF(INDEX(L24:$L$44,MATCH(TRUE,ISNUMBER(L24:$L$44),0))<LOOKUP(99^99,L$2:L23),(INDEX(L24:$L$44,MATCH(TRUE,ISNUMBER(L24:$L$44),0))*1000),(INDEX(L24:$L$44,MATCH(TRUE,ISNUMBER(L24:$L$44),0))-LOOKUP(99^99,L$2:L23))*1000)) -> 99000 | N24: =IF(OR(L24="HOL",L24="SUN",L24="SAT",L24="No Read",L24=""),"",ROUND(M24/O23,1)) -> 99000 | O24: 1 | P24: =IF(L24="","",ROUND(OFFSET(N24,MATCH(TRUE,INDEX(N25:N$44<>"",0),0),0),0)) -> 0 | Q24: 1854838 | R24: =IF(OR(Q24="HOL",Q24="SUN",Q24="SAT",Q24="No Read",Q24=""),"",IF(INDEX(Q24:$Q$44,MATCH(TRUE,ISNUMBER(Q24:$Q$44),0))<LOOKUP(99^99,Q$2:Q23),(INDEX(Q24:$Q$44,MATCH(TRUE,ISNUMBER(Q24:$Q$44),0))*1000),(INDEX(Q24:$Q$44,MATCH(TRUE,ISNUMBER(Q24:$Q$44),0))-LOOKUP(99^99,Q$2:Q23))*1000)) -> 208000 | S24: =IF(OR(Q24="HOL",Q24="SUN",Q24="SAT",Q24="No Read",Q24=""),"",ROUND(R24/T23,1)) -> 208000 | T24: 1 | U24: =IF(Q24="","",ROUND(OFFSET(S24,MATCH(TRUE,INDEX(S25:S$44<>"",0),0),0),0)) -> 221000
A25: 18 | B25: 165294 | C25: =IF(OR(B25="HOL",B25="SUN",B25="SAT",B25="No Read",B25=""),"",IF(INDEX(B25:$B$44,MATCH(TRUE,ISNUMBER(B25:$B$44),0))<LOOKUP(99^99,B$2:B24),(INDEX(B25:$B$44,MATCH(TRUE,ISNUMBER(B25:$B$44),0))*1000),(INDEX(B25:$B$44,MATCH(TRUE,ISNUMBER(B25:$B$44),0))-LOOKUP(99^99,B$2:B24))*1000)) -> 0 | D25: 0 | E25: 1 | F25: =IF(B25="","",ROUND(OFFSET(D25,MATCH(TRUE,INDEX(D26:D$44<>"",0),0),0),0)) -> 95000 | G25: 2248923 | H25: =IF(OR(G25="HOL",G25="SUN",G25="SAT",G25="No Read",G25=""),"",IF(INDEX(G25:$G$44,MATCH(TRUE,ISNUMBER(G25:$G$44),0))<LOOKUP(99^99,G$2:G24),(INDEX(G25:$G$44,MATCH(TRUE,ISNUMBER(G25:$G$44),0))*100),(INDEX(G25:$G$44,MATCH(TRUE,ISNUMBER(G25:$G$44),0))-LOOKUP(99^99,G$2:G24))*100)) -> 156000 | I25: 156000 | J25: 1 | K25: =IF(G25="","",ROUND(OFFSET(I25,MATCH(TRUE,INDEX(I26:I$44<>"",0),0),0),0)) -> 156900 | L25: 260048 | M25: =IF(OR(L25="HOL",L25="SUN",L25="SAT",L25="No Read",L25=""),"",IF(INDEX(L25:$L$44,MATCH(TRUE,ISNUMBER(L25:$L$44),0))<LOOKUP(99^99,L$2:L24),(INDEX(L25:$L$44,MATCH(TRUE,ISNUMBER(L25:$L$44),0))*1000),(INDEX(L25:$L$44,MATCH(TRUE,ISNUMBER(L25:$L$44),0))-LOOKUP(99^99,L$2:L24))*1000)) -> 0 | N25: 0 | O25: 1 | P25: =IF(L25="","",ROUND(OFFSET(N25,MATCH(TRUE,INDEX(N26:N$44<>"",0),0),0),0)) -> 108000 | Q25: 1855059 | R25: =IF(OR(Q25="HOL",Q25="SUN",Q25="SAT",Q25="No Read",Q25=""),"",IF(INDEX(Q25:$Q$44,MATCH(TRUE,ISNUMBER(Q25:$Q$44),0))<LOOKUP(99^99,Q$2:Q24),(INDEX(Q25:$Q$44,MATCH(TRUE,ISNUMBER(Q25:$Q$44),0))*1000),(INDEX(Q25:$Q$44,MATCH(TRUE,ISNUMBER(Q25:$Q$44),0))-LOOKUP(99^99,Q$2:Q24))*1000)) -> 221000 | S25: 221000 | T25: 1 | U25: =IF(Q25="","",ROUND(OFFSET(S25,MATCH(TRUE,INDEX(S26:S$44<>"",0),0),0),0)) -> 213000 | X25: Cl2 used
A26: 19 | B26: 165389 | C26: =IF(OR(B26="HOL",B26="SUN",B26="SAT",B26="No Read",B26=""),"",IF(INDEX(B26:$B$44,MATCH(TRUE,ISNUMBER(B26:$B$44),0))<LOOKUP(99^99,B$2:B25),(INDEX(B26:$B$44,MATCH(TRUE,ISNUMBER(B26:$B$44),0))*1000),(INDEX(B26:$B$44,MATCH(TRUE,ISNUMBER(B26:$B$44),0))-LOOKUP(99^99,B$2:B25))*1000)) -> 95000 | D26: 95000 | E26: 1 | F26: =IF(B26="","",ROUND(OFFSET(D26,MATCH(TRUE,INDEX(D27:D$44<>"",0),0),0),0)) -> 0 | G26: 2250492 | H26: =IF(OR(G26="HOL",G26="SUN",G26="SAT",G26="No Read",G26=""),"",IF(INDEX(G26:$G$44,MATCH(TRUE,ISNUMBER(G26:$G$44),0))<LOOKUP(99^99,G$2:G25),(INDEX(G26:$G$44,MATCH(TRUE,ISNUMBER(G26:$G$44),0))*100),(INDEX(G26:$G$44,MATCH(TRUE,ISNUMBER(G26:$G$44),0))-LOOKUP(99^99,G$2:G25))*100)) -> 156900 | I26: 156900 | J26: 1 | K26: =IF(G26="","",ROUND(OFFSET(I26,MATCH(TRUE,INDEX(I27:I$44<>"",0),0),0),0)) -> 131800 | L26: 260156 | M26: =IF(OR(L26="HOL",L26="SUN",L26="SAT",L26="No Read",L26=""),"",IF(INDEX(L26:$L$44,MATCH(TRUE,ISNUMBER(L26:$L$44),0))<LOOKUP(99^99,L$2:L25),(INDEX(L26:$L$44,MATCH(TRUE,ISNUMBER(L26:$L$44),0))*1000),(INDEX(L26:$L$44,MATCH(TRUE,ISNUMBER(L26:$L$44),0))-LOOKUP(99^99,L$2:L25))*1000)) -> 108000 | N26: 108000 | O26: 1 | P26: =IF(L26="","",ROUND(OFFSET(N26,MATCH(TRUE,INDEX(N27:N$44<>"",0),0),0),0)) -> 0 | Q26: 1855272 | R26: =IF(OR(Q26="HOL",Q26="SUN",Q26="SAT",Q26="No Read",Q26=""),"",IF(INDEX(Q26:$Q$44,MATCH(TRUE,ISNUMBER(Q26:$Q$44),0))<LOOKUP(99^99,Q$2:Q25),(INDEX(Q26:$Q$44,MATCH(TRUE,ISNUMBER(Q26:$Q$44),0))*1000),(INDEX(Q26:$Q$44,MATCH(TRUE,ISNUMBER(Q26:$Q$44),0))-LOOKUP(99^99,Q$2:Q25))*1000)) -> 213000 | S26: 213000 | T26: 1 | U26: =IF(Q26="","",ROUND(OFFSET(S26,MATCH(TRUE,INDEX(S27:S$44<>"",0),0),0),0)) -> 186000 | X26: Beginning | Z26: Ending
A27: 20 | B27: 165389 | C27: =IF(OR(B27="HOL",B27="SUN",B27="SAT",B27="No Read",B27=""),"",IF(INDEX(B27:$B$44,MATCH(TRUE,ISNUMBER(B27:$B$44),0))<LOOKUP(99^99,B$2:B26),(INDEX(B27:$B$44,MATCH(TRUE,ISNUMBER(B27:$B$44),0))*1000),(INDEX(B27:$B$44,MATCH(TRUE,ISNUMBER(B27:$B$44),0))-LOOKUP(99^99,B$2:B26))*1000)) -> 0 | D27: 0 | E27: 1 | F27: =IF(B27="","",ROUND(OFFSET(D27,MATCH(TRUE,INDEX(D28:D$44<>"",0),0),0),0)) -> 89000 | G27: 2251810 | H27: =IF(OR(G27="HOL",G27="SUN",G27="SAT",G27="No Read",G27=""),"",IF(INDEX(G27:$G$44,MATCH(TRUE,ISNUMBER(G27:$G$44),0))<LOOKUP(99^99,G$2:G26),(INDEX(G27:$G$44,MATCH(TRUE,ISNUMBER(G27:$G$44),0))*100),(INDEX(G27:$G$44,MATCH(TRUE,ISNUMBER(G27:$G$44),0))-LOOKUP(99^99,G$2:G26))*100)) -> 131800 | I27: 131800 | J27: 1 | K27: =IF(G27="","",ROUND(OFFSET(I27,MATCH(TRUE,INDEX(I28:I$44<>"",0),0),0),0)) -> 175900 | L27: 260156 | M27: =IF(OR(L27="HOL",L27="SUN",L27="SAT",L27="No Read",L27=""),"",IF(INDEX(L27:$L$44,MATCH(TRUE,ISNUMBER(L27:$L$44),0))<LOOKUP(99^99,L$2:L26),(INDEX(L27:$L$44,MATCH(TRUE,ISNUMBER(L27:$L$44),0))*1000),(INDEX(L27:$L$44,MATCH(TRUE,ISNUMBER(L27:$L$44),0))-LOOKUP(99^99,L$2:L26))*1000)) -> 0 | N27: 0 | O27: 1 | P27: =IF(L27="","",ROUND(OFFSET(N27,MATCH(TRUE,INDEX(N28:N$44<>"",0),0),0),0)) -> 102000 | Q27: 1855458 | R27: =IF(OR(Q27="HOL",Q27="SUN",Q27="SAT",Q27="No Read",Q27=""),"",IF(INDEX(Q27:$Q$44,MATCH(TRUE,ISNUMBER(Q27:$Q$44),0))<LOOKUP(99^99,Q$2:Q26),(INDEX(Q27:$Q$44,MATCH(TRUE,ISNUMBER(Q27:$Q$44),0))*1000),(INDEX(Q27:$Q$44,MATCH(TRUE,ISNUMBER(Q27:$Q$44),0))-LOOKUP(99^99,Q$2:Q26))*1000)) -> 186000 | S27: 186000 | T27: 1 | U27: =IF(Q27="","",ROUND(OFFSET(S27,MATCH(TRUE,INDEX(S28:S$44<>"",0),0),0),0)) -> 251000 | X27: 150 | Z27: 125
A28: 21 | B28: 165478 | C28: =IF(OR(B28="HOL",B28="SUN",B28="SAT",B28="No Read",B28=""),"",IF(INDEX(B28:$B$44,MATCH(TRUE,ISNUMBER(B28:$B$44),0))<LOOKUP(99^99,B$2:B27),(INDEX(B28:$B$44,MATCH(TRUE,ISNUMBER(B28:$B$44),0))*1000),(INDEX(B28:$B$44,MATCH(TRUE,ISNUMBER(B28:$B$44),0))-LOOKUP(99^99,B$2:B27))*1000)) -> 89000 | D28: 89000 | E28: 1 | F28: =IF(B28="","",ROUND(OFFSET(D28,MATCH(TRUE,INDEX(D29:D$44<>"",0),0),0),0)) -> 92000 | G28: 2253569 | H28: =IF(OR(G28="HOL",G28="SUN",G28="SAT",G28="No Read",G28=""),"",IF(INDEX(G28:$G$44,MATCH(TRUE,ISNUMBER(G28:$G$44),0))<LOOKUP(99^99,G$2:G27),(INDEX(G28:$G$44,MATCH(TRUE,ISNUMBER(G28:$G$44),0))*100),(INDEX(G28:$G$44,MATCH(TRUE,ISNUMBER(G28:$G$44),0))-LOOKUP(99^99,G$2:G27))*100)) -> 175900 | I28: 175900 | J28: 1 | K28: =IF(G28="","",ROUND(OFFSET(I28,MATCH(TRUE,INDEX(I29:I$44<>"",0),0),0),0)) -> 135600 | L28: 260258 | M28: =IF(OR(L28="HOL",L28="SUN",L28="SAT",L28="No Read",L28=""),"",IF(INDEX(L28:$L$44,MATCH(TRUE,ISNUMBER(L28:$L$44),0))<LOOKUP(99^99,L$2:L27),(INDEX(L28:$L$44,MATCH(TRUE,ISNUMBER(L28:$L$44),0))*1000),(INDEX(L28:$L$44,MATCH(TRUE,ISNUMBER(L28:$L$44),0))-LOOKUP(99^99,L$2:L27))*1000)) -> 102000 | N28: 102000 | O28: 1 | P28: =IF(L28="","",ROUND(OFFSET(N28,MATCH(TRUE,INDEX(N29:N$44<>"",0),0),0),0)) -> 107000 | Q28: 1855709 | R28: =IF(OR(Q28="HOL",Q28="SUN",Q28="SAT",Q28="No Read",Q28=""),"",IF(INDEX(Q28:$Q$44,MATCH(TRUE,ISNUMBER(Q28:$Q$44),0))<LOOKUP(99^99,Q$2:Q27),(INDEX(Q28:$Q$44,MATCH(TRUE,ISNUMBER(Q28:$Q$44),0))*1000),(INDEX(Q28:$Q$44,MATCH(TRUE,ISNUMBER(Q28:$Q$44),0))-LOOKUP(99^99,Q$2:Q27))*1000)) -> 251000 | S28: 251000 | T28: 1 | U28: =IF(Q28="","",ROUND(OFFSET(S28,MATCH(TRUE,INDEX(S29:S$44<>"",0),0),0),0)) -> 208000 | X28: 425 | Z28: 265
A29: 22 | B29: 165570 | C29: =IF(OR(B29="HOL",B29="SUN",B29="SAT",B29="No Read",B29=""),"",IF(INDEX(B29:$B$44,MATCH(TRUE,ISNUMBER(B29:$B$44),0))<LOOKUP(99^99,B$2:B28),(INDEX(B29:$B$44,MATCH(TRUE,ISNUMBER(B29:$B$44),0))*1000),(INDEX(B29:$B$44,MATCH(TRUE,ISNUMBER(B29:$B$44),0))-LOOKUP(99^99,B$2:B28))*1000)) -> 92000 | D29: 92000 | E29: 1 | F29: =IF(B29="","",ROUND(OFFSET(D29,MATCH(TRUE,INDEX(D30:D$44<>"",0),0),0),0)) -> 0 | G29: 2254925 | H29: =IF(OR(G29="HOL",G29="SUN",G29="SAT",G29="No Read",G29=""),"",IF(INDEX(G29:$G$44,MATCH(TRUE,ISNUMBER(G29:$G$44),0))<LOOKUP(99^99,G$2:G28),(INDEX(G29:$G$44,MATCH(TRUE,ISNUMBER(G29:$G$44),0))*100),(INDEX(G29:$G$44,MATCH(TRUE,ISNUMBER(G29:$G$44),0))-LOOKUP(99^99,G$2:G28))*100)) -> 135600 | I29: 135600 | J29: 1 | K29: =IF(G29="","",ROUND(OFFSET(I29,MATCH(TRUE,INDEX(I30:I$44<>"",0),0),0),0)) -> 148400 | L29: 260365 | M29: =IF(OR(L29="HOL",L29="SUN",L29="SAT",L29="No Read",L29=""),"",IF(INDEX(L29:$L$44,MATCH(TRUE,ISNUMBER(L29:$L$44),0))<LOOKUP(99^99,L$2:L28),(INDEX(L29:$L$44,MATCH(TRUE,ISNUMBER(L29:$L$44),0))*1000),(INDEX(L29:$L$44,MATCH(TRUE,ISNUMBER(L29:$L$44),0))-LOOKUP(99^99,L$2:L28))*1000)) -> 107000 | N29: 107000 | O29: 1 | P29: =IF(L29="","",ROUND(OFFSET(N29,MATCH(TRUE,INDEX(N30:N$44<>"",0),0),0),0)) -> 0 | Q29: 1855917 | R29: =IF(OR(Q29="HOL",Q29="SUN",Q29="SAT",Q29="No Read",Q29=""),"",IF(INDEX(Q29:$Q$44,MATCH(TRUE,ISNUMBER(Q29:$Q$44),0))<LOOKUP(99^99,Q$2:Q28),(INDEX(Q29:$Q$44,MATCH(TRUE,ISNUMBER(Q29:$Q$44),0))*1000),(INDEX(Q29:$Q$44,MATCH(TRUE,ISNUMBER(Q29:$Q$44),0))-LOOKUP(99^99,Q$2:Q28))*1000)) -> 208000 | S29: 208000 | T29: 1 | U29: =IF(Q29="","",ROUND(OFFSET(S29,MATCH(TRUE,INDEX(S30:S$44<>"",0),0),0),0)) -> 210000 | X29: Month Total: | Y29: =X27-Z27+X28-Z28 -> 185 | AA29: Gallons
A30: 23 | B30: 165570 | C30: =IF(OR(B30="HOL",B30="SUN",B30="SAT",B30="No Read",B30=""),"",IF(INDEX(B30:$B$44,MATCH(TRUE,ISNUMBER(B30:$B$44),0))<LOOKUP(99^99,B$2:B29),(INDEX(B30:$B$44,MATCH(TRUE,ISNUMBER(B30:$B$44),0))*1000),(INDEX(B30:$B$44,MATCH(TRUE,ISNUMBER(B30:$B$44),0))-LOOKUP(99^99,B$2:B29))*1000)) -> 0 | D30: 0 | E30: 1 | F30: =IF(B30="","",ROUND(OFFSET(D30,MATCH(TRUE,INDEX(D31:D$44<>"",0),0),0),0)) -> 105000 | G30: 2256409 | H30: =IF(OR(G30="HOL",G30="SUN",G30="SAT",G30="No Read",G30=""),"",IF(INDEX(G30:$G$44,MATCH(TRUE,ISNUMBER(G30:$G$44),0))<LOOKUP(99^99,G$2:G29),(INDEX(G30:$G$44,MATCH(TRUE,ISNUMBER(G30:$G$44),0))*100),(INDEX(G30:$G$44,MATCH(TRUE,ISNUMBER(G30:$G$44),0))-LOOKUP(99^99,G$2:G29))*100)) -> 148400 | I30: 148400 | J30: 1 | K30: =IF(G30="","",ROUND(OFFSET(I30,MATCH(TRUE,INDEX(I31:I$44<>"",0),0),0),0)) -> 171200 | L30: 260365 | M30: =IF(OR(L30="HOL",L30="SUN",L30="SAT",L30="No Read",L30=""),"",IF(INDEX(L30:$L$44,MATCH(TRUE,ISNUMBER(L30:$L$44),0))<LOOKUP(99^99,L$2:L29),(INDEX(L30:$L$44,MATCH(TRUE,ISNUMBER(L30:$L$44),0))*1000),(INDEX(L30:$L$44,MATCH(TRUE,ISNUMBER(L30:$L$44),0))-LOOKUP(99^99,L$2:L29))*1000)) -> 0 | N30: 0 | O30: 1 | P30: =IF(L30="","",ROUND(OFFSET(N30,MATCH(TRUE,INDEX(N31:N$44<>"",0),0),0),0)) -> 122000 | Q30: 1856127 | R30: =IF(OR(Q30="HOL",Q30="SUN",Q30="SAT",Q30="No Read",Q30=""),"",IF(INDEX(Q30:$Q$44,MATCH(TRUE,ISNUMBER(Q30:$Q$44),0))<LOOKUP(99^99,Q$2:Q29),(INDEX(Q30:$Q$44,MATCH(TRUE,ISNUMBER(Q30:$Q$44),0))*1000),(INDEX(Q30:$Q$44,MATCH(TRUE,ISNUMBER(Q30:$Q$44),0))-LOOKUP(99^99,Q$2:Q29))*1000)) -> 210000 | S30: 210000 | T30: 1 | U30: =IF(Q30="","",ROUND(OFFSET(S30,MATCH(TRUE,INDEX(S31:S$44<>"",0),0),0),0)) -> 273000
A31: 24 | B31: 165675 | C31: =IF(OR(B31="HOL",B31="SUN",B31="SAT",B31="No Read",B31=""),"",IF(INDEX(B31:$B$44,MATCH(TRUE,ISNUMBER(B31:$B$44),0))<LOOKUP(99^99,B$2:B30),(INDEX(B31:$B$44,MATCH(TRUE,ISNUMBER(B31:$B$44),0))*1000),(INDEX(B31:$B$44,MATCH(TRUE,ISNUMBER(B31:$B$44),0))-LOOKUP(99^99,B$2:B30))*1000)) -> 105000 | D31: 105000 | E31: 1 | F31: =IF(B31="","",ROUND(OFFSET(D31,MATCH(TRUE,INDEX(D32:D$44<>"",0),0),0),0)) -> 25000 | G31: 2258121 | H31: =IF(OR(G31="HOL",G31="SUN",G31="SAT",G31="No Read",G31=""),"",IF(INDEX(G31:$G$44,MATCH(TRUE,ISNUMBER(G31:$G$44),0))<LOOKUP(99^99,G$2:G30),(INDEX(G31:$G$44,MATCH(TRUE,ISNUMBER(G31:$G$44),0))*100),(INDEX(G31:$G$44,MATCH(TRUE,ISNUMBER(G31:$G$44),0))-LOOKUP(99^99,G$2:G30))*100)) -> 171200 | I31: 171200 | J31: 1 | K31: =IF(G31="","",ROUND(OFFSET(I31,MATCH(TRUE,INDEX(I32:I$44<>"",0),0),0),0)) -> 164000 | L31: 260487 | M31: =IF(OR(L31="HOL",L31="SUN",L31="SAT",L31="No Read",L31=""),"",IF(INDEX(L31:$L$44,MATCH(TRUE,ISNUMBER(L31:$L$44),0))<LOOKUP(99^99,L$2:L30),(INDEX(L31:$L$44,MATCH(TRUE,ISNUMBER(L31:$L$44),0))*1000),(INDEX(L31:$L$44,MATCH(TRUE,ISNUMBER(L31:$L$44),0))-LOOKUP(99^99,L$2:L30))*1000)) -> 122000 | N31: 122000 | O31: 1 | P31: =IF(L31="","",ROUND(OFFSET(N31,MATCH(TRUE,INDEX(N32:N$44<>"",0),0),0),0)) -> 34000 | Q31: 1856400 | R31: =IF(OR(Q31="HOL",Q31="SUN",Q31="SAT",Q31="No Read",Q31=""),"",IF(INDEX(Q31:$Q$44,MATCH(TRUE,ISNUMBER(Q31:$Q$44),0))<LOOKUP(99^99,Q$2:Q30),(INDEX(Q31:$Q$44,MATCH(TRUE,ISNUMBER(Q31:$Q$44),0))*1000),(INDEX(Q31:$Q$44,MATCH(TRUE,ISNUMBER(Q31:$Q$44),0))-LOOKUP(99^99,Q$2:Q30))*1000)) -> 273000 | S31: 273000 | T31: 1 | U31: =IF(Q31="","",ROUND(OFFSET(S31,MATCH(TRUE,INDEX(S32:S$44<>"",0),0),0),0)) -> 250000
A32: 25 | B32: 165700 | C32: =IF(OR(B32="HOL",B32="SUN",B32="SAT",B32="No Read",B32=""),"",IF(INDEX(B32:$B$44,MATCH(TRUE,ISNUMBER(B32:$B$44),0))<LOOKUP(99^99,B$2:B31),(INDEX(B32:$B$44,MATCH(TRUE,ISNUMBER(B32:$B$44),0))*1000),(INDEX(B32:$B$44,MATCH(TRUE,ISNUMBER(B32:$B$44),0))-LOOKUP(99^99,B$2:B31))*1000)) -> 25000 | D32: 25000 | E32: 1 | F32: =IF(B32="","",ROUND(OFFSET(D32,MATCH(TRUE,INDEX(D33:D$44<>"",0),0),0),0)) -> 64000 | G32: 2259761 | H32: =IF(OR(G32="HOL",G32="SUN",G32="SAT",G32="No Read",G32=""),"",IF(INDEX(G32:$G$44,MATCH(TRUE,ISNUMBER(G32:$G$44),0))<LOOKUP(99^99,G$2:G31),(INDEX(G32:$G$44,MATCH(TRUE,ISNUMBER(G32:$G$44),0))*100),(INDEX(G32:$G$44,MATCH(TRUE,ISNUMBER(G32:$G$44),0))-LOOKUP(99^99,G$2:G31))*100)) -> 164000 | I32: 164000 | J32: 1 | K32: =IF(G32="","",ROUND(OFFSET(I32,MATCH(TRUE,INDEX(I33:I$44<>"",0),0),0),0)) -> 179700 | L32: 260521 | M32: =IF(OR(L32="HOL",L32="SUN",L32="SAT",L32="No Read",L32=""),"",IF(INDEX(L32:$L$44,MATCH(TRUE,ISNUMBER(L32:$L$44),0))<LOOKUP(99^99,L$2:L31),(INDEX(L32:$L$44,MATCH(TRUE,ISNUMBER(L32:$L$44),0))*1000),(INDEX(L32:$L$44,MATCH(TRUE,ISNUMBER(L32:$L$44),0))-LOOKUP(99^99,L$2:L31))*1000)) -> 34000 | N32: 34000 | O32: 1 | P32: =IF(L32="","",ROUND(OFFSET(N32,MATCH(TRUE,INDEX(N33:N$44<>"",0),0),0),0)) -> 66000 | Q32: 1856650 | R32: =IF(OR(Q32="HOL",Q32="SUN",Q32="SAT",Q32="No Read",Q32=""),"",IF(INDEX(Q32:$Q$44,MATCH(TRUE,ISNUMBER(Q32:$Q$44),0))<LOOKUP(99^99,Q$2:Q31),(INDEX(Q32:$Q$44,MATCH(TRUE,ISNUMBER(Q32:$Q$44),0))*1000),(INDEX(Q32:$Q$44,MATCH(TRUE,ISNUMBER(Q32:$Q$44),0))-LOOKUP(99^99,Q$2:Q31))*1000)) -> 250000 | S32: 250000 | T32: 1 | U32: =IF(Q32="","",ROUND(OFFSET(S32,MATCH(TRUE,INDEX(S33:S$44<>"",0),0),0),0)) -> 262000
A33: 26 | B33: 165764 | C33: =IF(OR(B33="HOL",B33="SUN",B33="SAT",B33="No Read",B33=""),"",IF(INDEX(B33:$B$44,MATCH(TRUE,ISNUMBER(B33:$B$44),0))<LOOKUP(99^99,B$2:B32),(INDEX(B33:$B$44,MATCH(TRUE,ISNUMBER(B33:$B$44),0))*1000),(INDEX(B33:$B$44,MATCH(TRUE,ISNUMBER(B33:$B$44),0))-LOOKUP(99^99,B$2:B32))*1000)) -> 64000 | D33: 64000 | E33: 1 | F33: =IF(B33="","",ROUND(OFFSET(D33,MATCH(TRUE,INDEX(D34:D$44<>"",0),0),0),0)) -> 102000 | G33: 2261558 | H33: =IF(OR(G33="HOL",G33="SUN",G33="SAT",G33="No Read",G33=""),"",IF(INDEX(G33:$G$44,MATCH(TRUE,ISNUMBER(G33:$G$44),0))<LOOKUP(99^99,G$2:G32),(INDEX(G33:$G$44,MATCH(TRUE,ISNUMBER(G33:$G$44),0))*100),(INDEX(G33:$G$44,MATCH(TRUE,ISNUMBER(G33:$G$44),0))-LOOKUP(99^99,G$2:G32))*100)) -> 179700 | I33: 179700 | J33: 1 | K33: =IF(G33="","",ROUND(OFFSET(I33,MATCH(TRUE,INDEX(I34:I$44<>"",0),0),0),0)) -> 133600 | L33: 260587 | M33: =IF(OR(L33="HOL",L33="SUN",L33="SAT",L33="No Read",L33=""),"",IF(INDEX(L33:$L$44,MATCH(TRUE,ISNUMBER(L33:$L$44),0))<LOOKUP(99^99,L$2:L32),(INDEX(L33:$L$44,MATCH(TRUE,ISNUMBER(L33:$L$44),0))*1000),(INDEX(L33:$L$44,MATCH(TRUE,ISNUMBER(L33:$L$44),0))-LOOKUP(99^99,L$2:L32))*1000)) -> 66000 | N33: 66000 | O33: 1 | P33: =IF(L33="","",ROUND(OFFSET(N33,MATCH(TRUE,INDEX(N34:N$44<>"",0),0),0),0)) -> 118000 | Q33: 1856912 | R33: =IF(OR(Q33="HOL",Q33="SUN",Q33="SAT",Q33="No Read",Q33=""),"",IF(INDEX(Q33:$Q$44,MATCH(TRUE,ISNUMBER(Q33:$Q$44),0))<LOOKUP(99^99,Q$2:Q32),(INDEX(Q33:$Q$44,MATCH(TRUE,ISNUMBER(Q33:$Q$44),0))*1000),(INDEX(Q33:$Q$44,MATCH(TRUE,ISNUMBER(Q33:$Q$44),0))-LOOKUP(99^99,Q$2:Q32))*1000)) -> 262000 | S33: 262000 | T33: 1 | U33: =IF(Q33="","",ROUND(OFFSET(S33,MATCH(TRUE,INDEX(S34:S$44<>"",0),0),0),0)) -> 190000 | X33: Sum of Wells 1-4 | AC33: Sum of Boosters 1-4
A34: 27 | B34: 165866 | C34: =IF(OR(B34="HOL",B34="SUN",B34="SAT",B34="No Read",B34=""),"",IF(INDEX(B34:$B$44,MATCH(TRUE,ISNUMBER(B34:$B$44),0))<LOOKUP(99^99,B$2:B33),(INDEX(B34:$B$44,MATCH(TRUE,ISNUMBER(B34:$B$44),0))*1000),(INDEX(B34:$B$44,MATCH(TRUE,ISNUMBER(B34:$B$44),0))-LOOKUP(99^99,B$2:B33))*1000)) -> 102000 | D34: 102000 | E34: 1 | F34: =IF(B34="","",ROUND(OFFSET(D34,MATCH(TRUE,INDEX(D35:D$44<>"",0),0),0),0)) -> 0 | G34: 2262894 | H34: =IF(OR(G34="HOL",G34="SUN",G34="SAT",G34="No Read",G34=""),"",IF(INDEX(G34:$G$44,MATCH(TRUE,ISNUMBER(G34:$G$44),0))<LOOKUP(99^99,G$2:G33),(INDEX(G34:$G$44,MATCH(TRUE,ISNUMBER(G34:$G$44),0))*100),(INDEX(G34:$G$44,MATCH(TRUE,ISNUMBER(G34:$G$44),0))-LOOKUP(99^99,G$2:G33))*100)) -> 133600 | I34: 133600 | J34: 1 | K34: =IF(G34="","",ROUND(OFFSET(I34,MATCH(TRUE,INDEX(I35:I$44<>"",0),0),0),0)) -> 156600 | L34: 260705 | M34: =IF(OR(L34="HOL",L34="SUN",L34="SAT",L34="No Read",L34=""),"",IF(INDEX(L34:$L$44,MATCH(TRUE,ISNUMBER(L34:$L$44),0))<LOOKUP(99^99,L$2:L33),(INDEX(L34:$L$44,MATCH(TRUE,ISNUMBER(L34:$L$44),0))*1000),(INDEX(L34:$L$44,MATCH(TRUE,ISNUMBER(L34:$L$44),0))-LOOKUP(99^99,L$2:L33))*1000)) -> 118000 | N34: 118000 | O34: 1 | P34: =IF(L34="","",ROUND(OFFSET(N34,MATCH(TRUE,INDEX(N35:N$44<>"",0),0),0),0)) -> 0 | Q34: 1857102 | R34: =IF(OR(Q34="HOL",Q34="SUN",Q34="SAT",Q34="No Read",Q34=""),"",IF(INDEX(Q34:$Q$44,MATCH(TRUE,ISNUMBER(Q34:$Q$44),0))<LOOKUP(99^99,Q$2:Q33),(INDEX(Q34:$Q$44,MATCH(TRUE,ISNUMBER(Q34:$Q$44),0))*1000),(INDEX(Q34:$Q$44,MATCH(TRUE,ISNUMBER(Q34:$Q$44),0))-LOOKUP(99^99,Q$2:Q33))*1000)) -> 190000 | S34: 190000 | T34: 1 | U34: =IF(Q34="","",ROUND(OFFSET(S34,MATCH(TRUE,INDEX(S35:S$44<>"",0),0),0),0)) -> 231000
A35: 28 | B35: 165866 | C35: =IF(OR(B35="HOL",B35="SUN",B35="SAT",B35="No Read",B35=""),"",IF(INDEX(B35:$B$44,MATCH(TRUE,ISNUMBER(B35:$B$44),0))<LOOKUP(99^99,B$2:B34),(INDEX(B35:$B$44,MATCH(TRUE,ISNUMBER(B35:$B$44),0))*1000),(INDEX(B35:$B$44,MATCH(TRUE,ISNUMBER(B35:$B$44),0))-LOOKUP(99^99,B$2:B34))*1000)) -> 0 | D35: 0 | E35: 1 | F35: =IF(B35="","",ROUND(OFFSET(D35,MATCH(TRUE,INDEX(D36:D$44<>"",0),0),0),0)) -> 100000 | G35: 2264460 | H35: =IF(OR(G35="HOL",G35="SUN",G35="SAT",G35="No Read",G35=""),"",IF(INDEX(G35:$G$44,MATCH(TRUE,ISNUMBER(G35:$G$44),0))<LOOKUP(99^99,G$2:G34),(INDEX(G35:$G$44,MATCH(TRUE,ISNUMBER(G35:$G$44),0))*100),(INDEX(G35:$G$44,MATCH(TRUE,ISNUMBER(G35:$G$44),0))-LOOKUP(99^99,G$2:G34))*100)) -> 156600 | I35: 156600 | J35: 1 | K35: =IF(G35="","",ROUND(OFFSET(I35,MATCH(TRUE,INDEX(I36:I$44<>"",0),0),0),0)) -> 145300 | L35: 260705 | M35: =IF(OR(L35="HOL",L35="SUN",L35="SAT",L35="No Read",L35=""),"",IF(INDEX(L35:$L$44,MATCH(TRUE,ISNUMBER(L35:$L$44),0))<LOOKUP(99^99,L$2:L34),(INDEX(L35:$L$44,MATCH(TRUE,ISNUMBER(L35:$L$44),0))*1000),(INDEX(L35:$L$44,MATCH(TRUE,ISNUMBER(L35:$L$44),0))-LOOKUP(99^99,L$2:L34))*1000)) -> 0 | N35: 0 | O35: 1 | P35: =IF(L35="","",ROUND(OFFSET(N35,MATCH(TRUE,INDEX(N36:N$44<>"",0),0),0),0)) -> 115000 | Q35: 1857333 | R35: =IF(OR(Q35="HOL",Q35="SUN",Q35="SAT",Q35="No Read",Q35=""),"",IF(INDEX(Q35:$Q$44,MATCH(TRUE,ISNUMBER(Q35:$Q$44),0))<LOOKUP(99^99,Q$2:Q34),(INDEX(Q35:$Q$44,MATCH(TRUE,ISNUMBER(Q35:$Q$44),0))*1000),(INDEX(Q35:$Q$44,MATCH(TRUE,ISNUMBER(Q35:$Q$44),0))-LOOKUP(99^99,Q$2:Q34))*1000)) -> 231000 | S35: 231000 | T35: 1 | U35: =IF(Q35="","",ROUND(OFFSET(S35,MATCH(TRUE,INDEX(S36:S$44<>"",0),0),0),0)) -> 221000 | X35: =SUM('3 & 4'!F39,'3 & 4'!P39,F39,P39) -> 17646724 | AA35: Gallons | AC35: =SUM('3 & 4'!K39,'3 & 4'!U39,'1 & 2'!K39,'1 & 2'!U39) -> 17766200 | AF35: Gallons
A36: 29 | B36: 165966 | C36: =IF(OR(B36="HOL",B36="SUN",B36="SAT",B36="No Read",B36=""),"",IF(INDEX(B36:$B$44,MATCH(TRUE,ISNUMBER(B36:$B$44),0))<LOOKUP(99^99,B$2:B35),(INDEX(B36:$B$44,MATCH(TRUE,ISNUMBER(B36:$B$44),0))*1000),(INDEX(B36:$B$44,MATCH(TRUE,ISNUMBER(B36:$B$44),0))-LOOKUP(99^99,B$2:B35))*1000)) -> 100000 | D36: 100000 | E36: =IF(B36="",E35,IF(C36="",IF(E35>0,E35+1,1),1)) -> 1 | F36: =IF(B36="","",ROUND(OFFSET(D36,MATCH(TRUE,INDEX(D37:D$44<>"",0),0),0),0)) -> 40000 | G36: 2265913 | H36: =IF(OR(G36="HOL",G36="SUN",G36="SAT",G36="No Read",G36=""),"",IF(INDEX(G36:$G$44,MATCH(TRUE,ISNUMBER(G36:$G$44),0))<LOOKUP(99^99,G$2:G35),(INDEX(G36:$G$44,MATCH(TRUE,ISNUMBER(G36:$G$44),0))*100),(INDEX(G36:$G$44,MATCH(TRUE,ISNUMBER(G36:$G$44),0))-LOOKUP(99^99,G$2:G35))*100)) -> 145300 | I36: 145300 | J36: =IF(G36="",J35,IF(H36="",IF(J35>0,J35+1,1),1)) -> 1 | K36: =IF(G36="","",ROUND(OFFSET(I36,MATCH(TRUE,INDEX(I37:I$44<>"",0),0),0),0)) -> 163300 | L36: 260820 | M36: =IF(OR(L36="HOL",L36="SUN",L36="SAT",L36="No Read",L36=""),"",IF(INDEX(L36:$L$44,MATCH(TRUE,ISNUMBER(L36:$L$44),0))<LOOKUP(99^99,L$2:L35),(INDEX(L36:$L$44,MATCH(TRUE,ISNUMBER(L36:$L$44),0))*1000),(INDEX(L36:$L$44,MATCH(TRUE,ISNUMBER(L36:$L$44),0))-LOOKUP(99^99,L$2:L35))*1000)) -> 115000 | N36: 115000 | O36: =IF(L36="",O35,IF(M36="",IF(O35>0,O35+1,1),1)) -> 1 | P36: =IF(L36="","",ROUND(OFFSET(N36,MATCH(TRUE,INDEX(N37:N$44<>"",0),0),0),0)) -> 47000 | Q36: 1857554 | R36: =IF(OR(Q36="HOL",Q36="SUN",Q36="SAT",Q36="No Read",Q36=""),"",IF(INDEX(Q36:$Q$44,MATCH(TRUE,ISNUMBER(Q36:$Q$44),0))<LOOKUP(99^99,Q$2:Q35),(INDEX(Q36:$Q$44,MATCH(TRUE,ISNUMBER(Q36:$Q$44),0))*1000),(INDEX(Q36:$Q$44,MATCH(TRUE,ISNUMBER(Q36:$Q$44),0))-LOOKUP(99^99,Q$2:Q35))*1000)) -> 221000 | S36: 221000 | T36: =IF(Q36="",T35,IF(R36="",IF(T35>0,T35+1,1),1)) -> 1 | U36: =IF(Q36="","",ROUND(OFFSET(S36,MATCH(TRUE,INDEX(S37:S$44<>"",0),0),0),0)) -> 248000
A37: 30 | B37: 166006 | C37: =IF(OR(B37="HOL",B37="SUN",B37="SAT",B37="No Read",B37=""),"",IF(INDEX(B37:$B$44,MATCH(TRUE,ISNUMBER(B37:$B$44),0))<LOOKUP(99^99,B$2:B36),(INDEX(B37:$B$44,MATCH(TRUE,ISNUMBER(B37:$B$44),0))*1000),(INDEX(B37:$B$44,MATCH(TRUE,ISNUMBER(B37:$B$44),0))-LOOKUP(99^99,B$2:B36))*1000)) -> 40000 | D37: 40000 | E37: =IF(B37="",E36,IF(C37="",IF(E36>0,E36+1,1),1)) -> 1 | F37: =IF(B37="","",ROUND(OFFSET(D37,MATCH(TRUE,INDEX(D38:D$44<>"",0),0),0),0)) -> 53000 | G37: 2267546 | H37: =IF(OR(G37="HOL",G37="SUN",G37="SAT",G37="No Read",G37=""),"",IF(INDEX(G37:$G$44,MATCH(TRUE,ISNUMBER(G37:$G$44),0))<LOOKUP(99^99,G$2:G36),(INDEX(G37:$G$44,MATCH(TRUE,ISNUMBER(G37:$G$44),0))*100),(INDEX(G37:$G$44,MATCH(TRUE,ISNUMBER(G37:$G$44),0))-LOOKUP(99^99,G$2:G36))*100)) -> 163300 | I37: 163300 | J37: =IF(G37="",J36,IF(H37="",IF(J36>0,J36+1,1),1)) -> 1 | K37: =IF(G37="","",ROUND(OFFSET(I37,MATCH(TRUE,INDEX(I38:I$44<>"",0),0),0),0)) -> 165900 | L37: 260867 | M37: =IF(OR(L37="HOL",L37="SUN",L37="SAT",L37="No Read",L37=""),"",IF(INDEX(L37:$L$44,MATCH(TRUE,ISNUMBER(L37:$L$44),0))<LOOKUP(99^99,L$2:L36),(INDEX(L37:$L$44,MATCH(TRUE,ISNUMBER(L37:$L$44),0))*1000),(INDEX(L37:$L$44,MATCH(TRUE,ISNUMBER(L37:$L$44),0))-LOOKUP(99^99,L$2:L36))*1000)) -> 47000 | N37: 47000 | O37: =IF(L37="",O36,IF(M37="",IF(O36>0,O36+1,1),1)) -> 1 | P37: =IF(L37="","",ROUND(OFFSET(N37,MATCH(TRUE,INDEX(N38:N$44<>"",0),0),0),0)) -> 60000 | Q37: 1857802 | R37: =IF(OR(Q37="HOL",Q37="SUN",Q37="SAT",Q37="No Read",Q37=""),"",IF(INDEX(Q37:$Q$44,MATCH(TRUE,ISNUMBER(Q37:$Q$44),0))<LOOKUP(99^99,Q$2:Q36),(INDEX(Q37:$Q$44,MATCH(TRUE,ISNUMBER(Q37:$Q$44),0))*1000),(INDEX(Q37:$Q$44,MATCH(TRUE,ISNUMBER(Q37:$Q$44),0))-LOOKUP(99^99,Q$2:Q36))*1000)) -> 248000 | S37: 248000 | T37: =IF(Q37="",T36,IF(R37="",IF(T36>0,T36+1,1),1)) -> 1 | U37: =IF(Q37="","",ROUND(OFFSET(S37,MATCH(TRUE,INDEX(S38:S$44<>"",0),0),0),0)) -> 258000 | X37: =SUM('3 & 4'!F40,'3 & 4'!P40,'1 & 2'!F40,'1 & 2'!P40) -> 54.15547501 | AA37: Acre-Ft. | AC37: =SUM('3 & 4'!K40,'3 & 4'!U40,'1 & 2'!K40,'1 & 2'!U40) -> 54.52213115 | AF37: Acre-Ft.
A38: 31 | B38: 166059 | C38: =IF(OR(B38="HOL",B38="SUN",B38="SAT",B38="No Read",B38=""),"",IF(INDEX(B38:$B$44,MATCH(TRUE,ISNUMBER(B38:$B$44),0))<LOOKUP(99^99,B$2:B37),(INDEX(B38:$B$44,MATCH(TRUE,ISNUMBER(B38:$B$44),0))*1000),(INDEX(B38:$B$44,MATCH(TRUE,ISNUMBER(B38:$B$44),0))-LOOKUP(99^99,B$2:B37))*1000)) -> 53000 | D38: 53000 | E38: =IF(B38="",E37,IF(C38="",IF(E37>0,E37+1,1),1)) -> 1 | F38: =IF(B38="","",ROUND(OFFSET(D38,MATCH(TRUE,INDEX(D39:D$44<>"",0),0),0),0)) -> 99000 | G38: 2269205 | H38: =IF(OR(G38="HOL",G38="SUN",G38="SAT",G38="No Read",G38=""),"",IF(INDEX(G38:$G$44,MATCH(TRUE,ISNUMBER(G38:$G$44),0))<LOOKUP(99^99,G$2:G37),(INDEX(G38:$G$44,MATCH(TRUE,ISNUMBER(G38:$G$44),0))*100),(INDEX(G38:$G$44,MATCH(TRUE,ISNUMBER(G38:$G$44),0))-LOOKUP(99^99,G$2:G37))*100)) -> 165900 | I38: 165900 | J38: =IF(G38="",J37,IF(H38="",IF(J37>0,J37+1,1),1)) -> 1 | K38: =IF(G38="","",ROUND(OFFSET(I38,MATCH(TRUE,INDEX(I39:I$44<>"",0),0),0),0)) -> 156200 | L38: 260927 | M38: =IF(OR(L38="HOL",L38="SUN",L38="SAT",L38="No Read",L38=""),"",IF(INDEX(L38:$L$44,MATCH(TRUE,ISNUMBER(L38:$L$44),0))<LOOKUP(99^99,L$2:L37),(INDEX(L38:$L$44,MATCH(TRUE,ISNUMBER(L38:$L$44),0))*1000),(INDEX(L38:$L$44,MATCH(TRUE,ISNUMBER(L38:$L$44),0))-LOOKUP(99^99,L$2:L37))*1000)) -> 60000 | N38: 60000 | O38: =IF(L38="",O37,IF(M38="",IF(O37>0,O37+1,1),1)) -> 1 | P38: =IF(L38="","",ROUND(OFFSET(N38,MATCH(TRUE,INDEX(N39:N$44<>"",0),0),0),0)) -> 114000 | Q38: 1858060 | R38: =IF(OR(Q38="HOL",Q38="SUN",Q38="SAT",Q38="No Read",Q38=""),"",IF(INDEX(Q38:$Q$44,MATCH(TRUE,ISNUMBER(Q38:$Q$44),0))<LOOKUP(99^99,Q$2:Q37),(INDEX(Q38:$Q$44,MATCH(TRUE,ISNUMBER(Q38:$Q$44),0))*1000),(INDEX(Q38:$Q$44,MATCH(TRUE,ISNUMBER(Q38:$Q$44),0))-LOOKUP(99^99,Q$2:Q37))*1000)) -> 258000 | S38: 258000 | T38: =IF(Q38="",T37,IF(R38="",IF(T37>0,T37+1,1),1)) -> 1 | U38: =IF(Q38="","",ROUND(OFFSET(S38,MATCH(TRUE,INDEX(S39:S$44<>"",0),0),0),0)) -> 234000
A39: TOTAL: | F39: =IF(COUNTBLANK(F$8:F$38)=31,"",SUM(F$8:F$38)) -> 1944000 | K39: =IF(COUNTBLANK(K$8:K$38)=31,"",SUM(K$8:K$38)) -> 4934200 | P39: =IF(COUNTBLANK(P$8:P$38)=31,"",SUM(P$8:P$38)) -> 2229000 | U39: =IF(COUNTBLANK(U$8:U$38)=31,"",SUM(U$8:U$38)) -> 7457000 | V39: Gallons
F40: =IF(F$39="","",F$39/325853) -> 5.96588032 | K40: =IF(K$39="","",K$39/325853) -> 15.14241084 | P40: =IF(P$39="","",P$39/325853) -> 6.840507836 | U40: =IF(U$39="","",U$39/325853) -> 22.88455224 | V40: Acre-Ft.
B41: 166158 | C41: =IF(OR(B41="HOL",B41="SUN",B41="SAT",B41="No Read",B41=""),"",IF(INDEX(B41:$B$44,MATCH(TRUE,ISNUMBER(B41:$B$44),0))<LOOKUP(99^99,B$2:B40),(INDEX(B41:$B$44,MATCH(TRUE,ISNUMBER(B41:$B$44),0))*1000),(INDEX(B41:$B$44,MATCH(TRUE,ISNUMBER(B41:$B$44),0))-LOOKUP(99^99,B$2:B40))*1000)) -> 99000 | D41: =IF(OR(B41="HOL",B41="SUN",B41="SAT",B41="No Read",B41=""),"",ROUND(C41/E38,1)) -> 99000 | E41: =IF(B41="",E38,IF(C41="",IF(E38>0,E38+1,1),1)) -> 1 | F41: =IF(B42="","",OFFSET(D41,MATCH(TRUE,INDEX(D42:D$44<>"",0),0),0)) ->  | G41: 2270767 | H41: =IF(OR(G41="HOL",G41="SUN",G41="SAT",G41="No Read",G41=""),"",IF(INDEX(G41:$G$44,MATCH(TRUE,ISNUMBER(G41:$G$44),0))<LOOKUP(99^99,G$2:G40),(INDEX(G41:$G$44,MATCH(TRUE,ISNUMBER(G41:$G$44),0))*100),(INDEX(G41:$G$44,MATCH(TRUE,ISNUMBER(G41:$G$44),0))-LOOKUP(99^99,G$2:G40))*100)) -> 156200 | I41: =IF(OR(G41="HOL",G41="SUN",G41="SAT",G41="No Read",G41=""),"",ROUND(H41/J38,1)) -> 156200 | J41: =IF(G41="",J38,IF(H41="",IF(J38>0,J38+1,1),1)) -> 1 | K41: =IF(G42="","",OFFSET(I41,MATCH(TRUE,INDEX(I42:I$44<>"",0),0),0)) ->  | L41: 261041 | M41: =IF(OR(L41="HOL",L41="SUN",L41="SAT",L41="No Read",L41=""),"",IF(INDEX(L41:$L$44,MATCH(TRUE,ISNUMBER(L41:$L$44),0))<LOOKUP(99^99,L$2:L40),(INDEX(L41:$L$44,MATCH(TRUE,ISNUMBER(L41:$L$44),0))*1000),(INDEX(L41:$L$44,MATCH(TRUE,ISNUMBER(L41:$L$44),0))-LOOKUP(99^99,L$2:L40))*1000)) -> 114000 | N41: =IF(OR(L41="HOL",L41="SUN",L41="SAT",L41="No Read",L41=""),"",ROUND(M41/O38,1)) -> 114000 | O41: =IF(L41="",O38,IF(M41="",IF(O38>0,O38+1,1),1)) -> 1 | P41: =IF(L42="","",OFFSET(N41,MATCH(TRUE,INDEX(N42:N$44<>"",0),0),0)) ->  | Q41: 1858294 | R41: =IF(OR(Q41="HOL",Q41="SUN",Q41="SAT",Q41="No Read",Q41=""),"",IF(INDEX(Q41:$Q$44,MATCH(TRUE,ISNUMBER(Q41:$Q$44),0))<LOOKUP(99^99,Q$2:Q40),(INDEX(Q41:$Q$44,MATCH(TRUE,ISNUMBER(Q41:$Q$44),0))*1000),(INDEX(Q41:$Q$44,MATCH(TRUE,ISNUMBER(Q41:$Q$44),0))-LOOKUP(99^99,Q$2:Q40))*1000)) -> 234000 | S41: =IF(OR(Q41="HOL",Q41="SUN",Q41="SAT",Q41="No Read",Q41=""),"",ROUND(R41/T38,1)) -> 234000 | T41: =IF(Q41="",T38,IF(R41="",IF(T38>0,T38+1,1),1)) -> 1 | U41: =IF(Q42="","",OFFSET(S41,MATCH(TRUE,INDEX(S42:S$44<>"",0),0),0)) -> 
C42: =IF(OR(B42="HOL",B42="SUN",B42="SAT",B42="No Read",B42=""),"",IF(INDEX(B42:$B$44,MATCH(TRUE,ISNUMBER(B42:$B$44),0))<LOOKUP(99^99,B$2:B41),(INDEX(B42:$B$44,MATCH(TRUE,ISNUMBER(B42:$B$44),0))*1000),(INDEX(B42:$B$44,MATCH(TRUE,ISNUMBER(B42:$B$44),0))-LOOKUP(99^99,B$2:B41))*1000)) ->  | D42: =IF(OR(B42="HOL",B42="SUN",B42="SAT",B42="No Read",B42=""),"",ROUND(C42/E41,1)) ->  | E42: =IF(B42="",E41,IF(C42="",IF(E41>0,E41+1,1),1)) -> 1 | F42: =IF(B43="","",OFFSET(D42,MATCH(TRUE,INDEX(D43:D$44<>"",0),0),0)) ->  | H42: =IF(OR(G42="HOL",G42="SUN",G42="SAT",G42="No Read",G42=""),"",IF(INDEX(G42:$G$44,MATCH(TRUE,ISNUMBER(G42:$G$44),0))<LOOKUP(99^99,G$2:G41),(INDEX(G42:$G$44,MATCH(TRUE,ISNUMBER(G42:$G$44),0))*100),(INDEX(G42:$G$44,MATCH(TRUE,ISNUMBER(G42:$G$44),0))-LOOKUP(99^99,G$2:G41))*100)) ->  | I42: =IF(OR(G42="HOL",G42="SUN",G42="SAT",G42="No Read",G42=""),"",ROUND(H42/J41,1)) ->  | J42: =IF(G42="",J41,IF(H42="",IF(J41>0,J41+1,1),1)) -> 1 | K42: =IF(G43="","",OFFSET(I42,MATCH(TRUE,INDEX(I43:I$44<>"",0),0),0)) ->  | M42: =IF(OR(L42="HOL",L42="SUN",L42="SAT",L42="No Read",L42=""),"",IF(INDEX(L42:$L$44,MATCH(TRUE,ISNUMBER(L42:$L$44),0))<LOOKUP(99^99,L$2:L41),(INDEX(L42:$L$44,MATCH(TRUE,ISNUMBER(L42:$L$44),0))*1000),(INDEX(L42:$L$44,MATCH(TRUE,ISNUMBER(L42:$L$44),0))-LOOKUP(99^99,L$2:L41))*1000)) ->  | N42: =IF(OR(L42="HOL",L42="SUN",L42="SAT",L42="No Read",L42=""),"",ROUND(M42/O41,1)) ->  | O42: =IF(L42="",O41,IF(M42="",IF(O41>0,O41+1,1),1)) -> 1 | P42: =IF(L43="","",OFFSET(N42,MATCH(TRUE,INDEX(N43:N$44<>"",0),0),0)) ->  | R42: =IF(OR(Q42="HOL",Q42="SUN",Q42="SAT",Q42="No Read",Q42=""),"",IF(INDEX(Q42:$Q$44,MATCH(TRUE,ISNUMBER(Q42:$Q$44),0))<LOOKUP(99^99,Q$2:Q41),(INDEX(Q42:$Q$44,MATCH(TRUE,ISNUMBER(Q42:$Q$44),0))*1000),(INDEX(Q42:$Q$44,MATCH(TRUE,ISNUMBER(Q42:$Q$44),0))-LOOKUP(99^99,Q$2:Q41))*1000)) ->  | S42: =IF(OR(Q42="HOL",Q42="SUN",Q42="SAT",Q42="No Read",Q42=""),"",ROUND(R42/T41,1)) ->  | T42: =IF(Q42="",T41,IF(R42="",IF(T41>0,T41+1,1),1)) -> 1 | U42: =IF(Q43="","",OFFSET(S42,MATCH(TRUE,INDEX(S43:S$44<>"",0),0),0)) -> 
C43: =IF(OR(B43="HOL",B43="SUN",B43="SAT",B43="No Read",B43=""),"",IF(INDEX(B43:$B$44,MATCH(TRUE,ISNUMBER(B43:$B$44),0))<LOOKUP(99^99,B$2:B42),(INDEX(B43:$B$44,MATCH(TRUE,ISNUMBER(B43:$B$44),0))*1000),(INDEX(B43:$B$44,MATCH(TRUE,ISNUMBER(B43:$B$44),0))-LOOKUP(99^99,B$2:B42))*1000)) ->  | E43: =IF(B43="",E42,IF(C43="",IF(E42>0,E42+1,1),1)) -> 1 | F43: =IF(B44="","",OFFSET(D43,MATCH(TRUE,INDEX(D44:D$44<>"",0),0),0)) ->  | H43: =IF(OR(G43="HOL",G43="SUN",G43="SAT",G43="No Read",G43=""),"",IF(INDEX(G43:$G$44,MATCH(TRUE,ISNUMBER(G43:$G$44),0))<LOOKUP(99^99,G$2:G42),(INDEX(G43:$G$44,MATCH(TRUE,ISNUMBER(G43:$G$44),0))*100),(INDEX(G43:$G$44,MATCH(TRUE,ISNUMBER(G43:$G$44),0))-LOOKUP(99^99,G$2:G42))*100)) ->  | J43: =IF(G43="",J42,IF(H43="",IF(J42>0,J42+1,1),1)) -> 1 | K43: =IF(G44="","",OFFSET(I43,MATCH(TRUE,INDEX(I44:I$44<>"",0),0),0)) ->  | M43: =IF(OR(L43="HOL",L43="SUN",L43="SAT",L43="No Read",L43=""),"",IF(INDEX(L43:$L$44,MATCH(TRUE,ISNUMBER(L43:$L$44),0))<LOOKUP(99^99,L$2:L42),(INDEX(L43:$L$44,MATCH(TRUE,ISNUMBER(L43:$L$44),0))*1000),(INDEX(L43:$L$44,MATCH(TRUE,ISNUMBER(L43:$L$44),0))-LOOKUP(99^99,L$2:L42))*1000)) ->  | O43: =IF(L43="",O42,IF(M43="",IF(O42>0,O42+1,1),1)) -> 1 | P43: =IF(L44="","",OFFSET(N43,MATCH(TRUE,INDEX(N44:N$44<>"",0),0),0)) ->  | R43: =IF(OR(Q43="HOL",Q43="SUN",Q43="SAT",Q43="No Read",Q43=""),"",IF(INDEX(Q43:$Q$44,MATCH(TRUE,ISNUMBER(Q43:$Q$44),0))<LOOKUP(99^99,Q$2:Q42),(INDEX(Q43:$Q$44,MATCH(TRUE,ISNUMBER(Q43:$Q$44),0))*1000),(INDEX(Q43:$Q$44,MATCH(TRUE,ISNUMBER(Q43:$Q$44),0))-LOOKUP(99^99,Q$2:Q42))*1000)) ->  | T43: =IF(Q43="",T42,IF(R43="",IF(T42>0,T42+1,1),1)) -> 1 | U43: =IF(Q44="","",OFFSET(S43,MATCH(TRUE,INDEX(S44:S$44<>"",0),0),0)) -> 
C44: =IF(OR(B44="HOL",B44="SUN",B44="SAT",B44="No Read",B44=""),"",IF(INDEX(B44:$B$44,MATCH(TRUE,ISNUMBER(B44:$B$44),0))<LOOKUP(99^99,B$2:B43),(INDEX(B44:$B$44,MATCH(TRUE,ISNUMBER(B44:$B$44),0))*1000),(INDEX(B44:$B$44,MATCH(TRUE,ISNUMBER(B44:$B$44),0))-LOOKUP(99^99,B$2:B43))*1000)) ->  | E44: =IF(B44="",E43,IF(C44="",IF(E43>0,E43+1,1),1)) -> 1 | F44: =IF(B45="","",OFFSET(D44,MATCH(TRUE,INDEX(D$44:D45<>"",0),0),0)) ->  | H44: =IF(OR(G44="HOL",G44="SUN",G44="SAT",G44="No Read",G44=""),"",IF(INDEX(G44:$G$44,MATCH(TRUE,ISNUMBER(G44:$G$44),0))<LOOKUP(99^99,G$2:G43),(INDEX(G44:$G$44,MATCH(TRUE,ISNUMBER(G44:$G$44),0))*100),(INDEX(G44:$G$44,MATCH(TRUE,ISNUMBER(G44:$G$44),0))-LOOKUP(99^99,G$2:G43))*100)) ->  | J44: =IF(G44="",J43,IF(H44="",IF(J43>0,J43+1,1),1)) -> 1 | K44: =IF(G45="","",OFFSET(I44,MATCH(TRUE,INDEX(I$44:I45<>"",0),0),0)) ->  | M44: =IF(OR(L44="HOL",L44="SUN",L44="SAT",L44="No Read",L44=""),"",IF(INDEX(L44:$L$44,MATCH(TRUE,ISNUMBER(L44:$L$44),0))<LOOKUP(99^99,L$2:L43),(INDEX(L44:$L$44,MATCH(TRUE,ISNUMBER(L44:$L$44),0))*1000),(INDEX(L44:$L$44,MATCH(TRUE,ISNUMBER(L44:$L$44),0))-LOOKUP(99^99,L$2:L43))*1000)) ->  | O44: =IF(L44="",O43,IF(M44="",IF(O43>0,O43+1,1),1)) -> 1 | P44: =IF(L45="","",OFFSET(N44,MATCH(TRUE,INDEX(N$44:N45<>"",0),0),0)) ->  | R44: =IF(OR(Q44="HOL",Q44="SUN",Q44="SAT",Q44="No Read",Q44=""),"",IF(INDEX(Q44:$Q$44,MATCH(TRUE,ISNUMBER(Q44:$Q$44),0))<LOOKUP(99^99,Q$2:Q43),(INDEX(Q44:$Q$44,MATCH(TRUE,ISNUMBER(Q44:$Q$44),0))*1000),(INDEX(Q44:$Q$44,MATCH(TRUE,ISNUMBER(Q44:$Q$44),0))-LOOKUP(99^99,Q$2:Q43))*1000)) ->  | T44: =IF(Q44="",T43,IF(R44="",IF(T43>0,T43+1,1),1)) -> 1 | U44: =IF(Q45="","",OFFSET(S44,MATCH(TRUE,INDEX(S$44:S45<>"",0),0),0)) -> 

Sheet 3 & 4
D2: =IF(OR(B2="HOL",B2="SUN",B2="SAT",B2="No Read",B2=""),"",ROUND(C2/E1,1)) ->  | E2: =IF(C2="",IF(E1>0,E1+1,1),1) -> 1 | I2: =IF(OR(G2="HOL",G2="SUN",G2="SAT",G2="No Read",G2=""),"",ROUND(H2/J1,1)) ->  | J2: =IF(H2="",IF(J1>0,J1+1,1),1) -> 1 | N2: =IF(OR(L2="HOL",L2="SUN",L2="SAT",L2="No Read",L2=""),"",ROUND(M2/O1,1)) ->  | O2: =IF(M2="",IF(O1>0,O1+1,1),1) -> 1 | S2: =IF(OR(Q2="HOL",Q2="SUN",Q2="SAT",Q2="No Read",Q2=""),"",ROUND(R2/T1,1)) ->  | T2: =IF(R2="",IF(T1>0,T1+1,1),1) -> 1
C3: =IF(OR(B3="HOL",B3="SUN",B3="SAT",B3="No Read",B3=""),"",(INDEX(B3:$B$44,MATCH(TRUE,ISNUMBER(B3:$B$44),0))-LOOKUP(99^99,$B$2:B3))*748) ->  | D3: =IF(OR(B3="HOL",B3="SUN",B3="SAT",B3="No Read",B3=""),"",ROUND(C3/E2,1)) ->  | E3: =IF(C3="",IF(E2>0,E2+1,1),1) -> 2 | H3: =IF(OR(G3="HOL",G3="SUN",G3="SAT",G3="No Read",G3=""),"",(INDEX(G3:$G$44,MATCH(TRUE,ISNUMBER(G3:$G$44),0))-LOOKUP(99^99,$G$2:G3))*1000) ->  | I3: =IF(OR(G3="HOL",G3="SUN",G3="SAT",G3="No Read",G3=""),"",ROUND(H3/J2,1)) ->  | J3: =IF(H3="",IF(J2>0,J2+1,1),1) -> 2 | M3: =IF(OR(L3="HOL",L3="SUN",L3="SAT",L3="No Read",L3=""),"",(INDEX(L3:$L$44,MATCH(TRUE,ISNUMBER(L3:$L$44),0))-LOOKUP(99^99,$L$2:L3))*748) ->  | N3: =IF(OR(L3="HOL",L3="SUN",L3="SAT",L3="No Read",L3=""),"",ROUND(M3/O2,1)) ->  | O3: =IF(M3="",IF(O2>0,O2+1,1),1) -> 2 | R3: =IF(OR(Q3="HOL",Q3="SUN",Q3="SAT",Q3="No Read",Q3=""),"",(INDEX(Q3:$Q$44,MATCH(TRUE,ISNUMBER(Q3:$Q$44),0))-LOOKUP(99^99,$Q$2:Q3))*1000) ->  | S3: =IF(OR(Q3="HOL",Q3="SUN",Q3="SAT",Q3="No Read",Q3=""),"",ROUND(R3/T2,1)) ->  | T3: =IF(R3="",IF(T2>0,T2+1,1),1) -> 2
C4: =IF(OR(B4="HOL",B4="SUN",B4="SAT",B4="No Read",B4=""),"",(INDEX(B4:$B$44,MATCH(TRUE,ISNUMBER(B4:$B$44),0))-LOOKUP(99^99,$B$2:B4))*748) ->  | D4: =IF(OR(B4="HOL",B4="SUN",B4="SAT",B4="No Read",B4=""),"",ROUND(C4/E3,1)) ->  | E4: =IF(C4="",IF(E3>0,E3+1,1),1) -> 3 | H4: =IF(OR(G4="HOL",G4="SUN",G4="SAT",G4="No Read",G4=""),"",(INDEX(G4:$G$44,MATCH(TRUE,ISNUMBER(G4:$G$44),0))-LOOKUP(99^99,$G$2:G4))*1000) ->  | I4: =IF(OR(G4="HOL",G4="SUN",G4="SAT",G4="No Read",G4=""),"",ROUND(H4/J3,1)) ->  | J4: =IF(H4="",IF(J3>0,J3+1,1),1) -> 3 | M4: =IF(OR(L4="HOL",L4="SUN",L4="SAT",L4="No Read",L4=""),"",(INDEX(L4:$L$44,MATCH(TRUE,ISNUMBER(L4:$L$44),0))-LOOKUP(99^99,$L$2:L4))*748) ->  | N4: =IF(OR(L4="HOL",L4="SUN",L4="SAT",L4="No Read",L4=""),"",ROUND(M4/O3,1)) ->  | O4: =IF(M4="",IF(O3>0,O3+1,1),1) -> 3 | R4: =IF(OR(Q4="HOL",Q4="SUN",Q4="SAT",Q4="No Read",Q4=""),"",(INDEX(Q4:$Q$44,MATCH(TRUE,ISNUMBER(Q4:$Q$44),0))-LOOKUP(99^99,$Q$2:Q4))*1000) ->  | S4: =IF(OR(Q4="HOL",Q4="SUN",Q4="SAT",Q4="No Read",Q4=""),"",ROUND(R4/T3,1)) ->  | T4: =IF(R4="",IF(T3>0,T3+1,1),1) -> 3
B5: 517370 | C5: =IF(OR(B5="HOL",B5="SUN",B5="SAT",B5="No Read",B5=""),"",(INDEX(B5:$B$44,MATCH(TRUE,ISNUMBER(B5:$B$44),0))-LOOKUP(99^99,$B$2:B5))*748) -> 0 | D5: =IF(OR(B5="HOL",B5="SUN",B5="SAT",B5="No Read",B5=""),"",ROUND(C5/E4,1)) -> 0 | E5: =IF(C5="",IF(E4>0,E4+1,1),1) -> 1 | G5: 1348050 | H5: =IF(OR(G5="HOL",G5="SUN",G5="SAT",G5="No Read",G5=""),"",(INDEX(G5:$G$44,MATCH(TRUE,ISNUMBER(G5:$G$44),0))-LOOKUP(99^99,$G$2:G5))*1000) -> 0 | I5: =IF(OR(G5="HOL",G5="SUN",G5="SAT",G5="No Read",G5=""),"",ROUND(H5/J4,1)) -> 0 | J5: =IF(H5="",IF(J4>0,J4+1,1),1) -> 1 | L5: 1867449 | M5: =IF(OR(L5="HOL",L5="SUN",L5="SAT",L5="No Read",L5=""),"",(INDEX(L5:$L$44,MATCH(TRUE,ISNUMBER(L5:$L$44),0))-LOOKUP(99^99,$L$2:L5))*748) -> 0 | N5: =IF(OR(L5="HOL",L5="SUN",L5="SAT",L5="No Read",L5=""),"",ROUND(M5/O4,1)) -> 0 | O5: =IF(M5="",IF(O4>0,O4+1,1),1) -> 1 | Q5: 199257 | R5: =IF(OR(Q5="HOL",Q5="SUN",Q5="SAT",Q5="No Read",Q5=""),"",(INDEX(Q5:$Q$44,MATCH(TRUE,ISNUMBER(Q5:$Q$44),0))-LOOKUP(99^99,$Q$2:Q5))*1000) -> 0 | S5: =IF(OR(Q5="HOL",Q5="SUN",Q5="SAT",Q5="No Read",Q5=""),"",ROUND(R5/T4,1)) -> 0 | T5: =IF(R5="",IF(T4>0,T4+1,1),1) -> 1
K6: 2022-10-18
A7: DATE | B7: Well #3 | F7: GAL USED | G7: Booster #3 | K7: GAL USED | L7: Well #4 | P7: GAL USED | Q7: Booster #4 | U7: GAL USED
A8: 1 | B8: 517508 | C8: =IF(OR(B8="HOL",B8="SUN",B8="SAT",B8="No Read",B8=""),"",IF(INDEX(B8:$B$44,MATCH(TRUE,ISNUMBER(B8:$B$44),0))<LOOKUP(99^99,B$2:B7),(INDEX(B8:$B$44,MATCH(TRUE,ISNUMBER(B8:$B$44),0))*748),(INDEX(B8:$B$44,MATCH(TRUE,ISNUMBER(B8:$B$44),0))-LOOKUP(99^99,B$2:B7))*748)) -> 103224 | D8: =IF(OR(B8="HOL",B8="SUN",B8="SAT",B8="No Read",B8=""),"",ROUND(C8/E5,1)) -> 103224 | E8: =IF(B8="",E5,IF(C8="",IF(E5>0,E5+1,1),1)) -> 1 | F8: =IF(B8="","",ROUND(OFFSET(D8,MATCH(TRUE,INDEX(D9:D$44<>"",0),0),0),0)) -> 61336 | G8: 1348280 | H8: =IF(OR(G8="HOL",G8="SUN",G8="SAT",G8="No Read",G8=""),"",IF(INDEX(G8:$G$44,MATCH(TRUE,ISNUMBER(G8:$G$44),0))<LOOKUP(99^99,G$2:G7),(INDEX(G8:$G$44,MATCH(TRUE,ISNUMBER(G8:$G$44),0))*1000),(INDEX(G8:$G$44,MATCH(TRUE,ISNUMBER(G8:$G$44),0))-LOOKUP(99^99,G$2:G7))*1000)) -> 230000 | I8: =IF(OR(G8="HOL",G8="SUN",G8="SAT",G8="No Read",G8=""),"",ROUND(H8/J5,1)) -> 230000 | J8: =IF(G8="",J5,IF(H8="",IF(J5>0,J5+1,1),1)) -> 1 | K8: =IF(G8="","",ROUND(OFFSET(I8,MATCH(TRUE,INDEX(I9:I$44<>"",0),0),0),0)) -> 175000 | L8: 1867954 | M8: =IF(OR(L8="HOL",L8="SUN",L8="SAT",L8="No Read",L8=""),"",IF(INDEX(L8:$L$44,MATCH(TRUE,ISNUMBER(L8:$L$44),0))<LOOKUP(99^99,L$2:L7),(INDEX(L8:$L$44,MATCH(TRUE,ISNUMBER(L8:$L$44),0))*748),(INDEX(L8:$L$44,MATCH(TRUE,ISNUMBER(L8:$L$44),0))-LOOKUP(99^99,L$2:L7))*748)) -> 377740 | N8: =IF(OR(L8="HOL",L8="SUN",L8="SAT",L8="No Read",L8=""),"",ROUND(M8/O5,1)) -> 377740 | O8: =IF(L8="",O5,IF(M8="",IF(O5>0,O5+1,1),1)) -> 1 | P8: =IF(L8="","",ROUND(OFFSET(N8,MATCH(TRUE,INDEX(N9:N$44<>"",0),0),0),0)) -> 187000 | Q8: 199264 | R8: =IF(OR(Q8="HOL",Q8="SUN",Q8="SAT",Q8="No Read",Q8=""),"",IF(INDEX(Q8:$Q$44,MATCH(TRUE,ISNUMBER(Q8:$Q$44),0))<LOOKUP(99^99,Q$2:Q7),(INDEX(Q8:$Q$44,MATCH(TRUE,ISNUMBER(Q8:$Q$44),0))*1000),(INDEX(Q8:$Q$44,MATCH(TRUE,ISNUMBER(Q8:$Q$44),0))-LOOKUP(99^99,Q$2:Q7))*1000)) -> 7000 | S8: =IF(OR(Q8="HOL",Q8="SUN",Q8="SAT",Q8="No Read",Q8=""),"",ROUND(R8/T5,1)) -> 7000 | T8: =IF(Q8="",T5,IF(R8="",IF(T5>0,T5+1,1),1)) -> 1 | U8: =IF(Q8="","",ROUND(OFFSET(S8,MATCH(TRUE,INDEX(S9:S$44<>"",0),0),0),0)) -> 0
A9: 2 | B9: 517590 | C9: =IF(OR(B9="HOL",B9="SUN",B9="SAT",B9="No Read",B9=""),"",IF(INDEX(B9:$B$44,MATCH(TRUE,ISNUMBER(B9:$B$44),0))<LOOKUP(99^99,B$2:B8),(INDEX(B9:$B$44,MATCH(TRUE,ISNUMBER(B9:$B$44),0))*748),(INDEX(B9:$B$44,MATCH(TRUE,ISNUMBER(B9:$B$44),0))-LOOKUP(99^99,B$2:B8))*748)) -> 61336 | D9: =IF(OR(B9="HOL",B9="SUN",B9="SAT",B9="No Read",B9=""),"",ROUND(C9/E8,1)) -> 61336 | E9: =IF(B9="",E8,IF(C9="",IF(E8>0,E8+1,1),1)) -> 1 | F9: =IF(B9="","",ROUND(OFFSET(D9,MATCH(TRUE,INDEX(D10:D$44<>"",0),0),0),0)) -> 198968 | G9: 1348455 | H9: =IF(OR(G9="HOL",G9="SUN",G9="SAT",G9="No Read",G9=""),"",IF(INDEX(G9:$G$44,MATCH(TRUE,ISNUMBER(G9:$G$44),0))<LOOKUP(99^99,G$2:G8),(INDEX(G9:$G$44,MATCH(TRUE,ISNUMBER(G9:$G$44),0))*1000),(INDEX(G9:$G$44,MATCH(TRUE,ISNUMBER(G9:$G$44),0))-LOOKUP(99^99,G$2:G8))*1000)) -> 175000 | I9: =IF(OR(G9="HOL",G9="SUN",G9="SAT",G9="No Read",G9=""),"",ROUND(H9/J8,1)) -> 175000 | J9: =IF(G9="",J8,IF(H9="",IF(J8>0,J8+1,1),1)) -> 1 | K9: =IF(G9="","",ROUND(OFFSET(I9,MATCH(TRUE,INDEX(I10:I$44<>"",0),0),0),0)) -> 318000 | L9: 1868204 | M9: =IF(OR(L9="HOL",L9="SUN",L9="SAT",L9="No Read",L9=""),"",IF(INDEX(L9:$L$44,MATCH(TRUE,ISNUMBER(L9:$L$44),0))<LOOKUP(99^99,L$2:L8),(INDEX(L9:$L$44,MATCH(TRUE,ISNUMBER(L9:$L$44),0))*748),(INDEX(L9:$L$44,MATCH(TRUE,ISNUMBER(L9:$L$44),0))-LOOKUP(99^99,L$2:L8))*748)) -> 187000 | N9: =IF(OR(L9="HOL",L9="SUN",L9="SAT",L9="No Read",L9=""),"",ROUND(M9/O8,1)) -> 187000 | O9: =IF(L9="",O8,IF(M9="",IF(O8>0,O8+1,1),1)) -> 1 | P9: =IF(L9="","",ROUND(OFFSET(N9,MATCH(TRUE,INDEX(N10:N$44<>"",0),0),0),0)) -> 613360 | Q9: 199264 | R9: =IF(OR(Q9="HOL",Q9="SUN",Q9="SAT",Q9="No Read",Q9=""),"",IF(INDEX(Q9:$Q$44,MATCH(TRUE,ISNUMBER(Q9:$Q$44),0))<LOOKUP(99^99,Q$2:Q8),(INDEX(Q9:$Q$44,MATCH(TRUE,ISNUMBER(Q9:$Q$44),0))*1000),(INDEX(Q9:$Q$44,MATCH(TRUE,ISNUMBER(Q9:$Q$44),0))-LOOKUP(99^99,Q$2:Q8))*1000)) -> 0 | S9: =IF(OR(Q9="HOL",Q9="SUN",Q9="SAT",Q9="No Read",Q9=""),"",ROUND(R9/T8,1)) -> 0 | T9: =IF(Q9="",T8,IF(R9="",IF(T8>0,T8+1,1),1)) -> 1 | U9: =IF(Q9="","",ROUND(OFFSET(S9,MATCH(TRUE,INDEX(S10:S$44<>"",0),0),0),0)) -> 0
A10: 3 | B10: 517856 | C10: =IF(OR(B10="HOL",B10="SUN",B10="SAT",B10="No Read",B10=""),"",IF(INDEX(B10:$B$44,MATCH(TRUE,ISNUMBER(B10:$B$44),0))<LOOKUP(99^99,B$2:B9),(INDEX(B10:$B$44,MATCH(TRUE,ISNUMBER(B10:$B$44),0))*748),(INDEX(B10:$B$44,MATCH(TRUE,ISNUMBER(B10:$B$44),0))-LOOKUP(99^99,B$2:B9))*748)) -> 198968 | D10: =IF(OR(B10="HOL",B10="SUN",B10="SAT",B10="No Read",B10=""),"",ROUND(C10/E9,1)) -> 198968 | E10: =IF(B10="",E9,IF(C10="",IF(E9>0,E9+1,1),1)) -> 1 | F10: =IF(B10="","",ROUND(OFFSET(D10,MATCH(TRUE,INDEX(D11:D$44<>"",0),0),0),0)) -> 174284 | G10: 1348773 | H10: =IF(OR(G10="HOL",G10="SUN",G10="SAT",G10="No Read",G10=""),"",IF(INDEX(G10:$G$44,MATCH(TRUE,ISNUMBER(G10:$G$44),0))<LOOKUP(99^99,G$2:G9),(INDEX(G10:$G$44,MATCH(TRUE,ISNUMBER(G10:$G$44),0))*1000),(INDEX(G10:$G$44,MATCH(TRUE,ISNUMBER(G10:$G$44),0))-LOOKUP(99^99,G$2:G9))*1000)) -> 318000 | I10: =IF(OR(G10="HOL",G10="SUN",G10="SAT",G10="No Read",G10=""),"",ROUND(H10/J9,1)) -> 318000 | J10: =IF(G10="",J9,IF(H10="",IF(J9>0,J9+1,1),1)) -> 1 | K10: =IF(G10="","",ROUND(OFFSET(I10,MATCH(TRUE,INDEX(I11:I$44<>"",0),0),0),0)) -> 241000 | L10: 1869024 | M10: =IF(OR(L10="HOL",L10="SUN",L10="SAT",L10="No Read",L10=""),"",IF(INDEX(L10:$L$44,MATCH(TRUE,ISNUMBER(L10:$L$44),0))<LOOKUP(99^99,L$2:L9),(INDEX(L10:$L$44,MATCH(TRUE,ISNUMBER(L10:$L$44),0))*748),(INDEX(L10:$L$44,MATCH(TRUE,ISNUMBER(L10:$L$44),0))-LOOKUP(99^99,L$2:L9))*748)) -> 613360 | N10: =IF(OR(L10="HOL",L10="SUN",L10="SAT",L10="No Read",L10=""),"",ROUND(M10/O9,1)) -> 613360 | O10: =IF(L10="",O9,IF(M10="",IF(O9>0,O9+1,1),1)) -> 1 | P10: =IF(L10="","",ROUND(OFFSET(N10,MATCH(TRUE,INDEX(N11:N$44<>"",0),0),0),0)) -> 385968 | Q10: 199264 | R10: =IF(OR(Q10="HOL",Q10="SUN",Q10="SAT",Q10="No Read",Q10=""),"",IF(INDEX(Q10:$Q$44,MATCH(TRUE,ISNUMBER(Q10:$Q$44),0))<LOOKUP(99^99,Q$2:Q9),(INDEX(Q10:$Q$44,MATCH(TRUE,ISNUMBER(Q10:$Q$44),0))*1000),(INDEX(Q10:$Q$44,MATCH(TRUE,ISNUMBER(Q10:$Q$44),0))-LOOKUP(99^99,Q$2:Q9))*1000)) -> 0 | S10: =IF(OR(Q10="HOL",Q10="SUN",Q10="SAT",Q10="No Read",Q10=""),"",ROUND(R10/T9,1)) -> 0 | T10: =IF(Q10="",T9,IF(R10="",IF(T9>0,T9+1,1),1)) -> 1 | U10: =IF(Q10="","",ROUND(OFFSET(S10,MATCH(TRUE,INDEX(S11:S$44<>"",0),0),0),0)) -> 0
A11: 4 | B11: 518089 | C11: =IF(OR(B11="HOL",B11="SUN",B11="SAT",B11="No Read",B11=""),"",IF(INDEX(B11:$B$44,MATCH(TRUE,ISNUMBER(B11:$B$44),0))<LOOKUP(99^99,B$2:B10),(INDEX(B11:$B$44,MATCH(TRUE,ISNUMBER(B11:$B$44),0))*748),(INDEX(B11:$B$44,MATCH(TRUE,ISNUMBER(B11:$B$44),0))-LOOKUP(99^99,B$2:B10))*748)) -> 174284 | D11: 174284 | E11: =IF(B11="",E10,IF(C11="",IF(E10>0,E10+1,1),1)) -> 1 | F11: =IF(B11="","",ROUND(OFFSET(D11,MATCH(TRUE,INDEX(D12:D$44<>"",0),0),0),0)) -> 143616 | G11: 1349014 | H11: =IF(OR(G11="HOL",G11="SUN",G11="SAT",G11="No Read",G11=""),"",IF(INDEX(G11:$G$44,MATCH(TRUE,ISNUMBER(G11:$G$44),0))<LOOKUP(99^99,G$2:G10),(INDEX(G11:$G$44,MATCH(TRUE,ISNUMBER(G11:$G$44),0))*1000),(INDEX(G11:$G$44,MATCH(TRUE,ISNUMBER(G11:$G$44),0))-LOOKUP(99^99,G$2:G10))*1000)) -> 241000 | I11: 241000 | J11: =IF(G11="",J10,IF(H11="",IF(J10>0,J10+1,1),1)) -> 1 | K11: =IF(G11="","",ROUND(OFFSET(I11,MATCH(TRUE,INDEX(I12:I$44<>"",0),0),0),0)) -> 219000 | L11: 1869540 | M11: =IF(OR(L11="HOL",L11="SUN",L11="SAT",L11="No Read",L11=""),"",IF(INDEX(L11:$L$44,MATCH(TRUE,ISNUMBER(L11:$L$44),0))<LOOKUP(99^99,L$2:L10),(INDEX(L11:$L$44,MATCH(TRUE,ISNUMBER(L11:$L$44),0))*748),(INDEX(L11:$L$44,MATCH(TRUE,ISNUMBER(L11:$L$44),0))-LOOKUP(99^99,L$2:L10))*748)) -> 385968 | N11: 385968 | O11: =IF(L11="",O10,IF(M11="",IF(O10>0,O10+1,1),1)) -> 1 | P11: =IF(L11="","",ROUND(OFFSET(N11,MATCH(TRUE,INDEX(N12:N$44<>"",0),0),0),0)) -> 237116 | Q11: 199264 | R11: =IF(OR(Q11="HOL",Q11="SUN",Q11="SAT",Q11="No Read",Q11=""),"",IF(INDEX(Q11:$Q$44,MATCH(TRUE,ISNUMBER(Q11:$Q$44),0))<LOOKUP(99^99,Q$2:Q10),(INDEX(Q11:$Q$44,MATCH(TRUE,ISNUMBER(Q11:$Q$44),0))*1000),(INDEX(Q11:$Q$44,MATCH(TRUE,ISNUMBER(Q11:$Q$44),0))-LOOKUP(99^99,Q$2:Q10))*1000)) -> 0 | S11: 0 | T11: =IF(Q11="",T10,IF(R11="",IF(T10>0,T10+1,1),1)) -> 1 | U11: =IF(Q11="","",ROUND(OFFSET(S11,MATCH(TRUE,INDEX(S12:S$44<>"",0),0),0),0)) -> 0
A12: 5 | B12: 518281 | C12: =IF(OR(B12="HOL",B12="SUN",B12="SAT",B12="No Read",B12=""),"",IF(INDEX(B12:$B$44,MATCH(TRUE,ISNUMBER(B12:$B$44),0))<LOOKUP(99^99,B$2:B11),(INDEX(B12:$B$44,MATCH(TRUE,ISNUMBER(B12:$B$44),0))*748),(INDEX(B12:$B$44,MATCH(TRUE,ISNUMBER(B12:$B$44),0))-LOOKUP(99^99,B$2:B11))*748)) -> 143616 | D12: 143616 | E12: =IF(B12="",E11,IF(C12="",IF(E11>0,E11+1,1),1)) -> 1 | F12: =IF(B12="","",ROUND(OFFSET(D12,MATCH(TRUE,INDEX(D13:D$44<>"",0),0),0),0)) -> 108460 | G12: 1349233 | H12: =IF(OR(G12="HOL",G12="SUN",G12="SAT",G12="No Read",G12=""),"",IF(INDEX(G12:$G$44,MATCH(TRUE,ISNUMBER(G12:$G$44),0))<LOOKUP(99^99,G$2:G11),(INDEX(G12:$G$44,MATCH(TRUE,ISNUMBER(G12:$G$44),0))*1000),(INDEX(G12:$G$44,MATCH(TRUE,ISNUMBER(G12:$G$44),0))-LOOKUP(99^99,G$2:G11))*1000)) -> 219000 | I12: 219000 | J12: =IF(G12="",J11,IF(H12="",IF(J11>0,J11+1,1),1)) -> 1 | K12: =IF(G12="","",ROUND(OFFSET(I12,MATCH(TRUE,INDEX(I13:I$44<>"",0),0),0),0)) -> 229000 | L12: 1869857 | M12: =IF(OR(L12="HOL",L12="SUN",L12="SAT",L12="No Read",L12=""),"",IF(INDEX(L12:$L$44,MATCH(TRUE,ISNUMBER(L12:$L$44),0))<LOOKUP(99^99,L$2:L11),(INDEX(L12:$L$44,MATCH(TRUE,ISNUMBER(L12:$L$44),0))*748),(INDEX(L12:$L$44,MATCH(TRUE,ISNUMBER(L12:$L$44),0))-LOOKUP(99^99,L$2:L11))*748)) -> 237116 | N12: 237116 | O12: =IF(L12="",O11,IF(M12="",IF(O11>0,O11+1,1),1)) -> 1 | P12: =IF(L12="","",ROUND(OFFSET(N12,MATCH(TRUE,INDEX(N13:N$44<>"",0),0),0),0)) -> 326876 | Q12: 199264 | R12: =IF(OR(Q12="HOL",Q12="SUN",Q12="SAT",Q12="No Read",Q12=""),"",IF(INDEX(Q12:$Q$44,MATCH(TRUE,ISNUMBER(Q12:$Q$44),0))<LOOKUP(99^99,Q$2:Q11),(INDEX(Q12:$Q$44,MATCH(TRUE,ISNUMBER(Q12:$Q$44),0))*1000),(INDEX(Q12:$Q$44,MATCH(TRUE,ISNUMBER(Q12:$Q$44),0))-LOOKUP(99^99,Q$2:Q11))*1000)) -> 0 | S12: 0 | T12: =IF(Q12="",T11,IF(R12="",IF(T11>0,T11+1,1),1)) -> 1 | U12: =IF(Q12="","",ROUND(OFFSET(S12,MATCH(TRUE,INDEX(S13:S$44<>"",0),0),0),0)) -> 0
A13: 6 | B13: 518426 | C13: =IF(OR(B13="HOL",B13="SUN",B13="SAT",B13="No Read",B13=""),"",IF(INDEX(B13:$B$44,MATCH(TRUE,ISNUMBER(B13:$B$44),0))<LOOKUP(99^99,B$2:B12),(INDEX(B13:$B$44,MATCH(TRUE,ISNUMBER(B13:$B$44),0))*748),(INDEX(B13:$B$44,MATCH(TRUE,ISNUMBER(B13:$B$44),0))-LOOKUP(99^99,B$2:B12))*748)) -> 108460 | D13: 108460 | E13: =IF(B13="",E12,IF(C13="",IF(E12>0,E12+1,1),1)) -> 1 | F13: =IF(B13="","",ROUND(OFFSET(D13,MATCH(TRUE,INDEX(D14:D$44<>"",0),0),0),0)) -> 55352 | G13: 1349462 | H13: =IF(OR(G13="HOL",G13="SUN",G13="SAT",G13="No Read",G13=""),"",IF(INDEX(G13:$G$44,MATCH(TRUE,ISNUMBER(G13:$G$44),0))<LOOKUP(99^99,G$2:G12),(INDEX(G13:$G$44,MATCH(TRUE,ISNUMBER(G13:$G$44),0))*1000),(INDEX(G13:$G$44,MATCH(TRUE,ISNUMBER(G13:$G$44),0))-LOOKUP(99^99,G$2:G12))*1000)) -> 229000 | I13: 229000 | J13: =IF(G13="",J12,IF(H13="",IF(J12>0,J12+1,1),1)) -> 1 | K13: =IF(G13="","",ROUND(OFFSET(I13,MATCH(TRUE,INDEX(I14:I$44<>"",0),0),0),0)) -> 252000 | L13: 1870294 | M13: =IF(OR(L13="HOL",L13="SUN",L13="SAT",L13="No Read",L13=""),"",IF(INDEX(L13:$L$44,MATCH(TRUE,ISNUMBER(L13:$L$44),0))<LOOKUP(99^99,L$2:L12),(INDEX(L13:$L$44,MATCH(TRUE,ISNUMBER(L13:$L$44),0))*748),(INDEX(L13:$L$44,MATCH(TRUE,ISNUMBER(L13:$L$44),0))-LOOKUP(99^99,L$2:L12))*748)) -> 326876 | N13: 326876 | O13: =IF(L13="",O12,IF(M13="",IF(O12>0,O12+1,1),1)) -> 1 | P13: =IF(L13="","",ROUND(OFFSET(N13,MATCH(TRUE,INDEX(N14:N$44<>"",0),0),0),0)) -> 172788 | Q13: 199264 | R13: =IF(OR(Q13="HOL",Q13="SUN",Q13="SAT",Q13="No Read",Q13=""),"",IF(INDEX(Q13:$Q$44,MATCH(TRUE,ISNUMBER(Q13:$Q$44),0))<LOOKUP(99^99,Q$2:Q12),(INDEX(Q13:$Q$44,MATCH(TRUE,ISNUMBER(Q13:$Q$44),0))*1000),(INDEX(Q13:$Q$44,MATCH(TRUE,ISNUMBER(Q13:$Q$44),0))-LOOKUP(99^99,Q$2:Q12))*1000)) -> 0 | S13: 0 | T13: =IF(Q13="",T12,IF(R13="",IF(T12>0,T12+1,1),1)) -> 1 | U13: =IF(Q13="","",ROUND(OFFSET(S13,MATCH(TRUE,INDEX(S14:S$44<>"",0),0),0),0)) -> 8000
A14: 7 | B14: 518500 | C14: =IF(OR(B14="HOL",B14="SUN",B14="SAT",B14="No Read",B14=""),"",IF(INDEX(B14:$B$44,MATCH(TRUE,ISNUMBER(B14:$B$44),0))<LOOKUP(99^99,B$2:B13),(INDEX(B14:$B$44,MATCH(TRUE,ISNUMBER(B14:$B$44),0))*748),(INDEX(B14:$B$44,MATCH(TRUE,ISNUMBER(B14:$B$44),0))-LOOKUP(99^99,B$2:B13))*748)) -> 55352 | D14: 55352 | E14: 1 | F14: =IF(B14="","",ROUND(OFFSET(D14,MATCH(TRUE,INDEX(D15:D$44<>"",0),0),0),0)) -> 192984 | G14: 1349714 | H14: =IF(OR(G14="HOL",G14="SUN",G14="SAT",G14="No Read",G14=""),"",IF(INDEX(G14:$G$44,MATCH(TRUE,ISNUMBER(G14:$G$44),0))<LOOKUP(99^99,G$2:G13),(INDEX(G14:$G$44,MATCH(TRUE,ISNUMBER(G14:$G$44),0))*1000),(INDEX(G14:$G$44,MATCH(TRUE,ISNUMBER(G14:$G$44),0))-LOOKUP(99^99,G$2:G13))*1000)) -> 252000 | I14: 252000 | J14: 1 | K14: =IF(G14="","",ROUND(OFFSET(I14,MATCH(TRUE,INDEX(I15:I$44<>"",0),0),0),0)) -> 215000 | L14: 1870525 | M14: =IF(OR(L14="HOL",L14="SUN",L14="SAT",L14="No Read",L14=""),"",IF(INDEX(L14:$L$44,MATCH(TRUE,ISNUMBER(L14:$L$44),0))<LOOKUP(99^99,L$2:L13),(INDEX(L14:$L$44,MATCH(TRUE,ISNUMBER(L14:$L$44),0))*748),(INDEX(L14:$L$44,MATCH(TRUE,ISNUMBER(L14:$L$44),0))-LOOKUP(99^99,L$2:L13))*748)) -> 172788 | N14: 172788 | O14: 1 | P14: =IF(L14="","",ROUND(OFFSET(N14,MATCH(TRUE,INDEX(N15:N$44<>"",0),0),0),0)) -> 582692 | Q14: 199272 | R14: =IF(OR(Q14="HOL",Q14="SUN",Q14="SAT",Q14="No Read",Q14=""),"",IF(INDEX(Q14:$Q$44,MATCH(TRUE,ISNUMBER(Q14:$Q$44),0))<LOOKUP(99^99,Q$2:Q13),(INDEX(Q14:$Q$44,MATCH(TRUE,ISNUMBER(Q14:$Q$44),0))*1000),(INDEX(Q14:$Q$44,MATCH(TRUE,ISNUMBER(Q14:$Q$44),0))-LOOKUP(99^99,Q$2:Q13))*1000)) -> 8000 | S14: 8000 | T14: 1 | U14: =IF(Q14="","",ROUND(OFFSET(S14,MATCH(TRUE,INDEX(S15:S$44<>"",0),0),0),0)) -> 0
A15: 8 | B15: 518758 | C15: =IF(OR(B15="HOL",B15="SUN",B15="SAT",B15="No Read",B15=""),"",IF(INDEX(B15:$B$44,MATCH(TRUE,ISNUMBER(B15:$B$44),0))<LOOKUP(99^99,B$2:B14),(INDEX(B15:$B$44,MATCH(TRUE,ISNUMBER(B15:$B$44),0))*748),(INDEX(B15:$B$44,MATCH(TRUE,ISNUMBER(B15:$B$44),0))-LOOKUP(99^99,B$2:B14))*748)) -> 192984 | D15: 192984 | E15: 1 | F15: =IF(B15="","",ROUND(OFFSET(D15,MATCH(TRUE,INDEX(D16:D$44<>"",0),0),0),0)) -> 95744 | G15: 1349929 | H15: =IF(OR(G15="HOL",G15="SUN",G15="SAT",G15="No Read",G15=""),"",IF(INDEX(G15:$G$44,MATCH(TRUE,ISNUMBER(G15:$G$44),0))<LOOKUP(99^99,G$2:G14),(INDEX(G15:$G$44,MATCH(TRUE,ISNUMBER(G15:$G$44),0))*1000),(INDEX(G15:$G$44,MATCH(TRUE,ISNUMBER(G15:$G$44),0))-LOOKUP(99^99,G$2:G14))*1000)) -> 215000 | I15: 215000 | J15: 1 | K15: =IF(G15="","",ROUND(OFFSET(I15,MATCH(TRUE,INDEX(I16:I$44<>"",0),0),0),0)) -> 153000 | L15: 1871304 | M15: =IF(OR(L15="HOL",L15="SUN",L15="SAT",L15="No Read",L15=""),"",IF(INDEX(L15:$L$44,MATCH(TRUE,ISNUMBER(L15:$L$44),0))<LOOKUP(99^99,L$2:L14),(INDEX(L15:$L$44,MATCH(TRUE,ISNUMBER(L15:$L$44),0))*748),(INDEX(L15:$L$44,MATCH(TRUE,ISNUMBER(L15:$L$44),0))-LOOKUP(99^99,L$2:L14))*748)) -> 582692 | N15: 582692 | O15: 1 | P15: =IF(L15="","",ROUND(OFFSET(N15,MATCH(TRUE,INDEX(N16:N$44<>"",0),0),0),0)) -> 278256 | Q15: 199272 | R15: =IF(OR(Q15="HOL",Q15="SUN",Q15="SAT",Q15="No Read",Q15=""),"",IF(INDEX(Q15:$Q$44,MATCH(TRUE,ISNUMBER(Q15:$Q$44),0))<LOOKUP(99^99,Q$2:Q14),(INDEX(Q15:$Q$44,MATCH(TRUE,ISNUMBER(Q15:$Q$44),0))*1000),(INDEX(Q15:$Q$44,MATCH(TRUE,ISNUMBER(Q15:$Q$44),0))-LOOKUP(99^99,Q$2:Q14))*1000)) -> 0 | S15: 0 | T15: 1 | U15: =IF(Q15="","",ROUND(OFFSET(S15,MATCH(TRUE,INDEX(S16:S$44<>"",0),0),0),0)) -> 0
A16: 9 | B16: 518886 | C16: =IF(OR(B16="HOL",B16="SUN",B16="SAT",B16="No Read",B16=""),"",IF(INDEX(B16:$B$44,MATCH(TRUE,ISNUMBER(B16:$B$44),0))<LOOKUP(99^99,B$2:B15),(INDEX(B16:$B$44,MATCH(TRUE,ISNUMBER(B16:$B$44),0))*748),(INDEX(B16:$B$44,MATCH(TRUE,ISNUMBER(B16:$B$44),0))-LOOKUP(99^99,B$2:B15))*748)) -> 95744 | D16: 95744 | E16: 1 | F16: =IF(B16="","",ROUND(OFFSET(D16,MATCH(TRUE,INDEX(D17:D$44<>"",0),0),0),0)) -> 65076 | G16: 1350082 | H16: =IF(OR(G16="HOL",G16="SUN",G16="SAT",G16="No Read",G16=""),"",IF(INDEX(G16:$G$44,MATCH(TRUE,ISNUMBER(G16:$G$44),0))<LOOKUP(99^99,G$2:G15),(INDEX(G16:$G$44,MATCH(TRUE,ISNUMBER(G16:$G$44),0))*1000),(INDEX(G16:$G$44,MATCH(TRUE,ISNUMBER(G16:$G$44),0))-LOOKUP(99^99,G$2:G15))*1000)) -> 153000 | I16: 153000 | J16: 1 | K16: =IF(G16="","",ROUND(OFFSET(I16,MATCH(TRUE,INDEX(I17:I$44<>"",0),0),0),0)) -> 229000 | L16: 1871676 | M16: =IF(OR(L16="HOL",L16="SUN",L16="SAT",L16="No Read",L16=""),"",IF(INDEX(L16:$L$44,MATCH(TRUE,ISNUMBER(L16:$L$44),0))<LOOKUP(99^99,L$2:L15),(INDEX(L16:$L$44,MATCH(TRUE,ISNUMBER(L16:$L$44),0))*748),(INDEX(L16:$L$44,MATCH(TRUE,ISNUMBER(L16:$L$44),0))-LOOKUP(99^99,L$2:L15))*748)) -> 278256 | N16: 278256 | O16: 1 | P16: =IF(L16="","",ROUND(OFFSET(N16,MATCH(TRUE,INDEX(N17:N$44<>"",0),0),0),0)) -> 203456 | Q16: 199272 | R16: =IF(OR(Q16="HOL",Q16="SUN",Q16="SAT",Q16="No Read",Q16=""),"",IF(INDEX(Q16:$Q$44,MATCH(TRUE,ISNUMBER(Q16:$Q$44),0))<LOOKUP(99^99,Q$2:Q15),(INDEX(Q16:$Q$44,MATCH(TRUE,ISNUMBER(Q16:$Q$44),0))*1000),(INDEX(Q16:$Q$44,MATCH(TRUE,ISNUMBER(Q16:$Q$44),0))-LOOKUP(99^99,Q$2:Q15))*1000)) -> 0 | S16: 0 | T16: 1 | U16: =IF(Q16="","",ROUND(OFFSET(S16,MATCH(TRUE,INDEX(S17:S$44<>"",0),0),0),0)) -> 0
A17: 10 | B17: 518973 | C17: =IF(OR(B17="HOL",B17="SUN",B17="SAT",B17="No Read",B17=""),"",IF(INDEX(B17:$B$44,MATCH(TRUE,ISNUMBER(B17:$B$44),0))<LOOKUP(99^99,B$2:B16),(INDEX(B17:$B$44,MATCH(TRUE,ISNUMBER(B17:$B$44),0))*748),(INDEX(B17:$B$44,MATCH(TRUE,ISNUMBER(B17:$B$44),0))-LOOKUP(99^99,B$2:B16))*748)) -> 65076 | D17: 65076 | E17: 1 | F17: =IF(B17="","",ROUND(OFFSET(D17,MATCH(TRUE,INDEX(D18:D$44<>"",0),0),0),0)) -> 198968 | G17: 1350311 | H17: =IF(OR(G17="HOL",G17="SUN",G17="SAT",G17="No Read",G17=""),"",IF(INDEX(G17:$G$44,MATCH(TRUE,ISNUMBER(G17:$G$44),0))<LOOKUP(99^99,G$2:G16),(INDEX(G17:$G$44,MATCH(TRUE,ISNUMBER(G17:$G$44),0))*1000),(INDEX(G17:$G$44,MATCH(TRUE,ISNUMBER(G17:$G$44),0))-LOOKUP(99^99,G$2:G16))*1000)) -> 229000 | I17: 229000 | J17: 1 | K17: =IF(G17="","",ROUND(OFFSET(I17,MATCH(TRUE,INDEX(I18:I$44<>"",0),0),0),0)) -> 245000 | L17: 1871948 | M17: =IF(OR(L17="HOL",L17="SUN",L17="SAT",L17="No Read",L17=""),"",IF(INDEX(L17:$L$44,MATCH(TRUE,ISNUMBER(L17:$L$44),0))<LOOKUP(99^99,L$2:L16),(INDEX(L17:$L$44,MATCH(TRUE,ISNUMBER(L17:$L$44),0))*748),(INDEX(L17:$L$44,MATCH(TRUE,ISNUMBER(L17:$L$44),0))-LOOKUP(99^99,L$2:L16))*748)) -> 203456 | N17: 203456 | O17: 1 | P17: =IF(L17="","",ROUND(OFFSET(N17,MATCH(TRUE,INDEX(N18:N$44<>"",0),0),0),0)) -> 587928 | Q17: 199272 | R17: =IF(OR(Q17="HOL",Q17="SUN",Q17="SAT",Q17="No Read",Q17=""),"",IF(INDEX(Q17:$Q$44,MATCH(TRUE,ISNUMBER(Q17:$Q$44),0))<LOOKUP(99^99,Q$2:Q16),(INDEX(Q17:$Q$44,MATCH(TRUE,ISNUMBER(Q17:$Q$44),0))*1000),(INDEX(Q17:$Q$44,MATCH(TRUE,ISNUMBER(Q17:$Q$44),0))-LOOKUP(99^99,Q$2:Q16))*1000)) -> 0 | S17: 0 | T17: 1 | U17: =IF(Q17="","",ROUND(OFFSET(S17,MATCH(TRUE,INDEX(S18:S$44<>"",0),0),0),0)) -> 0
A18: 11 | B18: 519239 | C18: =IF(OR(B18="HOL",B18="SUN",B18="SAT",B18="No Read",B18=""),"",IF(INDEX(B18:$B$44,MATCH(TRUE,ISNUMBER(B18:$B$44),0))<LOOKUP(99^99,B$2:B17),(INDEX(B18:$B$44,MATCH(TRUE,ISNUMBER(B18:$B$44),0))*748),(INDEX(B18:$B$44,MATCH(TRUE,ISNUMBER(B18:$B$44),0))-LOOKUP(99^99,B$2:B17))*748)) -> 198968 | D18: =IF(OR(B18="HOL",B18="SUN",B18="SAT",B18="No Read",B18=""),"",ROUND(C18/E17,1)) -> 198968 | E18: 1 | F18: =IF(B18="","",ROUND(OFFSET(D18,MATCH(TRUE,INDEX(D19:D$44<>"",0),0),0),0)) -> 115940 | G18: 1350556 | H18: =IF(OR(G18="HOL",G18="SUN",G18="SAT",G18="No Read",G18=""),"",IF(INDEX(G18:$G$44,MATCH(TRUE,ISNUMBER(G18:$G$44),0))<LOOKUP(99^99,G$2:G17),(INDEX(G18:$G$44,MATCH(TRUE,ISNUMBER(G18:$G$44),0))*1000),(INDEX(G18:$G$44,MATCH(TRUE,ISNUMBER(G18:$G$44),0))-LOOKUP(99^99,G$2:G17))*1000)) -> 245000 | I18: =IF(OR(G18="HOL",G18="SUN",G18="SAT",G18="No Read",G18=""),"",ROUND(H18/J17,1)) -> 245000 | J18: 1 | K18: =IF(G18="","",ROUND(OFFSET(I18,MATCH(TRUE,INDEX(I19:I$44<>"",0),0),0),0)) -> 166000 | L18: 1872734 | M18: =IF(OR(L18="HOL",L18="SUN",L18="SAT",L18="No Read",L18=""),"",IF(INDEX(L18:$L$44,MATCH(TRUE,ISNUMBER(L18:$L$44),0))<LOOKUP(99^99,L$2:L17),(INDEX(L18:$L$44,MATCH(TRUE,ISNUMBER(L18:$L$44),0))*748),(INDEX(L18:$L$44,MATCH(TRUE,ISNUMBER(L18:$L$44),0))-LOOKUP(99^99,L$2:L17))*748)) -> 587928 | N18: =IF(OR(L18="HOL",L18="SUN",L18="SAT",L18="No Read",L18=""),"",ROUND(M18/O17,1)) -> 587928 | O18: 1 | P18: =IF(L18="","",ROUND(OFFSET(N18,MATCH(TRUE,INDEX(N19:N$44<>"",0),0),0),0)) -> 229636 | Q18: 199272 | R18: =IF(OR(Q18="HOL",Q18="SUN",Q18="SAT",Q18="No Read",Q18=""),"",IF(INDEX(Q18:$Q$44,MATCH(TRUE,ISNUMBER(Q18:$Q$44),0))<LOOKUP(99^99,Q$2:Q17),(INDEX(Q18:$Q$44,MATCH(TRUE,ISNUMBER(Q18:$Q$44),0))*1000),(INDEX(Q18:$Q$44,MATCH(TRUE,ISNUMBER(Q18:$Q$44),0))-LOOKUP(99^99,Q$2:Q17))*1000)) -> 0 | S18: =IF(OR(Q18="HOL",Q18="SUN",Q18="SAT",Q18="No Read",Q18=""),"",ROUND(R18/T17,1)) -> 0 | T18: 1 | U18: =IF(Q18="","",ROUND(OFFSET(S18,MATCH(TRUE,INDEX(S19:S$44<>"",0),0),0),0)) -> 0 | X18: These four values can be entered instead of numbers
A19: 12 | B19: 519394 | C19: =IF(OR(B19="HOL",B19="SUN",B19="SAT",B19="No Read",B19=""),"",IF(INDEX(B19:$B$44,MATCH(TRUE,ISNUMBER(B19:$B$44),0))<LOOKUP(99^99,B$2:B18),(INDEX(B19:$B$44,MATCH(TRUE,ISNUMBER(B19:$B$44),0))*748),(INDEX(B19:$B$44,MATCH(TRUE,ISNUMBER(B19:$B$44),0))-LOOKUP(99^99,B$2:B18))*748)) -> 115940 | D19: =IF(OR(B19="HOL",B19="SUN",B19="SAT",B19="No Read",B19=""),"",ROUND(C19/E18,1)) -> 115940 | E19: 1 | F19: =IF(B19="","",ROUND(OFFSET(D19,MATCH(TRUE,INDEX(D20:D$44<>"",0),0),0),0)) -> 41140 | G19: 1350722 | H19: =IF(OR(G19="HOL",G19="SUN",G19="SAT",G19="No Read",G19=""),"",IF(INDEX(G19:$G$44,MATCH(TRUE,ISNUMBER(G19:$G$44),0))<LOOKUP(99^99,G$2:G18),(INDEX(G19:$G$44,MATCH(TRUE,ISNUMBER(G19:$G$44),0))*1000),(INDEX(G19:$G$44,MATCH(TRUE,ISNUMBER(G19:$G$44),0))-LOOKUP(99^99,G$2:G18))*1000)) -> 166000 | I19: =IF(OR(G19="HOL",G19="SUN",G19="SAT",G19="No Read",G19=""),"",ROUND(H19/J18,1)) -> 166000 | J19: 1 | K19: =IF(G19="","",ROUND(OFFSET(I19,MATCH(TRUE,INDEX(I20:I$44<>"",0),0),0),0)) -> 196000 | L19: 1873041 | M19: =IF(OR(L19="HOL",L19="SUN",L19="SAT",L19="No Read",L19=""),"",IF(INDEX(L19:$L$44,MATCH(TRUE,ISNUMBER(L19:$L$44),0))<LOOKUP(99^99,L$2:L18),(INDEX(L19:$L$44,MATCH(TRUE,ISNUMBER(L19:$L$44),0))*748),(INDEX(L19:$L$44,MATCH(TRUE,ISNUMBER(L19:$L$44),0))-LOOKUP(99^99,L$2:L18))*748)) -> 229636 | N19: =IF(OR(L19="HOL",L19="SUN",L19="SAT",L19="No Read",L19=""),"",ROUND(M19/O18,1)) -> 229636 | O19: 1 | P19: =IF(L19="","",ROUND(OFFSET(N19,MATCH(TRUE,INDEX(N20:N$44<>"",0),0),0),0)) -> 234124 | Q19: 199272 | R19: =IF(OR(Q19="HOL",Q19="SUN",Q19="SAT",Q19="No Read",Q19=""),"",IF(INDEX(Q19:$Q$44,MATCH(TRUE,ISNUMBER(Q19:$Q$44),0))<LOOKUP(99^99,Q$2:Q18),(INDEX(Q19:$Q$44,MATCH(TRUE,ISNUMBER(Q19:$Q$44),0))*1000),(INDEX(Q19:$Q$44,MATCH(TRUE,ISNUMBER(Q19:$Q$44),0))-LOOKUP(99^99,Q$2:Q18))*1000)) -> 0 | S19: =IF(OR(Q19="HOL",Q19="SUN",Q19="SAT",Q19="No Read",Q19=""),"",ROUND(R19/T18,1)) -> 0 | T19: 1 | U19: =IF(Q19="","",ROUND(OFFSET(S19,MATCH(TRUE,INDEX(S20:S$44<>"",0),0),0),0)) -> 0 | X19: SAT - Saturday
A20: 13 | B20: 519449 | C20: =IF(OR(B20="HOL",B20="SUN",B20="SAT",B20="No Read",B20=""),"",IF(INDEX(B20:$B$44,MATCH(TRUE,ISNUMBER(B20:$B$44),0))<LOOKUP(99^99,B$2:B19),(INDEX(B20:$B$44,MATCH(TRUE,ISNUMBER(B20:$B$44),0))*748),(INDEX(B20:$B$44,MATCH(TRUE,ISNUMBER(B20:$B$44),0))-LOOKUP(99^99,B$2:B19))*748)) -> 41140 | D20: 41140 | E20: 1 | F20: =IF(B20="","",ROUND(OFFSET(D20,MATCH(TRUE,INDEX(D21:D$44<>"",0),0),0),0)) -> 189244 | G20: 1350918 | H20: =IF(OR(G20="HOL",G20="SUN",G20="SAT",G20="No Read",G20=""),"",IF(INDEX(G20:$G$44,MATCH(TRUE,ISNUMBER(G20:$G$44),0))<LOOKUP(99^99,G$2:G19),(INDEX(G20:$G$44,MATCH(TRUE,ISNUMBER(G20:$G$44),0))*1000),(INDEX(G20:$G$44,MATCH(TRUE,ISNUMBER(G20:$G$44),0))-LOOKUP(99^99,G$2:G19))*1000)) -> 196000 | I20: 196000 | J20: 1 | K20: =IF(G20="","",ROUND(OFFSET(I20,MATCH(TRUE,INDEX(I21:I$44<>"",0),0),0),0)) -> 196000 | L20: 1873354 | M20: =IF(OR(L20="HOL",L20="SUN",L20="SAT",L20="No Read",L20=""),"",IF(INDEX(L20:$L$44,MATCH(TRUE,ISNUMBER(L20:$L$44),0))<LOOKUP(99^99,L$2:L19),(INDEX(L20:$L$44,MATCH(TRUE,ISNUMBER(L20:$L$44),0))*748),(INDEX(L20:$L$44,MATCH(TRUE,ISNUMBER(L20:$L$44),0))-LOOKUP(99^99,L$2:L19))*748)) -> 234124 | N20: 234124 | O20: 1 | P20: =IF(L20="","",ROUND(OFFSET(N20,MATCH(TRUE,INDEX(N21:N$44<>"",0),0),0),0)) -> 560252 | Q20: 199272 | R20: =IF(OR(Q20="HOL",Q20="SUN",Q20="SAT",Q20="No Read",Q20=""),"",IF(INDEX(Q20:$Q$44,MATCH(TRUE,ISNUMBER(Q20:$Q$44),0))<LOOKUP(99^99,Q$2:Q19),(INDEX(Q20:$Q$44,MATCH(TRUE,ISNUMBER(Q20:$Q$44),0))*1000),(INDEX(Q20:$Q$44,MATCH(TRUE,ISNUMBER(Q20:$Q$44),0))-LOOKUP(99^99,Q$2:Q19))*1000)) -> 0 | S20: 0 | T20: 1 | U20: =IF(Q20="","",ROUND(OFFSET(S20,MATCH(TRUE,INDEX(S21:S$44<>"",0),0),0),0)) -> 0 | X20: SUN - Sunday
A21: 14 | B21: 519702 | C21: =IF(OR(B21="HOL",B21="SUN",B21="SAT",B21="No Read",B21=""),"",IF(INDEX(B21:$B$44,MATCH(TRUE,ISNUMBER(B21:$B$44),0))<LOOKUP(99^99,B$2:B20),(INDEX(B21:$B$44,MATCH(TRUE,ISNUMBER(B21:$B$44),0))*748),(INDEX(B21:$B$44,MATCH(TRUE,ISNUMBER(B21:$B$44),0))-LOOKUP(99^99,B$2:B20))*748)) -> 189244 | D21: 189244 | E21: 1 | F21: =IF(B21="","",ROUND(OFFSET(D21,MATCH(TRUE,INDEX(D22:D$44<>"",0),0),0),0)) -> 106216 | G21: 1351114 | H21: =IF(OR(G21="HOL",G21="SUN",G21="SAT",G21="No Read",G21=""),"",IF(INDEX(G21:$G$44,MATCH(TRUE,ISNUMBER(G21:$G$44),0))<LOOKUP(99^99,G$2:G20),(INDEX(G21:$G$44,MATCH(TRUE,ISNUMBER(G21:$G$44),0))*1000),(INDEX(G21:$G$44,MATCH(TRUE,ISNUMBER(G21:$G$44),0))-LOOKUP(99^99,G$2:G20))*1000)) -> 196000 | I21: 196000 | J21: 1 | K21: =IF(G21="","",ROUND(OFFSET(I21,MATCH(TRUE,INDEX(I22:I$44<>"",0),0),0),0)) -> 180000 | L21: 1874103 | M21: =IF(OR(L21="HOL",L21="SUN",L21="SAT",L21="No Read",L21=""),"",IF(INDEX(L21:$L$44,MATCH(TRUE,ISNUMBER(L21:$L$44),0))<LOOKUP(99^99,L$2:L20),(INDEX(L21:$L$44,MATCH(TRUE,ISNUMBER(L21:$L$44),0))*748),(INDEX(L21:$L$44,MATCH(TRUE,ISNUMBER(L21:$L$44),0))-LOOKUP(99^99,L$2:L20))*748)) -> 560252 | N21: 560252 | O21: 1 | P21: =IF(L21="","",ROUND(OFFSET(N21,MATCH(TRUE,INDEX(N22:N$44<>"",0),0),0),0)) -> 306680 | Q21: 199272 | R21: =IF(OR(Q21="HOL",Q21="SUN",Q21="SAT",Q21="No Read",Q21=""),"",IF(INDEX(Q21:$Q$44,MATCH(TRUE,ISNUMBER(Q21:$Q$44),0))<LOOKUP(99^99,Q$2:Q20),(INDEX(Q21:$Q$44,MATCH(TRUE,ISNUMBER(Q21:$Q$44),0))*1000),(INDEX(Q21:$Q$44,MATCH(TRUE,ISNUMBER(Q21:$Q$44),0))-LOOKUP(99^99,Q$2:Q20))*1000)) -> 0 | S21: 0 | T21: 1 | U21: =IF(Q21="","",ROUND(OFFSET(S21,MATCH(TRUE,INDEX(S22:S$44<>"",0),0),0),0)) -> 40000 | X21: HOL - Holiday
A22: 15 | B22: 519844 | C22: =IF(OR(B22="HOL",B22="SUN",B22="SAT",B22="No Read",B22=""),"",IF(INDEX(B22:$B$44,MATCH(TRUE,ISNUMBER(B22:$B$44),0))<LOOKUP(99^99,B$2:B21),(INDEX(B22:$B$44,MATCH(TRUE,ISNUMBER(B22:$B$44),0))*748),(INDEX(B22:$B$44,MATCH(TRUE,ISNUMBER(B22:$B$44),0))-LOOKUP(99^99,B$2:B21))*748)) -> 106216 | D22: 106216 | E22: 1 | F22: =IF(B22="","",ROUND(OFFSET(D22,MATCH(TRUE,INDEX(D23:D$44<>"",0),0),0),0)) -> 44132 | G22: 1351294 | H22: =IF(OR(G22="HOL",G22="SUN",G22="SAT",G22="No Read",G22=""),"",IF(INDEX(G22:$G$44,MATCH(TRUE,ISNUMBER(G22:$G$44),0))<LOOKUP(99^99,G$2:G21),(INDEX(G22:$G$44,MATCH(TRUE,ISNUMBER(G22:$G$44),0))*1000),(INDEX(G22:$G$44,MATCH(TRUE,ISNUMBER(G22:$G$44),0))-LOOKUP(99^99,G$2:G21))*1000)) -> 180000 | I22: 180000 | J22: 1 | K22: =IF(G22="","",ROUND(OFFSET(I22,MATCH(TRUE,INDEX(I23:I$44<>"",0),0),0),0)) -> 51000 | L22: 1874513 | M22: =IF(OR(L22="HOL",L22="SUN",L22="SAT",L22="No Read",L22=""),"",IF(INDEX(L22:$L$44,MATCH(TRUE,ISNUMBER(L22:$L$44),0))<LOOKUP(99^99,L$2:L21),(INDEX(L22:$L$44,MATCH(TRUE,ISNUMBER(L22:$L$44),0))*748),(INDEX(L22:$L$44,MATCH(TRUE,ISNUMBER(L22:$L$44),0))-LOOKUP(99^99,L$2:L21))*748)) -> 306680 | N22: 306680 | O22: 1 | P22: =IF(L22="","",ROUND(OFFSET(N22,MATCH(TRUE,INDEX(N23:N$44<>"",0),0),0),0)) -> 154088 | Q22: 199312 | R22: =IF(OR(Q22="HOL",Q22="SUN",Q22="SAT",Q22="No Read",Q22=""),"",IF(INDEX(Q22:$Q$44,MATCH(TRUE,ISNUMBER(Q22:$Q$44),0))<LOOKUP(99^99,Q$2:Q21),(INDEX(Q22:$Q$44,MATCH(TRUE,ISNUMBER(Q22:$Q$44),0))*1000),(INDEX(Q22:$Q$44,MATCH(TRUE,ISNUMBER(Q22:$Q$44),0))-LOOKUP(99^99,Q$2:Q21))*1000)) -> 40000 | S22: 40000 | T22: 1 | U22: =IF(Q22="","",ROUND(OFFSET(S22,MATCH(TRUE,INDEX(S23:S$44<>"",0),0),0),0)) -> 0 | X22: NO READ - A day when a reading was not taken
A23: 16 | B23: 519903 | C23: =IF(OR(B23="HOL",B23="SUN",B23="SAT",B23="No Read",B23=""),"",IF(INDEX(B23:$B$44,MATCH(TRUE,ISNUMBER(B23:$B$44),0))<LOOKUP(99^99,B$2:B22),(INDEX(B23:$B$44,MATCH(TRUE,ISNUMBER(B23:$B$44),0))*748),(INDEX(B23:$B$44,MATCH(TRUE,ISNUMBER(B23:$B$44),0))-LOOKUP(99^99,B$2:B22))*748)) -> 44132 | D23: =IF(OR(B23="HOL",B23="SUN",B23="SAT",B23="No Read",B23=""),"",ROUND(C23/E22,1)) -> 44132 | E23: 1 | F23: =IF(B23="","",ROUND(OFFSET(D23,MATCH(TRUE,INDEX(D24:D$44<>"",0),0),0),0)) -> 140624 | G23: 1351345 | H23: =IF(OR(G23="HOL",G23="SUN",G23="SAT",G23="No Read",G23=""),"",IF(INDEX(G23:$G$44,MATCH(TRUE,ISNUMBER(G23:$G$44),0))<LOOKUP(99^99,G$2:G22),(INDEX(G23:$G$44,MATCH(TRUE,ISNUMBER(G23:$G$44),0))*1000),(INDEX(G23:$G$44,MATCH(TRUE,ISNUMBER(G23:$G$44),0))-LOOKUP(99^99,G$2:G22))*1000)) -> 51000 | I23: =IF(OR(G23="HOL",G23="SUN",G23="SAT",G23="No Read",G23=""),"",ROUND(H23/J22,1)) -> 51000 | J23: 1 | K23: =IF(G23="","",ROUND(OFFSET(I23,MATCH(TRUE,INDEX(I24:I$44<>"",0),0),0),0)) -> 92000 | L23: 1874719 | M23: =IF(OR(L23="HOL",L23="SUN",L23="SAT",L23="No Read",L23=""),"",IF(INDEX(L23:$L$44,MATCH(TRUE,ISNUMBER(L23:$L$44),0))<LOOKUP(99^99,L$2:L22),(INDEX(L23:$L$44,MATCH(TRUE,ISNUMBER(L23:$L$44),0))*748),(INDEX(L23:$L$44,MATCH(TRUE,ISNUMBER(L23:$L$44),0))-LOOKUP(99^99,L$2:L22))*748)) -> 154088 | N23: =IF(OR(L23="HOL",L23="SUN",L23="SAT",L23="No Read",L23=""),"",ROUND(M23/O22,1)) -> 154088 | O23: 1 | P23: =IF(L23="","",ROUND(OFFSET(N23,MATCH(TRUE,INDEX(N24:N$44<>"",0),0),0),0)) -> 471988 | Q23: 199312 | R23: =IF(OR(Q23="HOL",Q23="SUN",Q23="SAT",Q23="No Read",Q23=""),"",IF(INDEX(Q23:$Q$44,MATCH(TRUE,ISNUMBER(Q23:$Q$44),0))<LOOKUP(99^99,Q$2:Q22),(INDEX(Q23:$Q$44,MATCH(TRUE,ISNUMBER(Q23:$Q$44),0))*1000),(INDEX(Q23:$Q$44,MATCH(TRUE,ISNUMBER(Q23:$Q$44),0))-LOOKUP(99^99,Q$2:Q22))*1000)) -> 0 | S23: =IF(OR(Q23="HOL",Q23="SUN",Q23="SAT",Q23="No Read",Q23=""),"",ROUND(R23/T22,1)) -> 0 | T23: 1 | U23: =IF(Q23="","",ROUND(OFFSET(S23,MATCH(TRUE,INDEX(S24:S$44<>"",0),0),0),0)) -> 0
A24: 17 | B24: 520091 | C24: =IF(OR(B24="HOL",B24="SUN",B24="SAT",B24="No Read",B24=""),"",IF(INDEX(B24:$B$44,MATCH(TRUE,ISNUMBER(B24:$B$44),0))<LOOKUP(99^99,B$2:B23),(INDEX(B24:$B$44,MATCH(TRUE,ISNUMBER(B24:$B$44),0))*748),(INDEX(B24:$B$44,MATCH(TRUE,ISNUMBER(B24:$B$44),0))-LOOKUP(99^99,B$2:B23))*748)) -> 140624 | D24: =IF(OR(B24="HOL",B24="SUN",B24="SAT",B24="No Read",B24=""),"",ROUND(C24/E23,1)) -> 140624 | E24: 1 | F24: =IF(B24="","",ROUND(OFFSET(D24,MATCH(TRUE,INDEX(D25:D$44<>"",0),0),0),0)) -> 0 | G24: 1351437 | H24: =IF(OR(G24="HOL",G24="SUN",G24="SAT",G24="No Read",G24=""),"",IF(INDEX(G24:$G$44,MATCH(TRUE,ISNUMBER(G24:$G$44),0))<LOOKUP(99^99,G$2:G23),(INDEX(G24:$G$44,MATCH(TRUE,ISNUMBER(G24:$G$44),0))*1000),(INDEX(G24:$G$44,MATCH(TRUE,ISNUMBER(G24:$G$44),0))-LOOKUP(99^99,G$2:G23))*1000)) -> 92000 | I24: =IF(OR(G24="HOL",G24="SUN",G24="SAT",G24="No Read",G24=""),"",ROUND(H24/J23,1)) -> 92000 | J24: 1 | K24: =IF(G24="","",ROUND(OFFSET(I24,MATCH(TRUE,INDEX(I25:I$44<>"",0),0),0),0)) -> 97000 | L24: 1875350 | M24: =IF(OR(L24="HOL",L24="SUN",L24="SAT",L24="No Read",L24=""),"",IF(INDEX(L24:$L$44,MATCH(TRUE,ISNUMBER(L24:$L$44),0))<LOOKUP(99^99,L$2:L23),(INDEX(L24:$L$44,MATCH(TRUE,ISNUMBER(L24:$L$44),0))*748),(INDEX(L24:$L$44,MATCH(TRUE,ISNUMBER(L24:$L$44),0))-LOOKUP(99^99,L$2:L23))*748)) -> 471988 | N24: =IF(OR(L24="HOL",L24="SUN",L24="SAT",L24="No Read",L24=""),"",ROUND(M24/O23,1)) -> 471988 | O24: 1 | P24: =IF(L24="","",ROUND(OFFSET(N24,MATCH(TRUE,INDEX(N25:N$44<>"",0),0),0),0)) -> 0 | Q24: 199312 | R24: =IF(OR(Q24="HOL",Q24="SUN",Q24="SAT",Q24="No Read",Q24=""),"",IF(INDEX(Q24:$Q$44,MATCH(TRUE,ISNUMBER(Q24:$Q$44),0))<LOOKUP(99^99,Q$2:Q23),(INDEX(Q24:$Q$44,MATCH(TRUE,ISNUMBER(Q24:$Q$44),0))*1000),(INDEX(Q24:$Q$44,MATCH(TRUE,ISNUMBER(Q24:$Q$44),0))-LOOKUP(99^99,Q$2:Q23))*1000)) -> 0 | S24: =IF(OR(Q24="HOL",Q24="SUN",Q24="SAT",Q24="No Read",Q24=""),"",ROUND(R24/T23,1)) -> 0 | T24: 1 | U24: =IF(Q24="","",ROUND(OFFSET(S24,MATCH(TRUE,INDEX(S25:S$44<>"",0),0),0),0)) -> 0
A25: 18 | B25: 520091 | C25: =IF(OR(B25="HOL",B25="SUN",B25="SAT",B25="No Read",B25=""),"",IF(INDEX(B25:$B$44,MATCH(TRUE,ISNUMBER(B25:$B$44),0))<LOOKUP(99^99,B$2:B24),(INDEX(B25:$B$44,MATCH(TRUE,ISNUMBER(B25:$B$44),0))*748),(INDEX(B25:$B$44,MATCH(TRUE,ISNUMBER(B25:$B$44),0))-LOOKUP(99^99,B$2:B24))*748)) -> 0 | D25: 0 | E25: 1 | F25: =IF(B25="","",ROUND(OFFSET(D25,MATCH(TRUE,INDEX(D26:D$44<>"",0),0),0),0)) -> 145112 | G25: 1351534 | H25: =IF(OR(G25="HOL",G25="SUN",G25="SAT",G25="No Read",G25=""),"",IF(INDEX(G25:$G$44,MATCH(TRUE,ISNUMBER(G25:$G$44),0))<LOOKUP(99^99,G$2:G24),(INDEX(G25:$G$44,MATCH(TRUE,ISNUMBER(G25:$G$44),0))*1000),(INDEX(G25:$G$44,MATCH(TRUE,ISNUMBER(G25:$G$44),0))-LOOKUP(99^99,G$2:G24))*1000)) -> 97000 | I25: 97000 | J25: 1 | K25: =IF(G25="","",ROUND(OFFSET(I25,MATCH(TRUE,INDEX(I26:I$44<>"",0),0),0),0)) -> 108000 | L25: 1875350 | M25: =IF(OR(L25="HOL",L25="SUN",L25="SAT",L25="No Read",L25=""),"",IF(INDEX(L25:$L$44,MATCH(TRUE,ISNUMBER(L25:$L$44),0))<LOOKUP(99^99,L$2:L24),(INDEX(L25:$L$44,MATCH(TRUE,ISNUMBER(L25:$L$44),0))*748),(INDEX(L25:$L$44,MATCH(TRUE,ISNUMBER(L25:$L$44),0))-LOOKUP(99^99,L$2:L24))*748)) -> 0 | N25: 0 | O25: 1 | P25: =IF(L25="","",ROUND(OFFSET(N25,MATCH(TRUE,INDEX(N26:N$44<>"",0),0),0),0)) -> 513876 | Q25: 199312 | R25: =IF(OR(Q25="HOL",Q25="SUN",Q25="SAT",Q25="No Read",Q25=""),"",IF(INDEX(Q25:$Q$44,MATCH(TRUE,ISNUMBER(Q25:$Q$44),0))<LOOKUP(99^99,Q$2:Q24),(INDEX(Q25:$Q$44,MATCH(TRUE,ISNUMBER(Q25:$Q$44),0))*1000),(INDEX(Q25:$Q$44,MATCH(TRUE,ISNUMBER(Q25:$Q$44),0))-LOOKUP(99^99,Q$2:Q24))*1000)) -> 0 | S25: 0 | T25: 1 | U25: =IF(Q25="","",ROUND(OFFSET(S25,MATCH(TRUE,INDEX(S26:S$44<>"",0),0),0),0)) -> 0
A26: 19 | B26: 520285 | C26: =IF(OR(B26="HOL",B26="SUN",B26="SAT",B26="No Read",B26=""),"",IF(INDEX(B26:$B$44,MATCH(TRUE,ISNUMBER(B26:$B$44),0))<LOOKUP(99^99,B$2:B25),(INDEX(B26:$B$44,MATCH(TRUE,ISNUMBER(B26:$B$44),0))*748),(INDEX(B26:$B$44,MATCH(TRUE,ISNUMBER(B26:$B$44),0))-LOOKUP(99^99,B$2:B25))*748)) -> 145112 | D26: 145112 | E26: 1 | F26: =IF(B26="","",ROUND(OFFSET(D26,MATCH(TRUE,INDEX(D27:D$44<>"",0),0),0),0)) -> 0 | G26: 1351642 | H26: =IF(OR(G26="HOL",G26="SUN",G26="SAT",G26="No Read",G26=""),"",IF(INDEX(G26:$G$44,MATCH(TRUE,ISNUMBER(G26:$G$44),0))<LOOKUP(99^99,G$2:G25),(INDEX(G26:$G$44,MATCH(TRUE,ISNUMBER(G26:$G$44),0))*1000),(INDEX(G26:$G$44,MATCH(TRUE,ISNUMBER(G26:$G$44),0))-LOOKUP(99^99,G$2:G25))*1000)) -> 108000 | I26: 108000 | J26: 1 | K26: =IF(G26="","",ROUND(OFFSET(I26,MATCH(TRUE,INDEX(I27:I$44<>"",0),0),0),0)) -> 144000 | L26: 1876037 | M26: =IF(OR(L26="HOL",L26="SUN",L26="SAT",L26="No Read",L26=""),"",IF(INDEX(L26:$L$44,MATCH(TRUE,ISNUMBER(L26:$L$44),0))<LOOKUP(99^99,L$2:L25),(INDEX(L26:$L$44,MATCH(TRUE,ISNUMBER(L26:$L$44),0))*748),(INDEX(L26:$L$44,MATCH(TRUE,ISNUMBER(L26:$L$44),0))-LOOKUP(99^99,L$2:L25))*748)) -> 513876 | N26: 513876 | O26: 1 | P26: =IF(L26="","",ROUND(OFFSET(N26,MATCH(TRUE,INDEX(N27:N$44<>"",0),0),0),0)) -> 0 | Q26: 199312 | R26: =IF(OR(Q26="HOL",Q26="SUN",Q26="SAT",Q26="No Read",Q26=""),"",IF(INDEX(Q26:$Q$44,MATCH(TRUE,ISNUMBER(Q26:$Q$44),0))<LOOKUP(99^99,Q$2:Q25),(INDEX(Q26:$Q$44,MATCH(TRUE,ISNUMBER(Q26:$Q$44),0))*1000),(INDEX(Q26:$Q$44,MATCH(TRUE,ISNUMBER(Q26:$Q$44),0))-LOOKUP(99^99,Q$2:Q25))*1000)) -> 0 | S26: 0 | T26: 1 | U26: =IF(Q26="","",ROUND(OFFSET(S26,MATCH(TRUE,INDEX(S27:S$44<>"",0),0),0),0)) -> 0
A27: 20 | B27: 520285 | C27: =IF(OR(B27="HOL",B27="SUN",B27="SAT",B27="No Read",B27=""),"",IF(INDEX(B27:$B$44,MATCH(TRUE,ISNUMBER(B27:$B$44),0))<LOOKUP(99^99,B$2:B26),(INDEX(B27:$B$44,MATCH(TRUE,ISNUMBER(B27:$B$44),0))*748),(INDEX(B27:$B$44,MATCH(TRUE,ISNUMBER(B27:$B$44),0))-LOOKUP(99^99,B$2:B26))*748)) -> 0 | D27: 0 | E27: 1 | F27: =IF(B27="","",ROUND(OFFSET(D27,MATCH(TRUE,INDEX(D28:D$44<>"",0),0),0),0)) -> 133892 | G27: 1351786 | H27: =IF(OR(G27="HOL",G27="SUN",G27="SAT",G27="No Read",G27=""),"",IF(INDEX(G27:$G$44,MATCH(TRUE,ISNUMBER(G27:$G$44),0))<LOOKUP(99^99,G$2:G26),(INDEX(G27:$G$44,MATCH(TRUE,ISNUMBER(G27:$G$44),0))*1000),(INDEX(G27:$G$44,MATCH(TRUE,ISNUMBER(G27:$G$44),0))-LOOKUP(99^99,G$2:G26))*1000)) -> 144000 | I27: 144000 | J27: 1 | K27: =IF(G27="","",ROUND(OFFSET(I27,MATCH(TRUE,INDEX(I28:I$44<>"",0),0),0),0)) -> 108000 | L27: 1876037 | M27: =IF(OR(L27="HOL",L27="SUN",L27="SAT",L27="No Read",L27=""),"",IF(INDEX(L27:$L$44,MATCH(TRUE,ISNUMBER(L27:$L$44),0))<LOOKUP(99^99,L$2:L26),(INDEX(L27:$L$44,MATCH(TRUE,ISNUMBER(L27:$L$44),0))*748),(INDEX(L27:$L$44,MATCH(TRUE,ISNUMBER(L27:$L$44),0))-LOOKUP(99^99,L$2:L26))*748)) -> 0 | N27: 0 | O27: 1 | P27: =IF(L27="","",ROUND(OFFSET(N27,MATCH(TRUE,INDEX(N28:N$44<>"",0),0),0),0)) -> 483956 | Q27: 199312 | R27: =IF(OR(Q27="HOL",Q27="SUN",Q27="SAT",Q27="No Read",Q27=""),"",IF(INDEX(Q27:$Q$44,MATCH(TRUE,ISNUMBER(Q27:$Q$44),0))<LOOKUP(99^99,Q$2:Q26),(INDEX(Q27:$Q$44,MATCH(TRUE,ISNUMBER(Q27:$Q$44),0))*1000),(INDEX(Q27:$Q$44,MATCH(TRUE,ISNUMBER(Q27:$Q$44),0))-LOOKUP(99^99,Q$2:Q26))*1000)) -> 0 | S27: 0 | T27: 1 | U27: =IF(Q27="","",ROUND(OFFSET(S27,MATCH(TRUE,INDEX(S28:S$44<>"",0),0),0),0)) -> 0
A28: 21 | B28: 520464 | C28: =IF(OR(B28="HOL",B28="SUN",B28="SAT",B28="No Read",B28=""),"",IF(INDEX(B28:$B$44,MATCH(TRUE,ISNUMBER(B28:$B$44),0))<LOOKUP(99^99,B$2:B27),(INDEX(B28:$B$44,MATCH(TRUE,ISNUMBER(B28:$B$44),0))*748),(INDEX(B28:$B$44,MATCH(TRUE,ISNUMBER(B28:$B$44),0))-LOOKUP(99^99,B$2:B27))*748)) -> 133892 | D28: 133892 | E28: 1 | F28: =IF(B28="","",ROUND(OFFSET(D28,MATCH(TRUE,INDEX(D29:D$44<>"",0),0),0),0)) -> 137632 | G28: 1351894 | H28: =IF(OR(G28="HOL",G28="SUN",G28="SAT",G28="No Read",G28=""),"",IF(INDEX(G28:$G$44,MATCH(TRUE,ISNUMBER(G28:$G$44),0))<LOOKUP(99^99,G$2:G27),(INDEX(G28:$G$44,MATCH(TRUE,ISNUMBER(G28:$G$44),0))*1000),(INDEX(G28:$G$44,MATCH(TRUE,ISNUMBER(G28:$G$44),0))-LOOKUP(99^99,G$2:G27))*1000)) -> 108000 | I28: 108000 | J28: 1 | K28: =IF(G28="","",ROUND(OFFSET(I28,MATCH(TRUE,INDEX(I29:I$44<>"",0),0),0),0)) -> 136000 | L28: 1876684 | M28: =IF(OR(L28="HOL",L28="SUN",L28="SAT",L28="No Read",L28=""),"",IF(INDEX(L28:$L$44,MATCH(TRUE,ISNUMBER(L28:$L$44),0))<LOOKUP(99^99,L$2:L27),(INDEX(L28:$L$44,MATCH(TRUE,ISNUMBER(L28:$L$44),0))*748),(INDEX(L28:$L$44,MATCH(TRUE,ISNUMBER(L28:$L$44),0))-LOOKUP(99^99,L$2:L27))*748)) -> 483956 | N28: 483956 | O28: 1 | P28: =IF(L28="","",ROUND(OFFSET(N28,MATCH(TRUE,INDEX(N29:N$44<>"",0),0),0),0)) -> 504900 | Q28: 199312 | R28: =IF(OR(Q28="HOL",Q28="SUN",Q28="SAT",Q28="No Read",Q28=""),"",IF(INDEX(Q28:$Q$44,MATCH(TRUE,ISNUMBER(Q28:$Q$44),0))<LOOKUP(99^99,Q$2:Q27),(INDEX(Q28:$Q$44,MATCH(TRUE,ISNUMBER(Q28:$Q$44),0))*1000),(INDEX(Q28:$Q$44,MATCH(TRUE,ISNUMBER(Q28:$Q$44),0))-LOOKUP(99^99,Q$2:Q27))*1000)) -> 0 | S28: 0 | T28: 1 | U28: =IF(Q28="","",ROUND(OFFSET(S28,MATCH(TRUE,INDEX(S29:S$44<>"",0),0),0),0)) -> 51000
A29: 22 | B29: 520648 | C29: =IF(OR(B29="HOL",B29="SUN",B29="SAT",B29="No Read",B29=""),"",IF(INDEX(B29:$B$44,MATCH(TRUE,ISNUMBER(B29:$B$44),0))<LOOKUP(99^99,B$2:B28),(INDEX(B29:$B$44,MATCH(TRUE,ISNUMBER(B29:$B$44),0))*748),(INDEX(B29:$B$44,MATCH(TRUE,ISNUMBER(B29:$B$44),0))-LOOKUP(99^99,B$2:B28))*748)) -> 137632 | D29: 137632 | E29: 1 | F29: =IF(B29="","",ROUND(OFFSET(D29,MATCH(TRUE,INDEX(D30:D$44<>"",0),0),0),0)) -> 0 | G29: 1352030 | H29: =IF(OR(G29="HOL",G29="SUN",G29="SAT",G29="No Read",G29=""),"",IF(INDEX(G29:$G$44,MATCH(TRUE,ISNUMBER(G29:$G$44),0))<LOOKUP(99^99,G$2:G28),(INDEX(G29:$G$44,MATCH(TRUE,ISNUMBER(G29:$G$44),0))*1000),(INDEX(G29:$G$44,MATCH(TRUE,ISNUMBER(G29:$G$44),0))-LOOKUP(99^99,G$2:G28))*1000)) -> 136000 | I29: 136000 | J29: 1 | K29: =IF(G29="","",ROUND(OFFSET(I29,MATCH(TRUE,INDEX(I30:I$44<>"",0),0),0),0)) -> 58000 | L29: 1877359 | M29: =IF(OR(L29="HOL",L29="SUN",L29="SAT",L29="No Read",L29=""),"",IF(INDEX(L29:$L$44,MATCH(TRUE,ISNUMBER(L29:$L$44),0))<LOOKUP(99^99,L$2:L28),(INDEX(L29:$L$44,MATCH(TRUE,ISNUMBER(L29:$L$44),0))*748),(INDEX(L29:$L$44,MATCH(TRUE,ISNUMBER(L29:$L$44),0))-LOOKUP(99^99,L$2:L28))*748)) -> 504900 | N29: 504900 | O29: 1 | P29: =IF(L29="","",ROUND(OFFSET(N29,MATCH(TRUE,INDEX(N30:N$44<>"",0),0),0),0)) -> 0 | Q29: 199363 | R29: =IF(OR(Q29="HOL",Q29="SUN",Q29="SAT",Q29="No Read",Q29=""),"",IF(INDEX(Q29:$Q$44,MATCH(TRUE,ISNUMBER(Q29:$Q$44),0))<LOOKUP(99^99,Q$2:Q28),(INDEX(Q29:$Q$44,MATCH(TRUE,ISNUMBER(Q29:$Q$44),0))*1000),(INDEX(Q29:$Q$44,MATCH(TRUE,ISNUMBER(Q29:$Q$44),0))-LOOKUP(99^99,Q$2:Q28))*1000)) -> 51000 | S29: 51000 | T29: 1 | U29: =IF(Q29="","",ROUND(OFFSET(S29,MATCH(TRUE,INDEX(S30:S$44<>"",0),0),0),0)) -> 0
A30: 23 | B30: 520648 | C30: =IF(OR(B30="HOL",B30="SUN",B30="SAT",B30="No Read",B30=""),"",IF(INDEX(B30:$B$44,MATCH(TRUE,ISNUMBER(B30:$B$44),0))<LOOKUP(99^99,B$2:B29),(INDEX(B30:$B$44,MATCH(TRUE,ISNUMBER(B30:$B$44),0))*748),(INDEX(B30:$B$44,MATCH(TRUE,ISNUMBER(B30:$B$44),0))-LOOKUP(99^99,B$2:B29))*748)) -> 0 | D30: 0 | E30: 1 | F30: =IF(B30="","",ROUND(OFFSET(D30,MATCH(TRUE,INDEX(D31:D$44<>"",0),0),0),0)) -> 158576 | G30: 1352088 | H30: =IF(OR(G30="HOL",G30="SUN",G30="SAT",G30="No Read",G30=""),"",IF(INDEX(G30:$G$44,MATCH(TRUE,ISNUMBER(G30:$G$44),0))<LOOKUP(99^99,G$2:G29),(INDEX(G30:$G$44,MATCH(TRUE,ISNUMBER(G30:$G$44),0))*1000),(INDEX(G30:$G$44,MATCH(TRUE,ISNUMBER(G30:$G$44),0))-LOOKUP(99^99,G$2:G29))*1000)) -> 58000 | I30: 58000 | J30: 1 | K30: =IF(G30="","",ROUND(OFFSET(I30,MATCH(TRUE,INDEX(I31:I$44<>"",0),0),0),0)) -> 203000 | L30: 1877359 | M30: =IF(OR(L30="HOL",L30="SUN",L30="SAT",L30="No Read",L30=""),"",IF(INDEX(L30:$L$44,MATCH(TRUE,ISNUMBER(L30:$L$44),0))<LOOKUP(99^99,L$2:L29),(INDEX(L30:$L$44,MATCH(TRUE,ISNUMBER(L30:$L$44),0))*748),(INDEX(L30:$L$44,MATCH(TRUE,ISNUMBER(L30:$L$44),0))-LOOKUP(99^99,L$2:L29))*748)) -> 0 | N30: 0 | O30: 1 | P30: =IF(L30="","",ROUND(OFFSET(N30,MATCH(TRUE,INDEX(N31:N$44<>"",0),0),0),0)) -> 578952 | Q30: 199363 | R30: =IF(OR(Q30="HOL",Q30="SUN",Q30="SAT",Q30="No Read",Q30=""),"",IF(INDEX(Q30:$Q$44,MATCH(TRUE,ISNUMBER(Q30:$Q$44),0))<LOOKUP(99^99,Q$2:Q29),(INDEX(Q30:$Q$44,MATCH(TRUE,ISNUMBER(Q30:$Q$44),0))*1000),(INDEX(Q30:$Q$44,MATCH(TRUE,ISNUMBER(Q30:$Q$44),0))-LOOKUP(99^99,Q$2:Q29))*1000)) -> 0 | S30: 0 | T30: 1 | U30: =IF(Q30="","",ROUND(OFFSET(S30,MATCH(TRUE,INDEX(S31:S$44<>"",0),0),0),0)) -> 0
A31: 24 | B31: 520860 | C31: =IF(OR(B31="HOL",B31="SUN",B31="SAT",B31="No Read",B31=""),"",IF(INDEX(B31:$B$44,MATCH(TRUE,ISNUMBER(B31:$B$44),0))<LOOKUP(99^99,B$2:B30),(INDEX(B31:$B$44,MATCH(TRUE,ISNUMBER(B31:$B$44),0))*748),(INDEX(B31:$B$44,MATCH(TRUE,ISNUMBER(B31:$B$44),0))-LOOKUP(99^99,B$2:B30))*748)) -> 158576 | D31: 158576 | E31: 1 | F31: =IF(B31="","",ROUND(OFFSET(D31,MATCH(TRUE,INDEX(D32:D$44<>"",0),0),0),0)) -> 52360 | G31: 1352291 | H31: =IF(OR(G31="HOL",G31="SUN",G31="SAT",G31="No Read",G31=""),"",IF(INDEX(G31:$G$44,MATCH(TRUE,ISNUMBER(G31:$G$44),0))<LOOKUP(99^99,G$2:G30),(INDEX(G31:$G$44,MATCH(TRUE,ISNUMBER(G31:$G$44),0))*1000),(INDEX(G31:$G$44,MATCH(TRUE,ISNUMBER(G31:$G$44),0))-LOOKUP(99^99,G$2:G30))*1000)) -> 203000 | I31: 203000 | J31: 1 | K31: =IF(G31="","",ROUND(OFFSET(I31,MATCH(TRUE,INDEX(I32:I$44<>"",0),0),0),0)) -> 192000 | L31: 1878133 | M31: =IF(OR(L31="HOL",L31="SUN",L31="SAT",L31="No Read",L31=""),"",IF(INDEX(L31:$L$44,MATCH(TRUE,ISNUMBER(L31:$L$44),0))<LOOKUP(99^99,L$2:L30),(INDEX(L31:$L$44,MATCH(TRUE,ISNUMBER(L31:$L$44),0))*748),(INDEX(L31:$L$44,MATCH(TRUE,ISNUMBER(L31:$L$44),0))-LOOKUP(99^99,L$2:L30))*748)) -> 578952 | N31: 578952 | O31: 1 | P31: =IF(L31="","",ROUND(OFFSET(N31,MATCH(TRUE,INDEX(N32:N$44<>"",0),0),0),0)) -> 177276 | Q31: 199363 | R31: =IF(OR(Q31="HOL",Q31="SUN",Q31="SAT",Q31="No Read",Q31=""),"",IF(INDEX(Q31:$Q$44,MATCH(TRUE,ISNUMBER(Q31:$Q$44),0))<LOOKUP(99^99,Q$2:Q30),(INDEX(Q31:$Q$44,MATCH(TRUE,ISNUMBER(Q31:$Q$44),0))*1000),(INDEX(Q31:$Q$44,MATCH(TRUE,ISNUMBER(Q31:$Q$44),0))-LOOKUP(99^99,Q$2:Q30))*1000)) -> 0 | S31: 0 | T31: 1 | U31: =IF(Q31="","",ROUND(OFFSET(S31,MATCH(TRUE,INDEX(S32:S$44<>"",0),0),0),0)) -> 0
A32: 25 | B32: 520930 | C32: =IF(OR(B32="HOL",B32="SUN",B32="SAT",B32="No Read",B32=""),"",IF(INDEX(B32:$B$44,MATCH(TRUE,ISNUMBER(B32:$B$44),0))<LOOKUP(99^99,B$2:B31),(INDEX(B32:$B$44,MATCH(TRUE,ISNUMBER(B32:$B$44),0))*748),(INDEX(B32:$B$44,MATCH(TRUE,ISNUMBER(B32:$B$44),0))-LOOKUP(99^99,B$2:B31))*748)) -> 52360 | D32: 52360 | E32: 1 | F32: =IF(B32="","",ROUND(OFFSET(D32,MATCH(TRUE,INDEX(D33:D$44<>"",0),0),0),0)) -> 78540 | G32: 1352483 | H32: =IF(OR(G32="HOL",G32="SUN",G32="SAT",G32="No Read",G32=""),"",IF(INDEX(G32:$G$44,MATCH(TRUE,ISNUMBER(G32:$G$44),0))<LOOKUP(99^99,G$2:G31),(INDEX(G32:$G$44,MATCH(TRUE,ISNUMBER(G32:$G$44),0))*1000),(INDEX(G32:$G$44,MATCH(TRUE,ISNUMBER(G32:$G$44),0))-LOOKUP(99^99,G$2:G31))*1000)) -> 192000 | I32: 192000 | J32: 1 | K32: =IF(G32="","",ROUND(OFFSET(I32,MATCH(TRUE,INDEX(I33:I$44<>"",0),0),0),0)) -> 139000 | L32: 1878370 | M32: =IF(OR(L32="HOL",L32="SUN",L32="SAT",L32="No Read",L32=""),"",IF(INDEX(L32:$L$44,MATCH(TRUE,ISNUMBER(L32:$L$44),0))<LOOKUP(99^99,L$2:L31),(INDEX(L32:$L$44,MATCH(TRUE,ISNUMBER(L32:$L$44),0))*748),(INDEX(L32:$L$44,MATCH(TRUE,ISNUMBER(L32:$L$44),0))-LOOKUP(99^99,L$2:L31))*748)) -> 177276 | N32: 177276 | O32: 1 | P32: =IF(L32="","",ROUND(OFFSET(N32,MATCH(TRUE,INDEX(N33:N$44<>"",0),0),0),0)) -> 298452 | Q32: 199363 | R32: =IF(OR(Q32="HOL",Q32="SUN",Q32="SAT",Q32="No Read",Q32=""),"",IF(INDEX(Q32:$Q$44,MATCH(TRUE,ISNUMBER(Q32:$Q$44),0))<LOOKUP(99^99,Q$2:Q31),(INDEX(Q32:$Q$44,MATCH(TRUE,ISNUMBER(Q32:$Q$44),0))*1000),(INDEX(Q32:$Q$44,MATCH(TRUE,ISNUMBER(Q32:$Q$44),0))-LOOKUP(99^99,Q$2:Q31))*1000)) -> 0 | S32: 0 | T32: 1 | U32: =IF(Q32="","",ROUND(OFFSET(S32,MATCH(TRUE,INDEX(S33:S$44<>"",0),0),0),0)) -> 0
A33: 26 | B33: 521035 | C33: =IF(OR(B33="HOL",B33="SUN",B33="SAT",B33="No Read",B33=""),"",IF(INDEX(B33:$B$44,MATCH(TRUE,ISNUMBER(B33:$B$44),0))<LOOKUP(99^99,B$2:B32),(INDEX(B33:$B$44,MATCH(TRUE,ISNUMBER(B33:$B$44),0))*748),(INDEX(B33:$B$44,MATCH(TRUE,ISNUMBER(B33:$B$44),0))-LOOKUP(99^99,B$2:B32))*748)) -> 78540 | D33: 78540 | E33: 1 | F33: =IF(B33="","",ROUND(OFFSET(D33,MATCH(TRUE,INDEX(D34:D$44<>"",0),0),0),0)) -> 154088 | G33: 1352622 | H33: =IF(OR(G33="HOL",G33="SUN",G33="SAT",G33="No Read",G33=""),"",IF(INDEX(G33:$G$44,MATCH(TRUE,ISNUMBER(G33:$G$44),0))<LOOKUP(99^99,G$2:G32),(INDEX(G33:$G$44,MATCH(TRUE,ISNUMBER(G33:$G$44),0))*1000),(INDEX(G33:$G$44,MATCH(TRUE,ISNUMBER(G33:$G$44),0))-LOOKUP(99^99,G$2:G32))*1000)) -> 139000 | I33: 139000 | J33: 1 | K33: =IF(G33="","",ROUND(OFFSET(I33,MATCH(TRUE,INDEX(I34:I$44<>"",0),0),0),0)) -> 162000 | L33: 1878769 | M33: =IF(OR(L33="HOL",L33="SUN",L33="SAT",L33="No Read",L33=""),"",IF(INDEX(L33:$L$44,MATCH(TRUE,ISNUMBER(L33:$L$44),0))<LOOKUP(99^99,L$2:L32),(INDEX(L33:$L$44,MATCH(TRUE,ISNUMBER(L33:$L$44),0))*748),(INDEX(L33:$L$44,MATCH(TRUE,ISNUMBER(L33:$L$44),0))-LOOKUP(99^99,L$2:L32))*748)) -> 298452 | N33: 298452 | O33: 1 | P33: =IF(L33="","",ROUND(OFFSET(N33,MATCH(TRUE,INDEX(N34:N$44<>"",0),0),0),0)) -> 558008 | Q33: 199363 | R33: =IF(OR(Q33="HOL",Q33="SUN",Q33="SAT",Q33="No Read",Q33=""),"",IF(INDEX(Q33:$Q$44,MATCH(TRUE,ISNUMBER(Q33:$Q$44),0))<LOOKUP(99^99,Q$2:Q32),(INDEX(Q33:$Q$44,MATCH(TRUE,ISNUMBER(Q33:$Q$44),0))*1000),(INDEX(Q33:$Q$44,MATCH(TRUE,ISNUMBER(Q33:$Q$44),0))-LOOKUP(99^99,Q$2:Q32))*1000)) -> 0 | S33: 0 | T33: 1 | U33: =IF(Q33="","",ROUND(OFFSET(S33,MATCH(TRUE,INDEX(S34:S$44<>"",0),0),0),0)) -> 0
A34: 27 | B34: 521241 | C34: =IF(OR(B34="HOL",B34="SUN",B34="SAT",B34="No Read",B34=""),"",IF(INDEX(B34:$B$44,MATCH(TRUE,ISNUMBER(B34:$B$44),0))<LOOKUP(99^99,B$2:B33),(INDEX(B34:$B$44,MATCH(TRUE,ISNUMBER(B34:$B$44),0))*748),(INDEX(B34:$B$44,MATCH(TRUE,ISNUMBER(B34:$B$44),0))-LOOKUP(99^99,B$2:B33))*748)) -> 154088 | D34: 154088 | E34: 1 | F34: =IF(B34="","",ROUND(OFFSET(D34,MATCH(TRUE,INDEX(D35:D$44<>"",0),0),0),0)) -> 0 | G34: 1352784 | H34: =IF(OR(G34="HOL",G34="SUN",G34="SAT",G34="No Read",G34=""),"",IF(INDEX(G34:$G$44,MATCH(TRUE,ISNUMBER(G34:$G$44),0))<LOOKUP(99^99,G$2:G33),(INDEX(G34:$G$44,MATCH(TRUE,ISNUMBER(G34:$G$44),0))*1000),(INDEX(G34:$G$44,MATCH(TRUE,ISNUMBER(G34:$G$44),0))-LOOKUP(99^99,G$2:G33))*1000)) -> 162000 | I34: 162000 | J34: 1 | K34: =IF(G34="","",ROUND(OFFSET(I34,MATCH(TRUE,INDEX(I35:I$44<>"",0),0),0),0)) -> 181000 | L34: 1879515 | M34: =IF(OR(L34="HOL",L34="SUN",L34="SAT",L34="No Read",L34=""),"",IF(INDEX(L34:$L$44,MATCH(TRUE,ISNUMBER(L34:$L$44),0))<LOOKUP(99^99,L$2:L33),(INDEX(L34:$L$44,MATCH(TRUE,ISNUMBER(L34:$L$44),0))*748),(INDEX(L34:$L$44,MATCH(TRUE,ISNUMBER(L34:$L$44),0))-LOOKUP(99^99,L$2:L33))*748)) -> 558008 | N34: 558008 | O34: 1 | P34: =IF(L34="","",ROUND(OFFSET(N34,MATCH(TRUE,INDEX(N35:N$44<>"",0),0),0),0)) -> 0 | Q34: 199363 | R34: =IF(OR(Q34="HOL",Q34="SUN",Q34="SAT",Q34="No Read",Q34=""),"",IF(INDEX(Q34:$Q$44,MATCH(TRUE,ISNUMBER(Q34:$Q$44),0))<LOOKUP(99^99,Q$2:Q33),(INDEX(Q34:$Q$44,MATCH(TRUE,ISNUMBER(Q34:$Q$44),0))*1000),(INDEX(Q34:$Q$44,MATCH(TRUE,ISNUMBER(Q34:$Q$44),0))-LOOKUP(99^99,Q$2:Q33))*1000)) -> 0 | S34: 0 | T34: 1 | U34: =IF(Q34="","",ROUND(OFFSET(S34,MATCH(TRUE,INDEX(S35:S$44<>"",0),0),0),0)) -> 0
A35: 28 | B35: 521241 | C35: =IF(OR(B35="HOL",B35="SUN",B35="SAT",B35="No Read",B35=""),"",IF(INDEX(B35:$B$44,MATCH(TRUE,ISNUMBER(B35:$B$44),0))<LOOKUP(99^99,B$2:B34),(INDEX(B35:$B$44,MATCH(TRUE,ISNUMBER(B35:$B$44),0))*748),(INDEX(B35:$B$44,MATCH(TRUE,ISNUMBER(B35:$B$44),0))-LOOKUP(99^99,B$2:B34))*748)) -> 0 | D35: 0 | E35: 1 | F35: =IF(B35="","",ROUND(OFFSET(D35,MATCH(TRUE,INDEX(D36:D$44<>"",0),0),0),0)) -> 151844 | G35: 1352965 | H35: =IF(OR(G35="HOL",G35="SUN",G35="SAT",G35="No Read",G35=""),"",IF(INDEX(G35:$G$44,MATCH(TRUE,ISNUMBER(G35:$G$44),0))<LOOKUP(99^99,G$2:G34),(INDEX(G35:$G$44,MATCH(TRUE,ISNUMBER(G35:$G$44),0))*1000),(INDEX(G35:$G$44,MATCH(TRUE,ISNUMBER(G35:$G$44),0))-LOOKUP(99^99,G$2:G34))*1000)) -> 181000 | I35: 181000 | J35: 1 | K35: =IF(G35="","",ROUND(OFFSET(I35,MATCH(TRUE,INDEX(I36:I$44<>"",0),0),0),0)) -> 160000 | L35: 1879515 | M35: =IF(OR(L35="HOL",L35="SUN",L35="SAT",L35="No Read",L35=""),"",IF(INDEX(L35:$L$44,MATCH(TRUE,ISNUMBER(L35:$L$44),0))<LOOKUP(99^99,L$2:L34),(INDEX(L35:$L$44,MATCH(TRUE,ISNUMBER(L35:$L$44),0))*748),(INDEX(L35:$L$44,MATCH(TRUE,ISNUMBER(L35:$L$44),0))-LOOKUP(99^99,L$2:L34))*748)) -> 0 | N35: 0 | O35: 1 | P35: =IF(L35="","",ROUND(OFFSET(N35,MATCH(TRUE,INDEX(N36:N$44<>"",0),0),0),0)) -> 546788 | Q35: 199363 | R35: =IF(OR(Q35="HOL",Q35="SUN",Q35="SAT",Q35="No Read",Q35=""),"",IF(INDEX(Q35:$Q$44,MATCH(TRUE,ISNUMBER(Q35:$Q$44),0))<LOOKUP(99^99,Q$2:Q34),(INDEX(Q35:$Q$44,MATCH(TRUE,ISNUMBER(Q35:$Q$44),0))*1000),(INDEX(Q35:$Q$44,MATCH(TRUE,ISNUMBER(Q35:$Q$44),0))-LOOKUP(99^99,Q$2:Q34))*1000)) -> 0 | S35: 0 | T35: 1 | U35: =IF(Q35="","",ROUND(OFFSET(S35,MATCH(TRUE,INDEX(S36:S$44<>"",0),0),0),0)) -> 38000
A36: 29 | B36: 521444 | C36: =IF(OR(B36="HOL",B36="SUN",B36="SAT",B36="No Read",B36=""),"",IF(INDEX(B36:$B$44,MATCH(TRUE,ISNUMBER(B36:$B$44),0))<LOOKUP(99^99,B$2:B35),(INDEX(B36:$B$44,MATCH(TRUE,ISNUMBER(B36:$B$44),0))*748),(INDEX(B36:$B$44,MATCH(TRUE,ISNUMBER(B36:$B$44),0))-LOOKUP(99^99,B$2:B35))*748)) -> 151844 | D36: 151844 | E36: =IF(B36="",E35,IF(C36="",IF(E35>0,E35+1,1),1)) -> 1 | F36: =IF(B36="","",ROUND(OFFSET(D36,MATCH(TRUE,INDEX(D37:D$44<>"",0),0),0),0)) -> 66572 | G36: 1353125 | H36: =IF(OR(G36="HOL",G36="SUN",G36="SAT",G36="No Read",G36=""),"",IF(INDEX(G36:$G$44,MATCH(TRUE,ISNUMBER(G36:$G$44),0))<LOOKUP(99^99,G$2:G35),(INDEX(G36:$G$44,MATCH(TRUE,ISNUMBER(G36:$G$44),0))*1000),(INDEX(G36:$G$44,MATCH(TRUE,ISNUMBER(G36:$G$44),0))-LOOKUP(99^99,G$2:G35))*1000)) -> 160000 | I36: 160000 | J36: =IF(G36="",J35,IF(H36="",IF(J35>0,J35+1,1),1)) -> 1 | K36: =IF(G36="","",ROUND(OFFSET(I36,MATCH(TRUE,INDEX(I37:I$44<>"",0),0),0),0)) -> 92000 | L36: 1880246 | M36: =IF(OR(L36="HOL",L36="SUN",L36="SAT",L36="No Read",L36=""),"",IF(INDEX(L36:$L$44,MATCH(TRUE,ISNUMBER(L36:$L$44),0))<LOOKUP(99^99,L$2:L35),(INDEX(L36:$L$44,MATCH(TRUE,ISNUMBER(L36:$L$44),0))*748),(INDEX(L36:$L$44,MATCH(TRUE,ISNUMBER(L36:$L$44),0))-LOOKUP(99^99,L$2:L35))*748)) -> 546788 | N36: 546788 | O36: =IF(L36="",O35,IF(M36="",IF(O35>0,O35+1,1),1)) -> 1 | P36: =IF(L36="","",ROUND(OFFSET(N36,MATCH(TRUE,INDEX(N37:N$44<>"",0),0),0),0)) -> 236368 | Q36: 199401 | R36: =IF(OR(Q36="HOL",Q36="SUN",Q36="SAT",Q36="No Read",Q36=""),"",IF(INDEX(Q36:$Q$44,MATCH(TRUE,ISNUMBER(Q36:$Q$44),0))<LOOKUP(99^99,Q$2:Q35),(INDEX(Q36:$Q$44,MATCH(TRUE,ISNUMBER(Q36:$Q$44),0))*1000),(INDEX(Q36:$Q$44,MATCH(TRUE,ISNUMBER(Q36:$Q$44),0))-LOOKUP(99^99,Q$2:Q35))*1000)) -> 38000 | S36: 38000 | T36: =IF(Q36="",T35,IF(R36="",IF(T35>0,T35+1,1),1)) -> 1 | U36: =IF(Q36="","",ROUND(OFFSET(S36,MATCH(TRUE,INDEX(S37:S$44<>"",0),0),0),0)) -> 0
A37: 30 | B37: 521533 | C37: =IF(OR(B37="HOL",B37="SUN",B37="SAT",B37="No Read",B37=""),"",IF(INDEX(B37:$B$44,MATCH(TRUE,ISNUMBER(B37:$B$44),0))<LOOKUP(99^99,B$2:B36),(INDEX(B37:$B$44,MATCH(TRUE,ISNUMBER(B37:$B$44),0))*748),(INDEX(B37:$B$44,MATCH(TRUE,ISNUMBER(B37:$B$44),0))-LOOKUP(99^99,B$2:B36))*748)) -> 66572 | D37: 66572 | E37: =IF(B37="",E36,IF(C37="",IF(E36>0,E36+1,1),1)) -> 1 | F37: =IF(B37="","",ROUND(OFFSET(D37,MATCH(TRUE,INDEX(D38:D$44<>"",0),0),0),0)) -> 74052 | G37: 1353217 | H37: =IF(OR(G37="HOL",G37="SUN",G37="SAT",G37="No Read",G37=""),"",IF(INDEX(G37:$G$44,MATCH(TRUE,ISNUMBER(G37:$G$44),0))<LOOKUP(99^99,G$2:G36),(INDEX(G37:$G$44,MATCH(TRUE,ISNUMBER(G37:$G$44),0))*1000),(INDEX(G37:$G$44,MATCH(TRUE,ISNUMBER(G37:$G$44),0))-LOOKUP(99^99,G$2:G36))*1000)) -> 92000 | I37: 92000 | J37: =IF(G37="",J36,IF(H37="",IF(J36>0,J36+1,1),1)) -> 1 | K37: =IF(G37="","",ROUND(OFFSET(I37,MATCH(TRUE,INDEX(I38:I$44<>"",0),0),0),0)) -> 181000 | L37: 1880562 | M37: =IF(OR(L37="HOL",L37="SUN",L37="SAT",L37="No Read",L37=""),"",IF(INDEX(L37:$L$44,MATCH(TRUE,ISNUMBER(L37:$L$44),0))<LOOKUP(99^99,L$2:L36),(INDEX(L37:$L$44,MATCH(TRUE,ISNUMBER(L37:$L$44),0))*748),(INDEX(L37:$L$44,MATCH(TRUE,ISNUMBER(L37:$L$44),0))-LOOKUP(99^99,L$2:L36))*748)) -> 236368 | N37: 236368 | O37: =IF(L37="",O36,IF(M37="",IF(O36>0,O36+1,1),1)) -> 1 | P37: =IF(L37="","",ROUND(OFFSET(N37,MATCH(TRUE,INDEX(N38:N$44<>"",0),0),0),0)) -> 269280 | Q37: 199401 | R37: =IF(OR(Q37="HOL",Q37="SUN",Q37="SAT",Q37="No Read",Q37=""),"",IF(INDEX(Q37:$Q$44,MATCH(TRUE,ISNUMBER(Q37:$Q$44),0))<LOOKUP(99^99,Q$2:Q36),(INDEX(Q37:$Q$44,MATCH(TRUE,ISNUMBER(Q37:$Q$44),0))*1000),(INDEX(Q37:$Q$44,MATCH(TRUE,ISNUMBER(Q37:$Q$44),0))-LOOKUP(99^99,Q$2:Q36))*1000)) -> 0 | S37: 0 | T37: =IF(Q37="",T36,IF(R37="",IF(T36>0,T36+1,1),1)) -> 1 | U37: =IF(Q37="","",ROUND(OFFSET(S37,MATCH(TRUE,INDEX(S38:S$44<>"",0),0),0),0)) -> 0
A38: 31 | B38: 521632 | C38: =IF(OR(B38="HOL",B38="SUN",B38="SAT",B38="No Read",B38=""),"",IF(INDEX(B38:$B$44,MATCH(TRUE,ISNUMBER(B38:$B$44),0))<LOOKUP(99^99,B$2:B37),(INDEX(B38:$B$44,MATCH(TRUE,ISNUMBER(B38:$B$44),0))*748),(INDEX(B38:$B$44,MATCH(TRUE,ISNUMBER(B38:$B$44),0))-LOOKUP(99^99,B$2:B37))*748)) -> 74052 | D38: 74052 | E38: =IF(B38="",E37,IF(C38="",IF(E37>0,E37+1,1),1)) -> 1 | F38: =IF(B38="","",ROUND(OFFSET(D38,MATCH(TRUE,INDEX(D39:D$44<>"",0),0),0),0)) -> 150348 | G38: 1353398 | H38: =IF(OR(G38="HOL",G38="SUN",G38="SAT",G38="No Read",G38=""),"",IF(INDEX(G38:$G$44,MATCH(TRUE,ISNUMBER(G38:$G$44),0))<LOOKUP(99^99,G$2:G37),(INDEX(G38:$G$44,MATCH(TRUE,ISNUMBER(G38:$G$44),0))*1000),(INDEX(G38:$G$44,MATCH(TRUE,ISNUMBER(G38:$G$44),0))-LOOKUP(99^99,G$2:G37))*1000)) -> 181000 | I38: 181000 | J38: =IF(G38="",J37,IF(H38="",IF(J37>0,J37+1,1),1)) -> 1 | K38: =IF(G38="","",ROUND(OFFSET(I38,MATCH(TRUE,INDEX(I39:I$44<>"",0),0),0),0)) -> 120000 | L38: 1880922 | M38: =IF(OR(L38="HOL",L38="SUN",L38="SAT",L38="No Read",L38=""),"",IF(INDEX(L38:$L$44,MATCH(TRUE,ISNUMBER(L38:$L$44),0))<LOOKUP(99^99,L$2:L37),(INDEX(L38:$L$44,MATCH(TRUE,ISNUMBER(L38:$L$44),0))*748),(INDEX(L38:$L$44,MATCH(TRUE,ISNUMBER(L38:$L$44),0))-LOOKUP(99^99,L$2:L37))*748)) -> 269280 | N38: 269280 | O38: =IF(L38="",O37,IF(M38="",IF(O37>0,O37+1,1),1)) -> 1 | P38: =IF(L38="","",ROUND(OFFSET(N38,MATCH(TRUE,INDEX(N39:N$44<>"",0),0),0),0)) -> 538560 | Q38: 199401 | R38: =IF(OR(Q38="HOL",Q38="SUN",Q38="SAT",Q38="No Read",Q38=""),"",IF(INDEX(Q38:$Q$44,MATCH(TRUE,ISNUMBER(Q38:$Q$44),0))<LOOKUP(99^99,Q$2:Q37),(INDEX(Q38:$Q$44,MATCH(TRUE,ISNUMBER(Q38:$Q$44),0))*1000),(INDEX(Q38:$Q$44,MATCH(TRUE,ISNUMBER(Q38:$Q$44),0))-LOOKUP(99^99,Q$2:Q37))*1000)) -> 0 | S38: 0 | T38: =IF(Q38="",T37,IF(R38="",IF(T37>0,T37+1,1),1)) -> 1 | U38: =IF(Q38="","",ROUND(OFFSET(S38,MATCH(TRUE,INDEX(S39:S$44<>"",0),0),0),0)) -> 0
A39: TOTAL: | F39: =IF(COUNTBLANK(F$8:F$38)=31,"",SUM(F$8:F$38)) -> 3235100 | K39: =IF(COUNTBLANK(K$8:K$38)=31,"",SUM(K$8:K$38)) -> 5238000 | P39: =IF(COUNTBLANK(P$8:P$38)=31,"",SUM(P$8:P$38)) -> 10238624 | U39: =IF(COUNTBLANK(U$8:U$38)=31,"",SUM(U$8:U$38)) -> 137000 | V39: Gallons
F40: =IF(F$39="","",F$39/325853) -> 9.928096412 | K40: =IF(K$39="","",K$39/325853) -> 16.07473309 | P40: =IF(P$39="","",P$39/325853) -> 31.42099045 | U40: =IF(U$39="","",U$39/325853) -> 0.4204349814 | V40: Acre-Ft.
B41: 521833 | C41: =IF(OR(B41="HOL",B41="SUN",B41="SAT",B41="No Read",B41=""),"",IF(INDEX(B41:$B$44,MATCH(TRUE,ISNUMBER(B41:$B$44),0))<LOOKUP(99^99,B$2:B40),(INDEX(B41:$B$44,MATCH(TRUE,ISNUMBER(B41:$B$44),0))*748),(INDEX(B41:$B$44,MATCH(TRUE,ISNUMBER(B41:$B$44),0))-LOOKUP(99^99,B$2:B40))*748)) -> 150348 | D41: =IF(OR(B41="HOL",B41="SUN",B41="SAT",B41="No Read",B41=""),"",ROUND(C41/E38,1)) -> 150348 | E41: =IF(B41="",E38,IF(C41="",IF(E38>0,E38+1,1),1)) -> 1 | F41: =IF(B42="","",OFFSET(D41,MATCH(TRUE,INDEX(D42:D$44<>"",0),0),0)) ->  | G41: 1353518 | H41: =IF(OR(G41="HOL",G41="SUN",G41="SAT",G41="No Read",G41=""),"",IF(INDEX(G41:$G$44,MATCH(TRUE,ISNUMBER(G41:$G$44),0))<LOOKUP(99^99,G$2:G40),(INDEX(G41:$G$44,MATCH(TRUE,ISNUMBER(G41:$G$44),0))*1000),(INDEX(G41:$G$44,MATCH(TRUE,ISNUMBER(G41:$G$44),0))-LOOKUP(99^99,G$2:G40))*1000)) -> 120000 | I41: =IF(OR(G41="HOL",G41="SUN",G41="SAT",G41="No Read",G41=""),"",ROUND(H41/J38,1)) -> 120000 | J41: =IF(G41="",J38,IF(H41="",IF(J38>0,J38+1,1),1)) -> 1 | K41: =IF(G42="","",OFFSET(I41,MATCH(TRUE,INDEX(I42:I$44<>"",0),0),0)) ->  | L41: 1881642 | M41: =IF(OR(L41="HOL",L41="SUN",L41="SAT",L41="No Read",L41=""),"",IF(INDEX(L41:$L$44,MATCH(TRUE,ISNUMBER(L41:$L$44),0))<LOOKUP(99^99,L$2:L40),(INDEX(L41:$L$44,MATCH(TRUE,ISNUMBER(L41:$L$44),0))*748),(INDEX(L41:$L$44,MATCH(TRUE,ISNUMBER(L41:$L$44),0))-LOOKUP(99^99,L$2:L40))*748)) -> 538560 | N41: =IF(OR(L41="HOL",L41="SUN",L41="SAT",L41="No Read",L41=""),"",ROUND(M41/O38,1)) -> 538560 | O41: =IF(L41="",O38,IF(M41="",IF(O38>0,O38+1,1),1)) -> 1 | P41: =IF(L42="","",OFFSET(N41,MATCH(TRUE,INDEX(N42:N$44<>"",0),0),0)) ->  | Q41: 199401 | R41: =IF(OR(Q41="HOL",Q41="SUN",Q41="SAT",Q41="No Read",Q41=""),"",IF(INDEX(Q41:$Q$44,MATCH(TRUE,ISNUMBER(Q41:$Q$44),0))<LOOKUP(99^99,Q$2:Q40),(INDEX(Q41:$Q$44,MATCH(TRUE,ISNUMBER(Q41:$Q$44),0))*1000),(INDEX(Q41:$Q$44,MATCH(TRUE,ISNUMBER(Q41:$Q$44),0))-LOOKUP(99^99,Q$2:Q40))*1000)) -> 0 | S41: =IF(OR(Q41="HOL",Q41="SUN",Q41="SAT",Q41="No Read",Q41=""),"",ROUND(R41/T38,1)) -> 0 | T41: =IF(Q41="",T38,IF(R41="",IF(T38>0,T38+1,1),1)) -> 1 | U41: =IF(Q42="","",OFFSET(S41,MATCH(TRUE,INDEX(S42:S$44<>"",0),0),0)) -> 
C42: =IF(OR(B42="HOL",B42="SUN",B42="SAT",B42="No Read",B42=""),"",IF(INDEX(B42:$B$44,MATCH(TRUE,ISNUMBER(B42:$B$44),0))<LOOKUP(99^99,B$2:B41),(INDEX(B42:$B$44,MATCH(TRUE,ISNUMBER(B42:$B$44),0))*748),(INDEX(B42:$B$44,MATCH(TRUE,ISNUMBER(B42:$B$44),0))-LOOKUP(99^99,B$2:B41))*748)) ->  | D42: =IF(OR(B42="HOL",B42="SUN",B42="SAT",B42="No Read",B42=""),"",ROUND(C42/E41,1)) ->  | E42: =IF(B42="",E41,IF(C42="",IF(E41>0,E41+1,1),1)) -> 1 | F42: =IF(B43="","",OFFSET(D42,MATCH(TRUE,INDEX(D43:D$44<>"",0),0),0)) ->  | H42: =IF(OR(G42="HOL",G42="SUN",G42="SAT",G42="No Read",G42=""),"",IF(INDEX(G42:$G$44,MATCH(TRUE,ISNUMBER(G42:$G$44),0))<LOOKUP(99^99,G$2:G41),(INDEX(G42:$G$44,MATCH(TRUE,ISNUMBER(G42:$G$44),0))*1000),(INDEX(G42:$G$44,MATCH(TRUE,ISNUMBER(G42:$G$44),0))-LOOKUP(99^99,G$2:G41))*1000)) ->  | I42: =IF(OR(G42="HOL",G42="SUN",G42="SAT",G42="No Read",G42=""),"",ROUND(H42/J41,1)) ->  | J42: =IF(G42="",J41,IF(H42="",IF(J41>0,J41+1,1),1)) -> 1 | K42: =IF(G43="","",OFFSET(I42,MATCH(TRUE,INDEX(I43:I$44<>"",0),0),0)) ->  | M42: =IF(OR(L42="HOL",L42="SUN",L42="SAT",L42="No Read",L42=""),"",IF(INDEX(L42:$L$44,MATCH(TRUE,ISNUMBER(L42:$L$44),0))<LOOKUP(99^99,L$2:L41),(INDEX(L42:$L$44,MATCH(TRUE,ISNUMBER(L42:$L$44),0))*748),(INDEX(L42:$L$44,MATCH(TRUE,ISNUMBER(L42:$L$44),0))-LOOKUP(99^99,L$2:L41))*748)) ->  | N42: =IF(OR(L42="HOL",L42="SUN",L42="SAT",L42="No Read",L42=""),"",ROUND(M42/O41,1)) ->  | O42: =IF(L42="",O41,IF(M42="",IF(O41>0,O41+1,1),1)) -> 1 | P42: =IF(L43="","",OFFSET(N42,MATCH(TRUE,INDEX(N43:N$44<>"",0),0),0)) ->  | R42: =IF(OR(Q42="HOL",Q42="SUN",Q42="SAT",Q42="No Read",Q42=""),"",IF(INDEX(Q42:$Q$44,MATCH(TRUE,ISNUMBER(Q42:$Q$44),0))<LOOKUP(99^99,Q$2:Q41),(INDEX(Q42:$Q$44,MATCH(TRUE,ISNUMBER(Q42:$Q$44),0))*1000),(INDEX(Q42:$Q$44,MATCH(TRUE,ISNUMBER(Q42:$Q$44),0))-LOOKUP(99^99,Q$2:Q41))*1000)) ->  | S42: =IF(OR(Q42="HOL",Q42="SUN",Q42="SAT",Q42="No Read",Q42=""),"",ROUND(R42/T41,1)) ->  | T42: =IF(Q42="",T41,IF(R42="",IF(T41>0,T41+1,1),1)) -> 1 | U42: =IF(Q43="","",OFFSET(S42,MATCH(TRUE,INDEX(S43:S$44<>"",0),0),0)) -> 
C43: =IF(OR(B43="HOL",B43="SUN",B43="SAT",B43="No Read",B43=""),"",IF(INDEX(B43:$B$44,MATCH(TRUE,ISNUMBER(B43:$B$44),0))<LOOKUP(99^99,B$2:B42),(INDEX(B43:$B$44,MATCH(TRUE,ISNUMBER(B43:$B$44),0))*748),(INDEX(B43:$B$44,MATCH(TRUE,ISNUMBER(B43:$B$44),0))-LOOKUP(99^99,B$2:B42))*748)) ->  | E43: =IF(B43="",E42,IF(C43="",IF(E42>0,E42+1,1),1)) -> 1 | F43: =IF(B44="","",OFFSET(D43,MATCH(TRUE,INDEX(D44:D$44<>"",0),0),0)) ->  | H43: =IF(OR(G43="HOL",G43="SUN",G43="SAT",G43="No Read",G43=""),"",IF(INDEX(G43:$G$44,MATCH(TRUE,ISNUMBER(G43:$G$44),0))<LOOKUP(99^99,G$2:G42),(INDEX(G43:$G$44,MATCH(TRUE,ISNUMBER(G43:$G$44),0))*1000),(INDEX(G43:$G$44,MATCH(TRUE,ISNUMBER(G43:$G$44),0))-LOOKUP(99^99,G$2:G42))*1000)) ->  | J43: =IF(G43="",J42,IF(H43="",IF(J42>0,J42+1,1),1)) -> 1 | K43: =IF(G44="","",OFFSET(I43,MATCH(TRUE,INDEX(I44:I$44<>"",0),0),0)) ->  | M43: =IF(OR(L43="HOL",L43="SUN",L43="SAT",L43="No Read",L43=""),"",IF(INDEX(L43:$L$44,MATCH(TRUE,ISNUMBER(L43:$L$44),0))<LOOKUP(99^99,L$2:L42),(INDEX(L43:$L$44,MATCH(TRUE,ISNUMBER(L43:$L$44),0))*748),(INDEX(L43:$L$44,MATCH(TRUE,ISNUMBER(L43:$L$44),0))-LOOKUP(99^99,L$2:L42))*748)) ->  | O43: =IF(L43="",O42,IF(M43="",IF(O42>0,O42+1,1),1)) -> 1 | P43: =IF(L44="","",OFFSET(N43,MATCH(TRUE,INDEX(N44:N$44<>"",0),0),0)) ->  | R43: =IF(OR(Q43="HOL",Q43="SUN",Q43="SAT",Q43="No Read",Q43=""),"",IF(INDEX(Q43:$Q$44,MATCH(TRUE,ISNUMBER(Q43:$Q$44),0))<LOOKUP(99^99,Q$2:Q42),(INDEX(Q43:$Q$44,MATCH(TRUE,ISNUMBER(Q43:$Q$44),0))*1000),(INDEX(Q43:$Q$44,MATCH(TRUE,ISNUMBER(Q43:$Q$44),0))-LOOKUP(99^99,Q$2:Q42))*1000)) ->  | T43: =IF(Q43="",T42,IF(R43="",IF(T42>0,T42+1,1),1)) -> 1 | U43: =IF(Q44="","",OFFSET(S43,MATCH(TRUE,INDEX(S44:S$44<>"",0),0),0)) -> 
C44: =IF(OR(B44="HOL",B44="SUN",B44="SAT",B44="No Read",B44=""),"",IF(INDEX(B44:$B$44,MATCH(TRUE,ISNUMBER(B44:$B$44),0))<LOOKUP(99^99,B$2:B43),(INDEX(B44:$B$44,MATCH(TRUE,ISNUMBER(B44:$B$44),0))*748),(INDEX(B44:$B$44,MATCH(TRUE,ISNUMBER(B44:$B$44),0))-LOOKUP(99^99,B$2:B43))*748)) ->  | E44: =IF(B44="",E43,IF(C44="",IF(E43>0,E43+1,1),1)) -> 1 | F44: =IF(B45="","",OFFSET(D44,MATCH(TRUE,INDEX(D$44:D45<>"",0),0),0)) ->  | H44: =IF(OR(G44="HOL",G44="SUN",G44="SAT",G44="No Read",G44=""),"",IF(INDEX(G44:$G$44,MATCH(TRUE,ISNUMBER(G44:$G$44),0))<LOOKUP(99^99,G$2:G43),(INDEX(G44:$G$44,MATCH(TRUE,ISNUMBER(G44:$G$44),0))*1000),(INDEX(G44:$G$44,MATCH(TRUE,ISNUMBER(G44:$G$44),0))-LOOKUP(99^99,G$2:G43))*1000)) ->  | J44: =IF(G44="",J43,IF(H44="",IF(J43>0,J43+1,1),1)) -> 1 | K44: =IF(G45="","",OFFSET(I44,MATCH(TRUE,INDEX(I$44:I45<>"",0),0),0)) ->  | M44: =IF(OR(L44="HOL",L44="SUN",L44="SAT",L44="No Read",L44=""),"",IF(INDEX(L44:$L$44,MATCH(TRUE,ISNUMBER(L44:$L$44),0))<LOOKUP(99^99,L$2:L43),(INDEX(L44:$L$44,MATCH(TRUE,ISNUMBER(L44:$L$44),0))*748),(INDEX(L44:$L$44,MATCH(TRUE,ISNUMBER(L44:$L$44),0))-LOOKUP(99^99,L$2:L43))*748)) ->  | O44: =IF(L44="",O43,IF(M44="",IF(O43>0,O43+1,1),1)) -> 1 | P44: =IF(L45="","",OFFSET(N44,MATCH(TRUE,INDEX(N$44:N45<>"",0),0),0)) ->  | R44: =IF(OR(Q44="HOL",Q44="SUN",Q44="SAT",Q44="No Read",Q44=""),"",IF(INDEX(Q44:$Q$44,MATCH(TRUE,ISNUMBER(Q44:$Q$44),0))<LOOKUP(99^99,Q$2:Q43),(INDEX(Q44:$Q$44,MATCH(TRUE,ISNUMBER(Q44:$Q$44),0))*1000),(INDEX(Q44:$Q$44,MATCH(TRUE,ISNUMBER(Q44:$Q$44),0))-LOOKUP(99^99,Q$2:Q43))*1000)) ->  | T44: =IF(Q44="",T43,IF(R44="",IF(T43>0,T43+1,1),1)) -> 1 | U44: =IF(Q45="","",OFFSET(S44,MATCH(TRUE,INDEX(S$44:S45<>"",0),0),0)) -> 
